2CCN - Level 2 Cost Centre Name,,9CCN - Level 9 Cost Centre Name,9CCC - Level 9 Cost Centre Code,9AN - Level 9 Account Name,9AC - Level 9 Account Code,Transaction Description,Date Paid,Transaction Reference,Analysed Amount,2AC - Level 2 Account Codes,Supplier Name,Supplier Code
Gloucester City Council,23UE,Asbru - Other Funders,FP846,Other Minor Supplies Services,5590,REDACTED,02/09/2013,369744,534.65,NET,Travail Employment Ltd,49371W
Gloucester City Council,23UE,Business Transformation & Tech,RT700,Security Testing - Govt Connec,5446,EXPENSES,02/09/2013,370005,299.02,NET,Randomstorm,09070N
Gloucester City Council,23UE,Cemeteries,HC300,Operational Materials,5070,remove digger teeth,02/09/2013,369998,45,NET,Garden Machinery Gloucester,55641K
Gloucester City Council,23UE,Folk Museum,LM210,Vocational Training,2970,REDACTED,02/09/2013,370032,25,NET,Real Ideas Organisation,13819K
Gloucester City Council,23UE,Folk Museum Catering,LM211,Catering Provisions -Food,5110,FOOD,02/09/2013,370011,40.62,NET,Total Produce Gloucester,12645E
Gloucester City Council,23UE,Folk Museum Catering,LM211,Catering Provisions -Food,5110,FOOD,02/09/2013,370012,32.23,NET,Total Produce Gloucester,12645E
Gloucester City Council,23UE,Folk Museum Catering,LM211,Catering Provisions -Food,5110,FOOD,02/09/2013,370013,4.84,NET,Total Produce Gloucester,12645E
Gloucester City Council,23UE,Folk Museum Catering,LM211,Catering Provisions -Food,5110,FOOD,02/09/2013,370014,13.29,NET,Total Produce Gloucester,12645E
Gloucester City Council,23UE,Folk Museum Catering,LM211,Catering Provisions -Food,5110,FOOD,02/09/2013,370015,4.84,NET,Total Produce Gloucester,12645E
Gloucester City Council,23UE,Folk Museum Catering,LM211,Catering Provisions -Food,5110,FOOD,02/09/2013,370017,14.95,NET,Total Produce Gloucester,12645E
Gloucester City Council,23UE,Folk Museum Catering,LM211,Catering Provisions -Food,5110,FOOD,02/09/2013,370018,5.15,NET,Total Produce Gloucester,12645E
Gloucester City Council,23UE,Folk Museum Catering,LM211,Catering Provisions -Food,5110,FOOD,02/09/2013,370019,7.8,NET,Total Produce Gloucester,12645E
Gloucester City Council,23UE,Folk Museum Catering,LM211,Catering Provisions -Food,5110,FOOD,02/09/2013,370020,6.05,NET,Total Produce Gloucester,12645E
Gloucester City Council,23UE,Folk Museum Catering,LM211,Catering Provisions -Food,5110,FOOD,02/09/2013,370021,4.84,NET,Total Produce Gloucester,12645E
Gloucester City Council,23UE,Folk Museum Catering,LM211,Catering Provisions -Food,5110,food,02/09/2013,370022,3.63,NET,Total Produce Gloucester,12645E
Gloucester City Council,23UE,Folk Museum Catering,LM211,Catering Provisions -Food,5110,FOOD,02/09/2013,370023,3.8,NET,Total Produce Gloucester,12645E
Gloucester City Council,23UE,Folk Museum Catering,LM211,Catering Provisions -Food,5110,FOOD,02/09/2013,370033,3.63,NET,Total Produce Gloucester,12645E
Gloucester City Council,23UE,Guildhall Bar And Caf�,LA210,Catering Provisions -Food,5110,FOOD,02/09/2013,370006,4.84,NET,Total Produce Gloucester,12645E
Gloucester City Council,23UE,Guildhall Bar And Caf�,LA210,Catering Provisions -Food,5110,FOOD,02/09/2013,370007,4.84,NET,Total Produce Gloucester,12645E
Gloucester City Council,23UE,Guildhall Bar And Caf�,LA210,Catering Provisions -Food,5110,FOOD,02/09/2013,370008,4.84,NET,Total Produce Gloucester,12645E
Gloucester City Council,23UE,Guildhall Bar And Caf�,LA210,Catering Provisions -Food,5110,FOOD,02/09/2013,370009,4.84,NET,Total Produce Gloucester,12645E
Gloucester City Council,23UE,Guildhall Bar And Caf�,LA210,Catering Provisions -Food,5110,FOOD,02/09/2013,370010,4.84,NET,Total Produce Gloucester,12645E
Gloucester City Council,23UE,Guildhall Bar And Caf�,LA210,Catering Provisions -Food,5110,FOOD,02/09/2013,370024,4.84,NET,Total Produce Gloucester,12645E
Gloucester City Council,23UE,Guildhall Bar And Caf�,LA210,Catering Provisions -Food,5110,FOOD,02/09/2013,370025,4.84,NET,Total Produce Gloucester,12645E
Gloucester City Council,23UE,Guildhall Bar And Caf�,LA210,Catering Provisions -Food,5110,FOOD,02/09/2013,370026,4.84,NET,Total Produce Gloucester,12645E
Gloucester City Council,23UE,Guildhall Bar And Caf�,LA210,Catering Provisions -Food,5110,FOOD,02/09/2013,370027,4.84,NET,Total Produce Gloucester,12645E
Gloucester City Council,23UE,Kings Quarter Redevelopment,RB600,Fees For Services Received,5350,Kings Quarter consultancy advice,02/09/2013,370050,1500,NET,Cb Richard Ellis Ltd,12446N
Gloucester City Council,23UE,Legal Services,RS200,Basic Pay -Admin /Prof Staff,2601,REDACTED,02/09/2013,369987,1124.2,NET,Venn Group Ltd,04339P
Gloucester City Council,23UE,Solace Project,FP843,Other Minor Supplies Services,5590,REDACTED,02/09/2013,369727,3250.3,NET,Gloucester City Homes,05244T
Gloucester City Council,23UE,Summer Festival,LT300,Hire Of Equipment,5020,FIRST AID 31/07/13,02/09/2013,369298,546,NET,St John Ambulance*,03597Y
Gloucester City Council,23UE,Utilities,PT502,Gas Supply,3100,UTILITIES TO JULY 2013,02/09/2013,369687,17846.16,NET,West Mercia Energy,11669Z
Gloucester City Council,23UE,Utilities,PT502,Electricity Supply,3110,UTILITIES TO JULY 2013,02/09/2013,369687,0.98,NET,West Mercia Energy,11669Z
Gloucester City Council,23UE,Allotments,HI104,Fees For Services Received,5350,Estcourt Close allotments work,03/09/2013,369799,1498.75,NET,Ken Pink Plant Hire Ltd,56884V
Gloucester City Council,23UE,Allotments,HI104,Fees For Services Received,5350,Estcourt Close allotments plant hire,03/09/2013,369800,1036.3,NET,Ken Pink Plant Hire Ltd,56884V
Gloucester City Council,23UE,Cedar Upgrade 2011/12,RY250,Contract Payments,20,REDACTED,03/09/2013,370086,850,CAP,Advanced Business Solutions,06072N
Gloucester City Council,23UE,Cedar Upgrade 2011/12,RY250,Contract Payments,20,REDACTED,03/09/2013,370089,1700,CAP,Advanced Business Solutions,06072N
Gloucester City Council,23UE,Cemeteries,HC300,Operational Materials,5070,DISCMAN,03/09/2013,369989,180.75,NET,Rigby Taylor Ltd,37605G
Gloucester City Council,23UE,Docks Complex - Catering Servs,RB110,Catering Provisions -Food,5110,Docks food,03/09/2013,370091,41.72,NET,Janes Pantry,24500W
Gloucester City Council,23UE,Homelessness,CH120,Rent In Advance,5516,REDACTED,03/09/2013,370098,425,NET,2 Let Ltd,08804U
Gloucester City Council,23UE,Homelessness Prevention,CH122,Fees For Services Received,5350,REDACTED,03/09/2013,370098,364.6,NET,2 Let Ltd,08804U
Gloucester City Council,23UE,Investment Property,RB500,Repair/Maint Of Fixed Plant,3006,HKP boiler service 19/06/13,03/09/2013,370001,320,NET,Hewer Facilities Mgt Ltd,05232A
Gloucester City Council,23UE,Printing,RP103,Fees For Services Received,5350,August 2013 printing,03/09/2013,369895,1167,NET,Alpha Colour Printers Ltd,00945B
Gloucester City Council,23UE,Retail Market - Landlord,HM300,Trade Refuse Collection,3630,AUG13 food bin emptying,03/09/2013,370093,150,NET,B & S Pointon Ltd,06253G
Gloucester City Council,23UE,75/81 Eastgate Street,RB501,Fire Fighting Equipment,3008,75-81 Eastgate extinguisher inspection,04/09/2013,369803,72.42,NET,A & E Fire Equipment Limited,54289L
Gloucester City Council,23UE,Asbru - Other Funders,FP846,Other Minor Supplies Services,5590,REDACTED,04/09/2013,370126,534.65,NET,Travail Employment Ltd,49371W
Gloucester City Council,23UE,Asset Management,RS300,Basic Pay - Temporary Staff,2751,AUG13 CONSULTANCY SERVICES,04/09/2013,370136,6300,NET,Ardley Associates,09369F
Gloucester City Council,23UE,Asset Management,RS300,Basic Pay - Temporary Staff,2751,REDACTED,04/09/2013,369615,1250.5,NET,Hays Specialist Recruitment Ltd,55516P
Gloucester City Council,23UE,Business Transformation & Tech,RT700,Computer Software Maintenance,5427,VMWARE support,04/09/2013,369905,12686.09,NET,Ans Group Plc,11058J
Gloucester City Council,23UE,Business Transformation & Tech,RT700,Computer Hardware <£5000,5420,CPL-N951M PATA HD,04/09/2013,370000,60,NET,Dell Computers Corporation Ltd,55920C
Gloucester City Council,23UE,Business Transformation & Tech,RT700,Basic Pay - Temporary Staff,2751,REDACTED,04/09/2013,369999,1125,NET,Ffox Software Ltd,10665T
Gloucester City Council,23UE,City Centre Manager,PT310,Subscriptions,5600,full band 2 membership to 31/12/13,04/09/2013,368864,312.5,NET,Atcm,04754X
Gloucester City Council,23UE,Crematorium,HC200,Repair/Maint Of Monuments,3004,REDACTED,04/09/2013,370085,159,NET,The Columbaria Company,55078T
Gloucester City Council,23UE,Development Management,PT200,Advertising And Publicity,5702,ADVERT 01/08/13,04/09/2013,370121,116.2,NET,Local World Ltd,08556P
Gloucester City Council,23UE,Development Management,PT200,Advertising And Publicity,5702,ADVERT 15/08/13,04/09/2013,370129,139.44,NET,Local World Ltd,08556P
Gloucester City Council,23UE,Disabled Facilities Grants,CY013,Disabled Facility Grants,74,REDACTED,04/09/2013,370138,3471,CAP,Beechwood Maintenance Ltd,14182P
Gloucester City Council,23UE,Economic Development,FP300,Other Minor Supplies Services,5590,REDACTED,04/09/2013,370142,280,NET,Atcm,04754X
Gloucester City Council,23UE,Electrical Investigatory Works,RY142,Capital Fire Equipment,16,Folk Museum extinguishers,04/09/2013,369726,152,CAP,A & E Fire Equipment Limited,54289L
Gloucester City Council,23UE,Financial Services,RT200,Consultants Fees,5349,REDACTED,04/09/2013,369994,1740,NET,Robert Half Ltd,03959K
Gloucester City Council,23UE,Folk Museum Catering,LM211,Catering Provisions -Food,5110,FOOD,04/09/2013,370115,3.63,NET,Total Produce Gloucester,12645E
Gloucester City Council,23UE,Gis Development Work,RY555,Contract Payments,20,REDACTED,04/09/2013,369995,1250,CAP,Badenoch & Clark,01536P
Gloucester City Council,23UE,Green Transport Policy,PJ130,Management Fees,6001,July 2013 driving charges,04/09/2013,370139,809.65,NET,Co-Wheels Cic,11534A
Gloucester City Council,23UE,Guildhall Bar And Caf�,LA210,Catering Provisions -Food,5110,FOOD,04/09/2013,370028,4.84,NET,Total Produce Gloucester,12645E
Gloucester City Council,23UE,Guildhall Bar And Caf�,LA210,Catering Provisions -Food,5110,FOOD,04/09/2013,370029,4.84,NET,Total Produce Gloucester,12645E
Gloucester City Council,23UE,Guildhall Bar And Caf�,LA210,Catering Provisions -Food,5110,FOOD,04/09/2013,370030,4.84,NET,Total Produce Gloucester,12645E
Gloucester City Council,23UE,Guildhall Bar And Caf�,LA210,Catering Provisions -Food,5110,FOOD,04/09/2013,370031,4.84,NET,Total Produce Gloucester,12645E
Gloucester City Council,23UE,Guildhall Bar And Caf�,LA210,Catering Provisions -Food,5110,FOOD,04/09/2013,370034,4.84,NET,Total Produce Gloucester,12645E
Gloucester City Council,23UE,Guildhall Bar And Caf�,LA210,Catering Provisions -Food,5110,FOOD,04/09/2013,370035,4.84,NET,Total Produce Gloucester,12645E
Gloucester City Council,23UE,Guildhall Bar And Caf�,LA210,Catering Provisions -Food,5110,FOOD,04/09/2013,370037,4.84,NET,Total Produce Gloucester,12645E
Gloucester City Council,23UE,Guildhall Bar And Caf�,LA210,Catering Provisions -Food,5110,FOOD,04/09/2013,370039,4.84,NET,Total Produce Gloucester,12645E
Gloucester City Council,23UE,Guildhall Bar And Caf�,LA210,Catering Provisions -Food,5110,FOOD,04/09/2013,370040,4.84,NET,Total Produce Gloucester,12645E
Gloucester City Council,23UE,Guildhall Bar And Caf�,LA210,Catering Provisions -Food,5110,FOOD,04/09/2013,370041,4.84,NET,Total Produce Gloucester,12645E
Gloucester City Council,23UE,Guildhall Bar And Caf�,LA210,Catering Provisions -Food,5110,FOOD,04/09/2013,370042,4.84,NET,Total Produce Gloucester,12645E
Gloucester City Council,23UE,Guildhall Bar And Caf�,LA210,Catering Provisions -Food,5110,FOOD,04/09/2013,370110,4.84,NET,Total Produce Gloucester,12645E
Gloucester City Council,23UE,Guildhall Bar And Caf�,LA210,Catering Provisions -Food,5110,FOOD,04/09/2013,370111,4.84,NET,Total Produce Gloucester,12645E
Gloucester City Council,23UE,Guildhall Bar And Caf�,LA210,Catering Provisions -Food,5110,FOOD,04/09/2013,370112,4.84,NET,Total Produce Gloucester,12645E
Gloucester City Council,23UE,Guildhall Bar And Caf�,LA210,Catering Provisions -Food,5110,FOOD,04/09/2013,370113,4.84,NET,Total Produce Gloucester,12645E
Gloucester City Council,23UE,Guildhall Bar And Caf�,LA210,Catering Provisions -Food,5110,FOOD,04/09/2013,370114,4.84,NET,Total Produce Gloucester,12645E
Gloucester City Council,23UE,Guildhall Events,LA200,Advertising And Publicity,5702,Guildhall September 2013 whats on guide,04/09/2013,369307,1050,NET,Color Co,57707K
Gloucester City Council,23UE,Homelessness,CH120,Fees For Services Received,5350,REDACTED,04/09/2013,370146,484.6,NET,2 Let Glos Ltd,74622M
Gloucester City Council,23UE,Homelessness,CH120,Vocational Training,2970,delivery for EU nationals training APR12,04/09/2013,369556,610,NET,Shelter Training,08860H
Gloucester City Council,23UE,Homelessness Prevention,CH122,Fees For Services Received,5350,REDACTED,04/09/2013,370146,262.49,NET,2 Let Glos Ltd,74622M
Gloucester City Council,23UE,Memorial Garden,HC400,Advertising And Publicity,5702,ADVERTS AUG 2013,04/09/2013,370128,343.98,NET,Local World Ltd,08556P
Gloucester City Council,23UE,Off Street Car Parks,PP110,General Repair/Maint Buildings,3000,Gt Western Rd car park barrier sign,04/09/2013,369906,75,NET,Hanman Split Ltd,56889J
Gloucester City Council,23UE,Rehousing,CH111,Vocational Training,2970,delivery for EU nationals training APR12,04/09/2013,369556,420,NET,Shelter Training,08860H
Gloucester City Council,23UE,Rehousing,CH111,Vocational Training,2970,Delivery for EU Nationals training MAY12,04/09/2013,369557,1030,NET,Shelter Training,08860H
Gloucester City Council,23UE,Tourism Marketing,LT100,General Repair/Maint Buildings,3000,TIC blinds,04/09/2013,370088,232.01,NET,Ej Blinds,49399X
Gloucester City Council,23UE,Wake Room,HC501,Catering Provisions -Liquor,5111,Arbor drinks,04/09/2013,370143,124.95,NET,Cellar Supplies Cheltenham Ltd,01563L
Gloucester City Council,23UE,Wake Room,HC501,Catering Provisions -Liquor,5111,Arbor drinks,04/09/2013,370144,24.99,NET,Cellar Supplies Cheltenham Ltd,01563L
Gloucester City Council,23UE,Wake Room,HC501,Catering Provisions -Liquor,5111,Arbor drinks,04/09/2013,370145,76.45,NET,Cellar Supplies Cheltenham Ltd,01563L
Gloucester City Council,23UE,Aspire Admin Charges,LC105,Contracted Services,6970,Apr-13,05/09/2013,370284,79792.5,NET,Aspire Sports & Cultural Trust,08135V
Gloucester City Council,23UE,Avenger Task Force,FP842,Other Minor Supplies Services,5590,REDACTED,05/09/2013,370167,140,NET,Through The Gateway,14036U
Gloucester City Council,23UE,Business Support,PT250,Publications,5060,August13 newspapers,05/09/2013,370084,168,NET,Keelings Newsagents,55281U
Gloucester City Council,23UE,Business Transformation & Tech,RT700,Computer Software Maintenance,5427,AIRWATCH,05/09/2013,370151,9750,NET,Satisnet,13892Z
Gloucester City Council,23UE,Business Transformation & Tech,RT700,Computer Hardware Maintenance,5426,SCANNER SEP-NOV 2013,05/09/2013,370048,321,NET,Stanford Marsh Ltd*,51139M
Gloucester City Council,23UE,Business Transformation & Tech,RT700,Basic Pay - Temporary Staff,2751,REDACTED,05/09/2013,370152,4237,NET,Vector Resourcing Ltd,11664K
Gloucester City Council,23UE,Cemeteries,HC300,Tyres,4014,Mower tyres,05/09/2013,370209,112.79,NET,A T S Euromaster Ltd,01860B
Gloucester City Council,23UE,Cemeteries,HC300,Maint Of Grounds - General,3030,MECHANICAL SWEEP,05/09/2013,368154,128,NET,Enterprise (Aol) Ltd,06695G
Gloucester City Council,23UE,Cemeteries,HC300,Purch Vehicles/M. Plant <£5000,4000,Ferris tyre fitting,05/09/2013,370214,79.98,NET,Garden Machinery Gloucester,55641K
Gloucester City Council,23UE,Cemeteries,HC300,Purch Vehicles/M. Plant <£5000,4000,Ferris roller fitting,05/09/2013,370215,96.4,NET,Garden Machinery Gloucester,55641K
Gloucester City Council,23UE,Cemeteries,HC300,Operational Materials,5070,TIMBREL,05/09/2013,370123,95.35,NET,Rigby Taylor Ltd,37605G
Gloucester City Council,23UE,Cemeteries,HC300,Operational Materials,5070,CHAIN LOOP,05/09/2013,370148,16.45,NET,Spaldings,48759Y
Gloucester City Council,23UE,Cemeteries,HC300,Operational Materials,5070,RIVETING KIT,05/09/2013,370149,53.19,NET,Spaldings,48759Y
Gloucester City Council,23UE,Civic Admin And Hospitality,RC210,Events,5952,2013 Three Choirs Festival sponsorship,05/09/2013,369542,15000,NET,Three Choirs Festival Association Ltd,24249RV
Gloucester City Council,23UE,Council Streetcare Team,HI101,Window Cleaning,3610,WINDOW CLEANING,05/09/2013,368942,140,NET,Poles Apart Window Cleaning,11636R
Gloucester City Council,23UE,Crematorium,HC200,Memorial Plaques,5053,REDACTED,05/09/2013,370147,219,NET,Steel & Stone (York),57204U
Gloucester City Council,23UE,Crematorium,HC200,Repair/Maint Of Fixed Plant,3006,CLEANING,05/09/2013,370150,350,NET,Zagota Creations,03211D
Gloucester City Council,23UE,Disabled Facilities Grants,CY013,Disabled Facility Grants,74,REDACTED,05/09/2013,370125,1868,CAP,Tpg Disableaids,51324R
Gloucester City Council,23UE,Docks Complex - Services,RB100,Cleaning Materials,3600,docks cleaning materials,05/09/2013,370051,146.06,NET,Core Hygiene Ltd,03885P
Gloucester City Council,23UE,Financial Services,RT200,Basic Pay -Admin /Prof Staff,2601,REDACTED,05/09/2013,368834,717.12,NET,Robert Half Ltd,03959K
Gloucester City Council,23UE,Gloucester Guildhall,LA100,Subscriptions,5600,Guildhall Green Tourism 2013-14,05/09/2013,370206,235,NET,Green Tourism Business Scheme,06576C
Gloucester City Council,23UE,Group Mgr Cult Ser & Tourism,GR102,Events,5952,BLUES FESTIVAL 2013,05/09/2013,370036,2000,NET,Marketing Gloucester Ltd,08925E
Gloucester City Council,23UE,Guildhall Events,LA200,Advertising And Publicity,5702,ADVERTS JULY 2013,05/09/2013,368832,440,NET,Local World Ltd,08556P
Gloucester City Council,23UE,Human Resources,EH100,Vocational Training,2970,REDACTED,05/09/2013,370162,99,NET,South West Councils,56523H
Gloucester City Council,23UE,Pollution Control,HE300,Fees For Services Received,5350,BARTON CLEANUP,05/09/2013,370119,320,NET,Enterprise (Aol) Ltd,06695G
Gloucester City Council,23UE,Ranger Centre/Netheridge Wks,RY167,Contract Payments,20,Ranger Centre intruder alarm,05/09/2013,369446,1037.49,CAP,Adt Fire & Security Plc,54086D
Gloucester City Council,23UE,Ranger Centre/Netheridge Wks,RY167,Contract Payments,20,RANGERS CENTRE,05/09/2013,370043,29706.12,CAP,Snape Construction Ltd,40958T
Gloucester City Council,23UE,REDACTED,REDACTED,REDACTED,REDACTED,REDACTED,05/09/2013,REDACTED,500.63,NET,REDACTED,REDACTED
Gloucester City Council,23UE,REDACTED,REDACTED,REDACTED,REDACTED,REDACTED,05/09/2013,REDACTED,100,NET,REDACTED,REDACTED
Gloucester City Council,23UE,Rehousing,CH111,Fees For Services Received,5350,REDACTED,05/09/2013,370207,25,NET,Hadwen Medical Practice,59727U
Gloucester City Council,23UE,Rehousing,CH111,Fees For Services Received,5350,REDACTED,05/09/2013,370208,20.5,NET,Kingsholm Surgery,11948S
Gloucester City Council,23UE,Stationery Services,RS150,Stationery,5302,STATIONERY,05/09/2013,370227,61.35,NET,Lyreco Uk Ltd,11746G
Gloucester City Council,23UE,Tic Coach Tickets,LT105,Materials For Sale,5080,REDACTED,05/09/2013,370156,97,NET,Superbreak Mini Holidays,00712D
Gloucester City Council,23UE,Tic Coach Tickets,LT105,Sale Of Goods And Services,9230,REDACTED,05/09/2013,370156,-8.08,NET,Superbreak Mini Holidays,00712D
Gloucester City Council,23UE,Tic Coach Tickets,LT105,Materials For Sale,5080,SALES AUG 2013,05/09/2013,370166,60,NET,Wetm Ltd,05656Z
Gloucester City Council,23UE,Tic Coach Tickets,LT105,Sale Of Goods And Services,9230,SALES AUG 2013,05/09/2013,370166,-3,NET,Wetm Ltd,05656Z
Gloucester City Council,23UE,Tourism Marketing,LT100,Contract Cleaning,3620,TOILET ROLLS,05/09/2013,370161,10.88,NET,Robert Hall Business Equipment Ltd,19925B
Gloucester City Council,23UE,Wake Room,HC501,Catering Provisions -Food,5110,FOOD,05/09/2013,370153,130,NET,3663,55585U
Gloucester City Council,23UE,Wake Room,HC501,Catering Provisions -Food,5110,FOOD,05/09/2013,370158,288.01,NET,3663,55585U
Gloucester City Council,23UE,Wake Room,HC501,Catering Provisions -Food,5110,FOOD,05/09/2013,370159,273.18,NET,3663,55585U
Gloucester City Council,23UE,Wake Room,HC501,Catering Provisions -Food,5110,FOOD,05/09/2013,370160,156.19,NET,3663,55585U
Gloucester City Council,23UE,Wake Room,HC501,Catering Provisions -Food,5110,FOOD,05/09/2013,370163,321.82,NET,3663,55585U
Gloucester City Council,23UE,Wake Room,HC501,Catering Provisions -Food,5110,FOOD,05/09/2013,370164,473.14,NET,3663,55585U
Gloucester City Council,23UE,Xmas Festivities,HM231,Exhibits And Collections,5038,XMAS FESTIVAL 2013,05/09/2013,370038,10000,NET,Marketing Gloucester Ltd,08925E
Gloucester City Council,23UE,27-29 Commercial Road,RB542,General Repair/Maint Buildings,3000,WEED CLEARING,06/09/2013,370288,220,NET,Rj Contracting (Environmental) Ltd,07429H
Gloucester City Council,23UE,Aspire Admin Charges,LC105,Other Minor Income,9900,bailiff payments 3/9/13,06/09/2013,370320,4,NET,Aspire Sports & Cultural Trust,08135V
Gloucester City Council,23UE,Barbican Car Park,RB543,General Repair/Maint Buildings,3000,WEED CLEARING,06/09/2013,370288,300,NET,Rj Contracting (Environmental) Ltd,07429H
Gloucester City Council,23UE,Business Support,PT250,Fuel,4012,vehicle fuel,06/09/2013,370194,80.24,NET,Allstar Business Solutions Ltd (Arval),06594A
Gloucester City Council,23UE,Civica Admin Charges,RT105,Postages,5400,ACCT 0870585007 REVENUES,06/09/2013,368851,1533.64,NET,Royal Mail S.Wales & South West,35830S
Gloucester City Council,23UE,Civica Admin Charges,RT105,Postages,5400,ACCT 0870585007 REVENUES,06/09/2013,369644,1453.23,NET,Royal Mail S.Wales & South West,35830S
Gloucester City Council,23UE,Council Streetcare Team,HI101,Maint Of Grounds - General,3030,Aviation Gardens heras fencing,06/09/2013,370094,42.18,NET,Rf Gardiner Limited,12299B
Gloucester City Council,23UE,Development Management,PT200,Fees For Services Received,5350,REDACTED,06/09/2013,370281,100,NET,REDACTED,REDACTED
Gloucester City Council,23UE,Docks Complex - Services,RB100,Contracted Services,6970,TRADE WASTE OCT-DEC 2013,06/09/2013,370132,13932.47,NET,Enterprise (Aol) Ltd,06695G
Gloucester City Council,23UE,Electrical Investigatory Works,RY142,Capital Fire Equipment,16,75-81 Eastgate remedial works,06/09/2013,369802,267.81,CAP,A & E Fire Equipment Limited,54289L
Gloucester City Council,23UE,Emergency Out Of Hours Calls,RB301,Fees For Services Received,5350,CALLS JULY 2013,06/09/2013,370307,192.68,NET,Office Response,09439K
Gloucester City Council,23UE,Emergency Out Of Hours Calls,RB301,Fees For Services Received,5350,CALLS AUG 2013,06/09/2013,370309,226.69,NET,Office Response,09439K
Gloucester City Council,23UE,General Drainage Works,PY241,Contract Payments,20,MILTON AVE,06/09/2013,369807,245,CAP,Monument Geomatics,11065F
Gloucester City Council,23UE,General Works Fund,RY203,Cap Repair/Maint Fixed Plant,14,Guildhall kitchen new sub main circuit,06/09/2013,369137,2551.53,CAP,Rf Gardiner Limited,12299B
Gloucester City Council,23UE,Hackney Carriages,HL100,Fees For Services Received,5350,DVLA electronic checks,06/09/2013,368808,72.5,NET,Intelligent Data Systems (Uk) Ltd,11067G
Gloucester City Council,23UE,Hackney Carriages,HL100,Fees For Services Received,5350,DVLA electronic checks,06/09/2013,370213,26.75,NET,Intelligent Data Systems (Uk) Ltd,11067G
Gloucester City Council,23UE,Homelessness Prevention,CH122,Basic Pay - Temporary Staff,2751,REDACTED,06/09/2013,370280,642.74,NET,James Andrews Recruitment Solutions,13636W
Gloucester City Council,23UE,Human Resources,EH100,Advertising And Publicity,5702,job adverts,06/09/2013,370274,60,NET,Glosjobs.Co.Uk,12799Z
Gloucester City Council,23UE,Investment Property,RB500,Fire Alarm Maintenance,3053,Folk Museum intruder alarm works,06/09/2013,370192,165.25,NET,Chubb Electronic Security Ltd,54582K
Gloucester City Council,23UE,Investment Property,RB500,General Repair/Maint Buildings,3000,Guildhall hallway socket repairs,06/09/2013,369138,115.75,NET,Rf Gardiner Limited,12299B
Gloucester City Council,23UE,Investment Property,RB500,General Repair/Maint Buildings,3000,Blackfriars Priory urinal repair,06/09/2013,369139,85.78,NET,Rf Gardiner Limited,12299B
Gloucester City Council,23UE,Investment Property,RB500,General Repair/Maint Buildings,3000,2nd flr disabled toilet repair Herbert,06/09/2013,369140,127.88,NET,Rf Gardiner Limited,12299B
Gloucester City Council,23UE,Investment Property,RB500,General Repair/Maint Buildings,3000,WEED CLEARING,06/09/2013,370288,100,NET,Rj Contracting (Environmental) Ltd,07429H
Gloucester City Council,23UE,Kings Sq Paving Emerg Works,RY161,Contract Payments,20,Kings Square paviour & slab repairs,06/09/2013,369909,635.32,CAP,Rf Gardiner Limited,12299B
Gloucester City Council,23UE,Kings Sq Paving Emerg Works,RY161,Contract Payments,20,Kings Square car park tarmac repairs,06/09/2013,369945,687.88,CAP,Rf Gardiner Limited,12299B
Gloucester City Council,23UE,Off Street Car Parks,PP110,General Repair/Maint Buildings,3000,Kings Walk car park door replacement,06/09/2013,370095,1383.75,NET,Rf Gardiner Limited,12299B
Gloucester City Council,23UE,Off Street Car Parks,PP110,General Repair/Maint Buildings,3000,Eastgate car park ceiling repairs,06/09/2013,370096,562.5,NET,Rf Gardiner Limited,12299B
Gloucester City Council,23UE,Off Street Car Parks,PP110,General Repair/Maint Buildings,3000,CREDIT NOTE 10613 APPLIES,06/09/2013,370286,461.25,NET,Rf Gardiner Limited,12299B
Gloucester City Council,23UE,Off Street Car Parks,PP110,General Repair/Maint Buildings,3000,credit note 10612 applies,06/09/2013,370287,187.5,NET,Rf Gardiner Limited,12299B
Gloucester City Council,23UE,Pest Control,HD400,Fees For Services Received,5350,pest control,06/09/2013,370278,2278.28,NET,Falconry Services Ltd,10692P
Gloucester City Council,23UE,Postal Services,RS120,Postages,5400,ACCT 0074842000 W/E 24/08/13,06/09/2013,370238,331.36,NET,Royal Mail S.Wales & South West,35830S
Gloucester City Council,23UE,Postal Services,RS120,Postages,5400,ACCT 0252446000 W/E 29/08/13,06/09/2013,370239,1285.92,NET,Royal Mail S.Wales & South West,35830S
Gloucester City Council,23UE,REDACTED,REDACTED,REDACTED,REDACTED,REDACTED,06/09/2013,REDACTED,140,NET,REDACTED,REDACTED
Gloucester City Council,23UE,REDACTED,REDACTED,REDACTED,REDACTED,REDACTED,06/09/2013,REDACTED,186.96,NET,REDACTED,REDACTED
Gloucester City Council,23UE,REDACTED,REDACTED,REDACTED,REDACTED,REDACTED,06/09/2013,REDACTED,103.23,NET,REDACTED,REDACTED
Gloucester City Council,23UE,Registration Of Electors,RS400,Publications,5060,PUBLICATION,06/09/2013,370293,145,NET,Thomson Reuters,43110M
Gloucester City Council,23UE,Rehousing,CH111,Fees For Services Received,5350,REDACTED,06/09/2013,370308,20.5,NET,REDACTED,REDACTED
Gloucester City Council,23UE,Rugby World Cup,LT450,Advertising And Publicity,5702,Job vacancy advert,06/09/2013,370275,30,NET,Glosjobs.Co.Uk,12799Z
Gloucester City Council,23UE,Summer Festival,LT300,Hire Of Equipment,5020,SUMMER SOUNDS,06/09/2013,370236,385,NET,Ru Electrical Services,10389U
Gloucester City Council,23UE,Summer Festival,LT300,Hire Of Equipment,5020,BIN 03/08/13,06/09/2013,370116,336,NET,Smiths (Gloucester) Ltd,40995Z
Gloucester City Council,23UE,Taxi Marshalling Scheme,HL101,Taxi Marshals,5387,Taxi Marshals 12 & 13th July,06/09/2013,369651,162.5,NET,Cuff Security Services Ltd,12073G
Gloucester City Council,23UE,Taxi Marshalling Scheme,HL101,Taxi Marshals,5387,Taxi Marshals 19 & 20th July 2013,06/09/2013,369652,162.5,NET,Cuff Security Services Ltd,12073G
Gloucester City Council,23UE,Taxi Marshalling Scheme,HL101,Taxi Marshals,5387,Taxi Marshals 26 & 27th July 2013,06/09/2013,369653,162.5,NET,Cuff Security Services Ltd,12073G
Gloucester City Council,23UE,Taxi Marshalling Scheme,HL101,Taxi Marshals,5387,taxi marshals 2nd & 3rd August 2013,06/09/2013,369654,162.5,NET,Cuff Security Services Ltd,12073G
Gloucester City Council,23UE,Taxi Marshalling Scheme,HL101,Taxi Marshals,5387,Taxi marshals 9th & 10th August 2013,06/09/2013,369655,162.5,NET,Cuff Security Services Ltd,12073G
Gloucester City Council,23UE,Tic Coach Tickets,LT105,Materials For Sale,5080,SALES AUG 2013,06/09/2013,370237,17231.1,NET,National Express Ltd,31455K
Gloucester City Council,23UE,Tic Coach Tickets,LT105,Sale Of Goods And Services,9230,SALES AUG 2013,06/09/2013,370237,-1671.54,NET,National Express Ltd,31455K
Gloucester City Council,23UE,Tic Coach Tickets,LT105,Materials For Sale,5080,REDACTED,06/09/2013,370316,35,NET,Superbreak Mini Holidays,00712D
Gloucester City Council,23UE,Tic Coach Tickets,LT105,Sale Of Goods And Services,9230,REDACTED,06/09/2013,370316,-2.92,NET,Superbreak Mini Holidays,00712D
Gloucester City Council,23UE,Armscroft Park Flood Mit S106,LY153,Contract Payments,20,50% deposit for bridge,09/09/2013,370335,4735,CAP,Abc Bridges,01465M
Gloucester City Council,23UE,Blackfriars,LA609,Hire Of Equipment,5020,BLACKFRIARS,09/09/2013,370221,110,NET,Ru Electrical Services,10389U
Gloucester City Council,23UE,Blackfriars,LA609,Fees For Services Received,5350,BLACKFRIARS,09/09/2013,370231,340,NET,Ru Electrical Services,10389U
Gloucester City Council,23UE,Business Support,PT250,Microfilming / Cd-Rom Storage,5330,ARCHIVE AUG 2013,09/09/2013,370377,51.26,NET,Transmedia Technology Ltd,08635T
Gloucester City Council,23UE,Business Transformation & Tech,RT700,Computer Hardware <£5000,5420,HARDWARE,09/09/2013,370294,225.3,NET,Micron Cpg,55256I
Gloucester City Council,23UE,Cctv Revenue Budget,FP501,Security Equipment Serv/Repair,3038,CCTV 1250 SEP-DEC13,09/09/2013,370339,11462,NET,Bt Redcare,04692U
Gloucester City Council,23UE,City Museum Catering,LM202,Catering Provisions -Food,5110,FOOD,09/09/2013,370289,4.84,NET,Total Produce Gloucester,12645E
Gloucester City Council,23UE,City Museum Catering,LM202,Catering Provisions -Food,5110,FOOD,09/09/2013,370290,4.84,NET,Total Produce Gloucester,12645E
Gloucester City Council,23UE,City Museum Catering,LM202,Catering Provisions -Food,5110,FOOD,09/09/2013,370291,6.05,NET,Total Produce Gloucester,12645E
Gloucester City Council,23UE,City Museum Catering,LM202,Catering Provisions -Food,5110,FOOD,09/09/2013,370312,4.84,NET,Total Produce Gloucester,12645E
Gloucester City Council,23UE,City Museum Catering,LM202,Catering Provisions -Food,5110,FOOD,09/09/2013,370313,6.05,NET,Total Produce Gloucester,12645E
Gloucester City Council,23UE,City Museum Catering,LM202,Catering Provisions -Food,5110,FOOD,09/09/2013,370319,7.26,NET,Total Produce Gloucester,12645E
Gloucester City Council,23UE,Civica Admin Charges,RT105,Postages,5400,ACCT 0870585007 REVENUES,09/09/2013,370318,1282.27,NET,Royal Mail S.Wales & South West,35830S
Gloucester City Council,23UE,Civica Contract Revs & Bens,RT250,Contracted Services,6970,AUG13 pensions,09/09/2013,370337,10689.13,NET,Civica Uk Ltd,10841X
Gloucester City Council,23UE,Contact Centre,RB300,Basic Pay -Admin /Prof Staff,2601,REDACTED,09/09/2013,370327,626.75,NET,Cps Anystaff Recruitment Ltd,13945D
Gloucester City Council,23UE,Contact Centre,RB300,Basic Pay -Admin /Prof Staff,2601,REDACTED,09/09/2013,370340,770.5,NET,Cps Anystaff Recruitment Ltd,13945D
Gloucester City Council,23UE,Disabled Facilities Grants,CY013,Disabled Facility Grants,74,REDACTED,09/09/2013,369907,3956.87,CAP,Davey's Building Maintenance,57010K
Gloucester City Council,23UE,Folk Museum Catering,LM211,Catering Provisions -Food,5110,FOOD,09/09/2013,370117,4.84,NET,Total Produce Gloucester,12645E
Gloucester City Council,23UE,Homelessness,CH120,Fees For Services Received,5350,REDACTED,09/09/2013,370381,459.6,NET,REDACTED,REDACTED
Gloucester City Council,23UE,Homelessness Prevention,CH122,Fees For Services Received,5350,REDACTED,09/09/2013,370382,550,NET,Michael Tuck Lettings Ltd,04887A
Gloucester City Council,23UE,Homelessness Prevention,CH122,Basic Pay - Temporary Staff,2751,REDACTED,09/09/2013,370314,590,NET,Venn Group Ltd,04339P
Gloucester City Council,23UE,Investment Property,RB500,Consultants Fees,5349,Robinswood Hill cafe marketing,09/09/2013,370341,750,NET,Alder King*,02367D
Gloucester City Council,23UE,Legal Services,RS200,Vocational Training,2970,REDACTED,09/09/2013,370306,75,NET,No 5 Chambers,02350X
Gloucester City Council,23UE,Nms Contract,HI102,Contracted Services,6970,TRADE WASTE,09/09/2013,361160,50.72,NET,Enterprise (Aol) Ltd,06695G
Gloucester City Council,23UE,Nms Contract,HI102,Contracted Services,6970,CONTRACT AUG 2013,09/09/2013,368545,483825.75,NET,Enterprise (Aol) Ltd,06695G
Gloucester City Council,23UE,Nms Contract,HI102,Contracted Services,6970,CONTRACT SEPT 2013,09/09/2013,370303,508825.75,NET,Enterprise (Aol) Ltd,06695G
Gloucester City Council,23UE,Printing,RP103,Fees For Services Received,5350,August 2013 print room sales,09/09/2013,370217,2996.27,NET,Alpha Colour Printers Ltd,00945B
Gloucester City Council,23UE,REDACTED,REDACTED,REDACTED,REDACTED,REDACTED,09/09/2013,REDACTED,750,NET,REDACTED,REDACTED
Gloucester City Council,23UE,Shopmobility,PE200,Cleaning Materials,3600,medical waste service Sep13,09/09/2013,370279,6.67,NET,Ocs Group Uk Limited T/A Cannon,06506A
Gloucester City Council,23UE,Summer Festival,LT300,Hire Of Equipment,5020,HILLFIELD GDNS,09/09/2013,370222,325,NET,Ru Electrical Services,10389U
Gloucester City Council,23UE,Summer Festival,LT300,Hire Of Equipment,5020,HIRE 03/08/13,09/09/2013,370223,50,NET,Ru Electrical Services,10389U
Gloucester City Council,23UE,Summer Festival,LT300,Hire Of Equipment,5020,PARK 03/08/13,09/09/2013,370224,325,NET,Ru Electrical Services,10389U
Gloucester City Council,23UE,Summer Festival,LT300,Hire Of Equipment,5020,BARRIERS,09/09/2013,370305,1992.02,NET,Show Services Group Ltd,56329F
Gloucester City Council,23UE,Taxi Marshalling Scheme,HL101,Taxi Marshals,5387,Taxi Marshals 5 & 6 July 13,09/09/2013,370342,162.5,NET,Cuff Security Services Ltd,12073G
Gloucester City Council,23UE,Wake Room,HC501,Catering Provisions -Food,5110,Arbor food,09/09/2013,370090,63.62,NET,Janes Pantry,24500W
Gloucester City Council,23UE,Wake Room,HC501,Catering Provisions -Food,5110,FOOD,09/09/2013,370310,23.31,NET,Total Produce Gloucester,12645E
Gloucester City Council,23UE,Building Control,PT400,Application Fees,9312,refund for overpayment of fee,10/09/2013,370433,100,NET,REDACTED,REDACTED
Gloucester City Council,23UE,Business Transformation & Tech,RT700,Computer Software Maintenance,5427,VATMANAGER 2013 licence,10/09/2013,370436,812.5,NET,Aries Accounting Services,55437L
Gloucester City Council,23UE,Civica Contract Revs & Bens,RT250,Contracted Services,6970,CORE REVS & BENS SERVICE OCT13,10/09/2013,370137,136180.09,NET,Civica Uk Ltd,10841X
Gloucester City Council,23UE,Crematorium,HC200,"Seeds, Trees, Plants, Shrubs",3028,standard red rose,10/09/2013,370338,31.24,NET,Chepstow Plantaria Ltd (T/A Norton Gard Cen),03212B
Gloucester City Council,23UE,Development Management,PT200,Advertising And Publicity,5702,ADVERT 29/08/13,10/09/2013,370120,69.72,NET,Local World Ltd,08556P
Gloucester City Council,23UE,Development Management,PT200,Advertising And Publicity,5702,ADVERT 05/09/13,10/09/2013,370451,69.72,NET,Local World Ltd,08556P
Gloucester City Council,23UE,Development Management,PT200,Application Fees,9312,RETURNED PLANNING APPLICATION,10/09/2013,370372,1675,NET,Mjs Catering Equipment,57425Z
Gloucester City Council,23UE,Eastgate Viewing Chamber,LY100,Contract Payments,20,EASTGATE ST VIEWING CHAMBER,10/09/2013,370387,7238,CAP,Talus Construction Ltd,10401G
Gloucester City Council,23UE,Economic Development,FP300,Business Grant,7116,BUSINESS GRANT,10/09/2013,370386,500,NET,The Laundry Lounge,14078B
Gloucester City Council,23UE,Financial Services,RT200,Basic Pay -Admin /Prof Staff,2601,REDACTED,10/09/2013,370445,691.38,NET,Robert Half Ltd,03959K
Gloucester City Council,23UE,Financial Services,RT200,Basic Pay -Admin /Prof Staff,2601,REDACTED,10/09/2013,370446,684,NET,Robert Half Ltd,03959K
Gloucester City Council,23UE,Financial Services,RT200,Basic Pay -Admin /Prof Staff,2601,REDACTED,10/09/2013,370447,541.62,NET,Robert Half Ltd,03959K
Gloucester City Council,23UE,Financial Services,RT200,Basic Pay -Admin /Prof Staff,2601,FOOD,10/09/2013,370448,594,NET,Robert Half Ltd,03959K
Gloucester City Council,23UE,General Works Fund,RY203,Capital General Repairs & Main,13,manhole lifting keys,10/09/2013,370199,23.23,CAP,Ermin Plant Hire & Services Ltd,14150V
Gloucester City Council,23UE,Green Transport Policy,PJ130,Electric Car Charge,4030,HIRE SEPT 2013,10/09/2013,370388,287.35,NET,Daimler Fleet Management,07828N
Gloucester City Council,23UE,Homelessness,CH120,Rent In Advance,5516,REDACTED,10/09/2013,370463,576.92,NET,Andrews Lettings,08513J
Gloucester City Council,23UE,Homelessness,CH120,Rent In Advance,5516,REDACTED,10/09/2013,370403,549.23,NET,REDACTED,REDACTED
Gloucester City Council,23UE,Homelessness Prevention,CH122,Fees For Services Received,5350,REDACTED,10/09/2013,370463,600,NET,Andrews Lettings,08513J
Gloucester City Council,23UE,Homelessness Prevention,CH122,Fees For Services Received,5350,REDACTED,10/09/2013,370403,600,NET,REDACTED,REDACTED
Gloucester City Council,23UE,Investment Property,RB500,General Repair/Maint Buildings,3000,Blackfriars foul line jetting & cctv,10/09/2013,370203,120,NET,Drain Doctor Plumbing (Glos) Ltd,11450H
Gloucester City Council,23UE,Legal Services,RS200,Basic Pay - Temporary Staff,2751,REDACTED,10/09/2013,370384,404.45,NET,Premiere Employment Ltd,55468Z
Gloucester City Council,23UE,Legal Services,RS200,Basic Pay - Temporary Staff,2751,REDACTED,10/09/2013,370449,522.36,NET,Sellick Partnership Group Ltd,11057C
Gloucester City Council,23UE,Legal Services,RS200,Basic Pay -Admin /Prof Staff,2601,REDACTED,10/09/2013,370385,691.49,NET,Venn Group Ltd,04339P
Gloucester City Council,23UE,Summer Festival,LT300,Fees For Services Received,5350,FOOD VOUCHERS,10/09/2013,370390,73,NET,Cwmbran Chiropody & Therapy Services Ltd,14083J
Gloucester City Council,23UE,Summer Festival,LT300,Fees For Services Received,5350,DRINKS,10/09/2013,370391,80,NET,Mmm! Coffee Ltd,14093F
Gloucester City Council,23UE,Summer Festival,LT300,Fees For Services Received,5350,FUN DAY 20/07/13,10/09/2013,370389,130,NET,REDACTED,REDACTED
Gloucester City Council,23UE,Tic Coach Tickets,LT105,Materials For Sale,5080,REDACTED,10/09/2013,370454,155,NET,Superbreak Mini Holidays,00712D
Gloucester City Council,23UE,Tic Coach Tickets,LT105,Sale Of Goods And Services,9230,REDACTED,10/09/2013,370454,-12.91,NET,Superbreak Mini Holidays,00712D
Gloucester City Council,23UE,Wake Room,HC501,Cleaning Materials,3600,SANITARY UNIT AUG 2013,10/09/2013,368903,33.56,NET,Minster Cleaning Services,02158R
Gloucester City Council,23UE,Website Rebuild,RY573,Contract Payments,20,Website Dev work to 31AUG13,10/09/2013,370443,12285,CAP,Bright Starr Uk,13575R
Gloucester City Council,23UE,Avenger Task Force,FP842,Other Minor Supplies Services,5590,REDACTED,11/09/2013,370533,140,NET,Through The Gateway,14036U
Gloucester City Council,23UE,Avenger Task Force,FP842,Other Minor Supplies Services,5590,REDACTED,11/09/2013,370534,140,NET,Through The Gateway,14036U
Gloucester City Council,23UE,Blackfriars,LA609,Maintenance Of Equipment,5030,Blackfriars window % floor cleaning,11/09/2013,370531,170,NET,Gloucester Cleaning Service,17896B
Gloucester City Council,23UE,Blackfriars,LA609,Water Supply,3400,ACCT 4500101496 BLACKFRIARS,11/09/2013,369301,57.41,NET,Severn Trent Water,01823H
Gloucester City Council,23UE,Blackfriars,LA609,Water Supply,3400,ACCT 4500101496 BLACKFRIARS,11/09/2013,369769,4.38,NET,Severn Trent Water,01823H
Gloucester City Council,23UE,Business Transformation & Tech,RT700,Basic Pay - Temporary Staff,2751,REDACTED,11/09/2013,370437,1125,NET,Ffox Software Ltd,10665T
Gloucester City Council,23UE,Business Transformation & Tech,RT700,Computer Hardware <£5000,5420,HARDWARE,11/09/2013,370225,694,NET,Qual Technology,56512N
Gloucester City Council,23UE,Business Transformation & Tech,RT700,Computer Hardware <£5000,5420,HARD DRIVE,11/09/2013,370375,70,NET,Qual Technology,56512N
Gloucester City Council,23UE,Celebratory Lights,LT302,Christmas Lights,5024,XMAS LIGHTS 04/11-03/12,11/09/2013,370514,1085.22,NET,Npower Ltd,02663W
Gloucester City Council,23UE,Celebratory Lights,LT302,Christmas Lights,5024,XMAS LIGHTS 04/12-03/13,11/09/2013,370515,1104.77,NET,Npower Ltd,02663W
Gloucester City Council,23UE,Cemeteries,HC300,Trade Refuse Tipping Fees,6297,inert waste rolonof exchange,11/09/2013,370536,1080,NET,Allstone Sand & Gravel Aggregates Ltd,00940M
Gloucester City Council,23UE,Cemeteries,HC300,Trade Refuse Tipping Fees,6297,Dumper hire Aug13,11/09/2013,370546,475,NET,Allstone Sand & Gravel Aggregates Ltd,00940M
Gloucester City Council,23UE,Cemeteries,HC300,Trade Refuse Tipping Fees,6297,skip exchange,11/09/2013,370547,560,NET,Allstone Sand & Gravel Aggregates Ltd,00940M
Gloucester City Council,23UE,Cemeteries,HC300,Trade Refuse Tipping Fees,6297,mixed waste skip exchange,11/09/2013,370548,185,NET,Allstone Sand & Gravel Aggregates Ltd,00940M
Gloucester City Council,23UE,Cemeteries,HC300,Maint Of Grounds - General,3030,MECHANICAL SWEEP,11/09/2013,370298,128,NET,Enterprise (Aol) Ltd,06695G
Gloucester City Council,23UE,City Museum And Art Gallery,LM200,Advertising And Publicity,5702,Museums Sept/Dec13 brochure distribution,11/09/2013,370527,295.8,NET,Glide Media,58829J
Gloucester City Council,23UE,Contact Centre,RB300,Basic Pay -Admin /Prof Staff,2601,STAFF W/E 23/08/13,11/09/2013,369812,1296.99,NET,One To One Recruitment,04752H
Gloucester City Council,23UE,Crematorium,HC200,Repair/Maint Of Fixed Plant,3006,church candles,11/09/2013,370544,54.4,NET,The Candlelight Company,10270X
Gloucester City Council,23UE,Docks Complex - Telephones,RB120,Mobile Phones,5409,CALLS AUG 2013,11/09/2013,370395,1839.01,NET,Everything Everywhere Ltd (T-Mobile),57543S
Gloucester City Council,23UE,Electrical Investigatory Works,RY142,Capital Fire Alarms,25,wet riser/fire alarm Eastgate Mkt,11/09/2013,370202,173.65,CAP,A & E Fire Equipment Limited,54289L
Gloucester City Council,23UE,Flooding And Drainage,HE306,Maint Of Grounds - General,3030,BARNWOOD PARK,11/09/2013,370392,180,NET,Rdb Safety Boat Ltd,13507J
Gloucester City Council,23UE,Flooding And Drainage,HE306,Maint Of Grounds - General,3030,BISHOPS CASTLE WAY,11/09/2013,370393,180,NET,Rdb Safety Boat Ltd,13507J
Gloucester City Council,23UE,Folk Museum,LM210,Advertising And Publicity,5702,Museums Sept/Dec13 brochure distribution,11/09/2013,370527,295.8,NET,Glide Media,58829J
Gloucester City Council,23UE,General Drainage Works,PY241,Contract Payments,20,DINGLEWELL/GREEN LANE,11/09/2013,370516,250,CAP,Rab Consultants,13415R
Gloucester City Council,23UE,General Drainage Works,PY241,Contract Payments,20,DINGLEWELL/GREEN LANE,11/09/2013,370521,1432,CAP,Rab Consultants,13415R
Gloucester City Council,23UE,Gis Development Work,RY555,Contract Payments,20,REDACTED,11/09/2013,370434,1000,CAP,Badenoch & Clark,01536P
Gloucester City Council,23UE,Gloucester Guildhall,LA100,Cleaning Materials,3600,Guildhall window cleaning,11/09/2013,370532,80,NET,Gloucester Cleaning Service,17896B
Gloucester City Council,23UE,Gloucester Guildhall,LA100,Cleaning Materials,3600,cleaning materials,11/09/2013,368689,9.68,NET,Gpp Hygiene,06080P
Gloucester City Council,23UE,Investment Property,RB500,Fees For Services Received,5350,REDACTED,11/09/2013,370535,50,NET,Hmcts,03444B
Gloucester City Council,23UE,Investment Property,RB500,General Repair/Maint Buildings,3000,BLACKFRIARS,11/09/2013,370232,84.5,NET,Pickerings Europe Ltd*,58816U
Gloucester City Council,23UE,Legal Services,RS200,Basic Pay - Temporary Staff,2751,REDACTED,11/09/2013,369643,189,NET,Michael Page International Recruitment Ltd,06601P
Gloucester City Council,23UE,Nms Contract,HI102,General Repair/Maint Buildings,3000,CONTAINERS,11/09/2013,370379,4940,NET,Uk Container Maintenance Ltd,11122E
Gloucester City Council,23UE,Public Health,HD200,Fees For Services Received,5350,invoiced in error,11/09/2013,370523,143.72,NET,Central Manchester University Hospitals,14123Y
Gloucester City Council,23UE,Statutory Testing,RS310,Fire Fighting Equipment,3008,fire equipment inspection Robinswood Fm,11/09/2013,370210,9,NET,A & E Fire Equipment Limited,54289L
Gloucester City Council,23UE,Tic Trading,LT110,Materials For Sale,5080,20 copies of Rogues Gallery book,11/09/2013,370537,100,NET,Hidden Heritage,14063R
Gloucester City Council,23UE,Wake Room,HC501,Catering Provisions -Food,5110,FOOD,11/09/2013,370517,92.57,NET,3663,55585U
Gloucester City Council,23UE,Wake Room,HC501,Catering Provisions -Food,5110,FOOD,11/09/2013,370518,417.56,NET,3663,55585U
Gloucester City Council,23UE,Wake Room,HC501,Catering Provisions -Liquor,5111,arbor drinks,11/09/2013,370554,219.36,NET,Cellar Supplies Cheltenham Ltd,01563L
Gloucester City Council,23UE,Wake Room,HC501,Catering Provisions -Food,5110,FOOD,11/09/2013,370495,23.06,NET,Total Produce Gloucester,12645E
Gloucester City Council,23UE,Wake Room,HC501,Catering Provisions -Food,5110,FOOD,11/09/2013,370496,40.36,NET,Total Produce Gloucester,12645E
Gloucester City Council,23UE,Wake Room,HC501,Catering Provisions -Food,5110,FOOD,11/09/2013,370497,23.27,NET,Total Produce Gloucester,12645E
Gloucester City Council,23UE,Wake Room,HC501,Catering Provisions -Food,5110,FOOD,11/09/2013,370498,59.24,NET,Total Produce Gloucester,12645E
Gloucester City Council,23UE,Wake Room,HC501,Catering Provisions -Food,5110,FOOD,11/09/2013,370499,14.68,NET,Total Produce Gloucester,12645E
Gloucester City Council,23UE,Wake Room,HC501,Catering Provisions -Food,5110,FOOD,11/09/2013,370500,34.6,NET,Total Produce Gloucester,12645E
Gloucester City Council,23UE,Wake Room,HC501,Catering Provisions -Food,5110,FOOD,11/09/2013,370503,35.6,NET,Total Produce Gloucester,12645E
Gloucester City Council,23UE,Wake Room,HC501,Catering Provisions -Food,5110,FOOD,11/09/2013,370504,40.21,NET,Total Produce Gloucester,12645E
Gloucester City Council,23UE,Wake Room,HC501,Catering Provisions -Food,5110,FOOD,11/09/2013,370505,33.26,NET,Total Produce Gloucester,12645E
Gloucester City Council,23UE,Wake Room,HC501,Catering Provisions -Food,5110,FOOD,11/09/2013,370507,39.65,NET,Total Produce Gloucester,12645E
Gloucester City Council,23UE,Wake Room,HC501,Catering Provisions -Food,5110,FOOD,11/09/2013,370508,30.79,NET,Total Produce Gloucester,12645E
Gloucester City Council,23UE,Wake Room,HC501,Catering Provisions -Food,5110,FOOD,11/09/2013,370509,39.9,NET,Total Produce Gloucester,12645E
Gloucester City Council,23UE,Wake Room,HC501,Catering Provisions -Food,5110,FOOD,11/09/2013,370510,13.99,NET,Total Produce Gloucester,12645E
Gloucester City Council,23UE,Wake Room,HC501,Catering Provisions -Food,5110,FOOD,11/09/2013,370511,22.08,NET,Total Produce Gloucester,12645E
Gloucester City Council,23UE,Wake Room,HC501,Catering Provisions -Food,5110,FOOD,11/09/2013,370512,18.72,NET,Total Produce Gloucester,12645E
Gloucester City Council,23UE,Wake Room,HC501,Catering Provisions -Food,5110,FOOD,11/09/2013,370513,28.59,NET,Total Produce Gloucester,12645E
Gloucester City Council,23UE,75/81 Eastgate Street,RB501,General Repair/Maint Buildings,3000,VARIOUS JOBS,12/09/2013,370296,55,NET,Enterprise (Aol) Ltd,06695G
Gloucester City Council,23UE,Blackfriars,LA609,Cleaning Materials,3600,cleaning materials,12/09/2013,368677,308.19,NET,Gpp Hygiene,06080P
Gloucester City Council,23UE,Cctv Revenue Budget,FP501,Security Equipment Serv/Repair,3038,CCTV AUG 2013,12/09/2013,370592,1726.67,NET,Quadrant Security Group Ltd,05109A
Gloucester City Council,23UE,Cemeteries,HC300,Clothing,5200,TROUSERS,12/09/2013,370506,39.5,NET,Safpro Industrial Supply Co,39190W
Gloucester City Council,23UE,Client Revs & Bens Contract,RT240,Court Fees,5358,REDACTED,12/09/2013,370584,480,NET,Hmcts,05407N
Gloucester City Council,23UE,Council Streetcare Team,HI101,General Repair/Maint Buildings,3000,VARIOUS JOBS,12/09/2013,370296,105,NET,Enterprise (Aol) Ltd,06695G
Gloucester City Council,23UE,Council Streetcare Team,HI101,Operational Equipment <£5000,5012,GLOVES,12/09/2013,370376,13.2,NET,Safpro Industrial Supply Co,39190W
Gloucester City Council,23UE,Countryside Unit,LP201,Vet Fees,5842,GOODS,12/09/2013,370216,44.99,NET,Countrywide Farmers*,55687J
Gloucester City Council,23UE,Crematorium,HC200,Repair/Maint Of Fixed Plant,3006,Crem 9 monthly service visit,12/09/2013,370557,1102.5,NET,Facultatieve Technologies Ltd,51210H
Gloucester City Council,23UE,Crematorium,HC200,Cleaning Materials,3600,SANITARY UNITS,12/09/2013,370589,16.78,NET,Minster Cleaning Services,02158R
Gloucester City Council,23UE,Development Management,PT200,Application Fees,9312,APPLICATION WITHDRAWN,12/09/2013,370619,385,NET,REDACTED,REDACTED
Gloucester City Council,23UE,Docks Complex - Services,RB100,Cleaning Materials,3600,BIN LINERS,12/09/2013,370612,22.05,NET,Core Hygiene Ltd,03885P
Gloucester City Council,23UE,Docks Complex - Telephones,RB120,Telephones And Fax,5410,REDACTED,12/09/2013,370398,33,NET,Virgin Media Payments Ltd,09376J
Gloucester City Council,23UE,Docks Complex - Telephones,RB120,Telephones And Fax,5410,REDACTED,12/09/2013,370400,30,NET,Virgin Media Payments Ltd,09376J
Gloucester City Council,23UE,Docks Complex - Telephones,RB120,Telephones And Fax,5410,REDACTED,12/09/2013,370401,30,NET,Virgin Media Payments Ltd,09376J
Gloucester City Council,23UE,Docks Complex - Telephones,RB120,Telephones And Fax,5410,REDACTED,12/09/2013,370456,33,NET,Virgin Media Payments Ltd,09376J
Gloucester City Council,23UE,Docks Complex - Telephones,RB120,Telephones And Fax,5410,ACCT 510738402,12/09/2013,370457,33,NET,Virgin Media Payments Ltd,09376J
Gloucester City Council,23UE,Docks Complex - Telephones,RB120,Telephones And Fax,5410,ACCT 511159201,12/09/2013,370458,80,NET,Virgin Media Payments Ltd,09376J
Gloucester City Council,23UE,Docks Complex - Telephones,RB120,Telephones And Fax,5410,ACCT 510738303 LIFT LINE,12/09/2013,370461,13.38,NET,Virgin Media Payments Ltd,09376J
Gloucester City Council,23UE,Eastgate Viewing Chamber,LY100,Contract Payments,20,road closure barriers Eastgate Chamber,12/09/2013,370540,150,CAP,Ken Pink Plant Hire Ltd,56884V
Gloucester City Council,23UE,Environmental Planning,LM340,Repair/Maint Of Monuments,3004,Eastgate chamber emergency fencing,12/09/2013,370538,360.18,NET,Ken Pink Plant Hire Ltd,56884V
Gloucester City Council,23UE,Folk Museum Catering,LM211,Catering Provisions -Liquor,5111,folk museum drinks,12/09/2013,370552,21.98,NET,Cellar Supplies Cheltenham Ltd,01563L
Gloucester City Council,23UE,Folk Museum Catering,LM211,Catering Provisions -Liquor,5111,Folk museum drinks,12/09/2013,370553,24.98,NET,Cellar Supplies Cheltenham Ltd,01563L
Gloucester City Council,23UE,Folk Museum Catering,LM211,Catering Provisions -Food,5110,Folk Museum food,12/09/2013,370092,9.85,NET,Janes Pantry,24500W
Gloucester City Council,23UE,Folk Museum Catering,LM211,Catering Provisions -Food,5110,Folk Museum food,12/09/2013,370439,4.92,NET,Janes Pantry,24500W
Gloucester City Council,23UE,Guildhall Bar And Caf�,LA210,Catering Provisions -Liquor,5111,Guildhall beergas,12/09/2013,370429,40.51,NET,Boc Ltd,59172L
Gloucester City Council,23UE,Guildhall Bar And Caf�,LA210,Catering Provisions -Food,5110,Guildhall food,12/09/2013,369758,24.15,NET,Janes Pantry,24500W
Gloucester City Council,23UE,Guildhall Bar And Caf�,LA210,Catering Provisions -Food,5110,FOOD,12/09/2013,370292,4.84,NET,Total Produce Gloucester,12645E
Gloucester City Council,23UE,Hempsted Market/Car Boot,HM234,Hire Of Equipment,5020,HIRE SEPT 2013,12/09/2013,370109,254.19,NET,Portable Offices (Hire ) Ltd*,06286R
Gloucester City Council,23UE,Homelessness,CH120,Rent In Advance,5516,REDACTED,12/09/2013,370616,285,NET,REDACTED,REDACTED
Gloucester City Council,23UE,Homelessness Prevention,CH122,Basic Pay - Temporary Staff,2751,REDACTED,12/09/2013,370609,737.41,NET,James Andrews Recruitment Solutions,13636W
Gloucester City Council,23UE,Housing Works In Default,HD500,Clearance And Cleansing Fees,5384,VARIOUS JOBS,12/09/2013,370296,350,NET,Enterprise (Aol) Ltd,06695G
Gloucester City Council,23UE,Investment Property,RB500,General Repair/Maint Buildings,3000,Air cooler hire,12/09/2013,370205,394,NET,Ermin Plant Hire & Services Ltd,14150V
Gloucester City Council,23UE,Investment Property,RB500,General Repair/Maint Buildings,3000,St Oswalds Park JCB hire with driver,12/09/2013,370539,90,NET,Ken Pink Plant Hire Ltd,56884V
Gloucester City Council,23UE,Neighbourhood Partnerships,FP104,Fees For Services Received,5350,NEIGHBOURHOOD GRANT 2013/14,12/09/2013,370608,930,NET,Gl4 Together,14128M
Gloucester City Council,23UE,Nms Contract,HI102,Maintenance Of Equipment,5030,VARIOUS JOBS,12/09/2013,370296,346.1,NET,Enterprise (Aol) Ltd,06695G
Gloucester City Council,23UE,Nms Contract,HI102,Safety Equipment,5013,GLOVES,12/09/2013,370376,53.7,NET,Safpro Industrial Supply Co,39190W
Gloucester City Council,23UE,Parks Contract Management,LP100,Maint Of Grounds - General,3030,VARIOUS JOBS,12/09/2013,370296,80.31,NET,Enterprise (Aol) Ltd,06695G
Gloucester City Council,23UE,Photocopying,RS130,Photocopying,5320,copy costs August 2013,12/09/2013,370432,52.43,NET,Abbey Business Equipment Ltd,55610X
Gloucester City Council,23UE,Retail Market - Landlord,HM300,Operational Equipment <£5000,5012,LAMPS,12/09/2013,368420,183.3,NET,City Electrical Factors*,09325C
Gloucester City Council,23UE,Retail Market - Landlord,HM300,Operational Equipment <£5000,5012,10w G24d-1 lamps,12/09/2013,369750,18.54,NET,City Electrical Factors*,09325C
Gloucester City Council,23UE,Retail Market - Landlord,HM300,Operational Equipment <£5000,5012,10w G24d-1 lamps,12/09/2013,369751,43.26,NET,City Electrical Factors*,09325C
Gloucester City Council,23UE,Retail Market - Landlord,HM300,Operational Equipment <£5000,5012,RE REFUNDED CREDIT GLO/171128 ALSO TAKEN,12/09/2013,370108,66.63,NET,City Electrical Factors*,09325C
Gloucester City Council,23UE,Retail Market - Landlord,HM300,Operational Equipment <£5000,5012,WASTE DISPOSAL,12/09/2013,370397,69.95,NET,Phs Group Ltd,55193S
Gloucester City Council,23UE,Retail Market - Landlord,HM300,Operational Equipment <£5000,5012,HIRE SPET 2013,12/09/2013,370394,280.56,NET,System Rental Uk Ltd,03239E
Gloucester City Council,23UE,Swrda Asset Transfer,RY184,Capital Intruder & Cctv,19,Albion Cottages CCTV ducting,12/09/2013,370212,3102.5,CAP,Drainaway Environmental Services Limited,12923Z
Gloucester City Council,23UE,Training Schemes,ET100,Fees For Services Received,5350,NVQ ASSESSMENTS,12/09/2013,370610,800,NET,The Gold Standard,56141C
Gloucester City Council,23UE,Website Rebuild,RY573,Consultants Fees,30,REDACTED,12/09/2013,370591,2250,CAP,Patzone It Solutions Ltd,13059R
Gloucester City Council,23UE,Westgate Leisure Area S106,LY155,Contract Payments,20,WESTAGTE AREA,12/09/2013,370587,1575,CAP,Peter Quinn Associates,12891L
Gloucester City Council,23UE,Aspire Admin Charges,LC105,Other Minor Income,9900,bailiff payment 10/09/13,13/09/2013,370622,133,NET,Aspire Sports & Cultural Trust,08135V
Gloucester City Council,23UE,Aspire Admin Charges,LC105,Security Services Fees,5351,JUL13 CASH SERVICES,13/09/2013,365867,254.34,NET,G4s Cash Solutions (Uk) Ltd,04290V
Gloucester City Council,23UE,Aspire Admin Charges,LC105,Security Services Fees,5351,SEPT13 cash handling services,13/09/2013,369500,254.34,NET,G4s Cash Solutions (Uk) Ltd,04290V
Gloucester City Council,23UE,Blackfriars,LA609,Hire Of Equipment,5020,RENTAL SEP-DEC 2013,13/09/2013,369105,52.65,NET,Wessex Products (Leasing) Ltd,03684C
Gloucester City Council,23UE,Blackfriars Catering,LA220,Catering Provisions -Liquor,5111,Blackfriars drinks,13/09/2013,370667,63.68,NET,Cellar Supplies Cheltenham Ltd,01563L
Gloucester City Council,23UE,Blackfriars Catering,LA220,Catering Provisions -Liquor,5111,Blackfriars drinks,13/09/2013,370669,69.98,NET,Cellar Supplies Cheltenham Ltd,01563L
Gloucester City Council,23UE,Business Transformation & Tech,RT700,Basic Pay - Temporary Staff,2751,REDACTED,13/09/2013,370684,4030,NET,Vector Resourcing Ltd,11664K
Gloucester City Council,23UE,Business Transformation & Tech,RT700,Basic Pay - Temporary Staff,2751,REDACTED,13/09/2013,370687,5550.5,NET,Vector Resourcing Ltd,11664K
Gloucester City Council,23UE,Cemeteries,HC300,Purch Vehicles/M. Plant <£5000,4000,TAX VK61 HFN,13/09/2013,370675,220,NET,Post Office Ltd,48040J
Gloucester City Council,23UE,Cemeteries,HC300,Operational Materials,5070,STORAGE UNIT,13/09/2013,370686,508,NET,Rapid Racking Ltd,54545S
Gloucester City Council,23UE,Cems/Crems Admin,HC100,Security Services Fees,5351,JUL13 CASH SERVICES,13/09/2013,365867,84.78,NET,G4s Cash Solutions (Uk) Ltd,04290V
Gloucester City Council,23UE,Cems/Crems Admin,HC100,Security Services Fees,5351,SEPT13 cash handling services,13/09/2013,369500,84.78,NET,G4s Cash Solutions (Uk) Ltd,04290V
Gloucester City Council,23UE,Cems/Crems Admin,HC100,Office Equipment <£5000,5010,DIARY,13/09/2013,370688,1.96,NET,Office Star Group Ltd,55874H
Gloucester City Council,23UE,City Museum And Art Gallery,LM200,Printing,5300,postcard proofs,13/09/2013,369444,22.5,NET,Alpha Colour Printers Ltd,00945B
Gloucester City Council,23UE,City Museum And Art Gallery,LM200,Security Services Fees,5351,JUL13 CASH SERVICES,13/09/2013,365867,84.78,NET,G4s Cash Solutions (Uk) Ltd,04290V
Gloucester City Council,23UE,City Museum And Art Gallery,LM200,Security Services Fees,5351,SEPT13 cash handling services,13/09/2013,369500,84.78,NET,G4s Cash Solutions (Uk) Ltd,04290V
Gloucester City Council,23UE,City Museum Catering,LM202,Catering Provisions -Food,5110,FOOD,13/09/2013,370699,32.88,NET,Woodward Foodservice,10714F
Gloucester City Council,23UE,City Museum Catering,LM202,Catering Provisions -Food,5110,FOOD,13/09/2013,370707,52.96,NET,Woodward Foodservice,10714F
Gloucester City Council,23UE,City Museum Catering,LM202,Catering Provisions -Food,5110,FOOD,13/09/2013,370709,87.83,NET,Woodward Foodservice,10714F
Gloucester City Council,23UE,City Museum Catering,LM202,Catering Provisions -Food,5110,FOOD,13/09/2013,370710,67.07,NET,Woodward Foodservice,10714F
Gloucester City Council,23UE,City Museum Catering,LM202,Catering Provisions -Food,5110,FOOD,13/09/2013,370711,118.61,NET,Woodward Foodservice,10714F
Gloucester City Council,23UE,City Museum Catering,LM202,Catering Provisions -Food,5110,FOOD,13/09/2013,370712,44.52,NET,Woodward Foodservice,10714F
Gloucester City Council,23UE,Client Revs & Bens Contract,RT240,Bailiffs Fees,5368,VAT only invoice - Business Rates,13/09/2013,369429,0,NET,Bristow & Sutor,05450M
Gloucester City Council,23UE,Client Revs & Bens Contract,RT240,Bailiffs Fees,5368,VAT only invoice - Council Tax,13/09/2013,369430,0,NET,Bristow & Sutor,05450M
Gloucester City Council,23UE,Client Revs & Bens Contract,RT240,Bailiffs Fees,5368,VAT only invoice - Council Tax,13/09/2013,369721,0,NET,Bristow & Sutor,05450M
Gloucester City Council,23UE,Client Revs & Bens Contract,RT240,Bailiffs Fees,5368,VAT only invoice - Business Rates,13/09/2013,369722,0,NET,Bristow & Sutor,05450M
Gloucester City Council,23UE,Client Revs & Bens Contract,RT240,Bailiffs Fees,5368,VAT only invoice - Business Rates,13/09/2013,369996,0,NET,Bristow & Sutor,05450M
Gloucester City Council,23UE,Client Revs & Bens Contract,RT240,Bailiffs Fees,5368,VAT only invoice - Council Tax,13/09/2013,369997,0,NET,Bristow & Sutor,05450M
Gloucester City Council,23UE,Client Revs & Bens Contract,RT240,Bailiffs Fees,5368,VAT only invoice - Council Tax,13/09/2013,370427,0,NET,Bristow & Sutor,05450M
Gloucester City Council,23UE,Client Revs & Bens Contract,RT240,Bailiffs Fees,5368,VAT only invoice - Business Rates,13/09/2013,370428,0,NET,Bristow & Sutor,05450M
Gloucester City Council,23UE,Client Revs & Bens Contract,RT240,Security Services Fees,5351,JUL13 CASH SERVICES,13/09/2013,365867,253.23,NET,G4s Cash Solutions (Uk) Ltd,04290V
Gloucester City Council,23UE,Client Revs & Bens Contract,RT240,Security Services Fees,5351,SEPT13 cash handling services,13/09/2013,369500,253.23,NET,G4s Cash Solutions (Uk) Ltd,04290V
Gloucester City Council,23UE,Docks Complex - Services,RB100,Cleaning Materials,3600,DOCKS CLEANING MATERIALS,13/09/2013,370611,163.09,NET,Core Hygiene Ltd,03885P
Gloucester City Council,23UE,Docks Complex - Telephones,RB120,Telephones And Fax,5410,a/c SS77662317 01452 310336,13/09/2013,370431,65.11,NET,Bt Payment Services Ltd,56283E
Gloucester City Council,23UE,Docks Complex - Telephones,RB120,Mobile Phones,5409,PHONES,13/09/2013,370593,242,NET,Everything Everywhere Ltd (T-Mobile),02334V
Gloucester City Council,23UE,Docks Complex - Telephones,RB120,Telephones And Fax,5410,ACCT 513231401,13/09/2013,370460,132,NET,Virgin Media Payments Ltd,09376J
Gloucester City Council,23UE,Financial Services,RT200,Fees For Services Received,5350,VAT ONLY INVOICE,13/09/2013,369883,0,NET,Phoenix Commercial Collections Ltd,13435J
Gloucester City Council,23UE,Flooding And Drainage,HE306,Maint Of Grounds - General,3030,Clearance work various watercourse sites,13/09/2013,370541,675,NET,Btcv T/A The Conservation Volunteers,55897V
Gloucester City Council,23UE,Folk Museum,LM210,Printing,5300,postcard proofs,13/09/2013,369444,22.5,NET,Alpha Colour Printers Ltd,00945B
Gloucester City Council,23UE,Folk Museum,LM210,Security Services Fees,5351,JUL13 CASH SERVICES,13/09/2013,365867,84.78,NET,G4s Cash Solutions (Uk) Ltd,04290V
Gloucester City Council,23UE,Folk Museum,LM210,Security Services Fees,5351,SEPT13 cash handling services,13/09/2013,369500,84.78,NET,G4s Cash Solutions (Uk) Ltd,04290V
Gloucester City Council,23UE,Folk Museum Catering,LM211,Catering Provisions -Liquor,5111,city museum drinks,13/09/2013,370550,26,NET,Cellar Supplies Cheltenham Ltd,01563L
Gloucester City Council,23UE,Folk Museum Catering,LM211,Catering Provisions -Liquor,5111,city museum drinks,13/09/2013,370551,45.98,NET,Cellar Supplies Cheltenham Ltd,01563L
Gloucester City Council,23UE,Folk Museum Catering,LM211,Catering Provisions -Liquor,5111,city museum drinks,13/09/2013,370555,26,NET,Cellar Supplies Cheltenham Ltd,01563L
Gloucester City Council,23UE,Folk Museum Catering,LM211,Catering Provisions -Food,5110,FOOD,13/09/2013,370676,20.65,NET,Taynton Farm Foods,09653F
Gloucester City Council,23UE,Folk Museum Catering,LM211,Catering Provisions -Food,5110,FOOD,13/09/2013,370694,4.84,NET,Total Produce Gloucester,12645E
Gloucester City Council,23UE,Folk Museum Catering,LM211,Catering Provisions -Food,5110,FOOD,13/09/2013,370716,4.84,NET,Total Produce Gloucester,12645E
Gloucester City Council,23UE,Folk Museum Catering,LM211,Catering Provisions -Food,5110,FOOD,13/09/2013,370689,69.89,NET,Woody'S Fruit & Veg,11798L
Gloucester City Council,23UE,Gloucester Guildhall,LA100,Security Services Fees,5351,JUL13 CASH SERVICES,13/09/2013,365867,84.78,NET,G4s Cash Solutions (Uk) Ltd,04290V
Gloucester City Council,23UE,Gloucester Guildhall,LA100,Security Services Fees,5351,SEPT13 cash handling services,13/09/2013,369500,84.78,NET,G4s Cash Solutions (Uk) Ltd,04290V
Gloucester City Council,23UE,Gloucester Guildhall,LA100,Security Services Fees,5351,SECURITY AUG 2013,13/09/2013,370624,787.75,NET,Nsgl Ltd,12539E
Gloucester City Council,23UE,Guildhall Bar And Caf�,LA210,Catering Provisions -Liquor,5111,Guildhall drinks,13/09/2013,370670,468.06,NET,Cellar Supplies Cheltenham Ltd,01563L
Gloucester City Council,23UE,Guildhall Bar And Caf�,LA210,Catering Provisions -Liquor,5111,GUILDHALL DRINKS,13/09/2013,370671,1607.98,NET,Cellar Supplies Cheltenham Ltd,01563L
Gloucester City Council,23UE,Guildhall Bar And Caf�,LA210,Catering Provisions -Food,5110,Guildhall food,13/09/2013,370441,16.27,NET,Janes Pantry,24500W
Gloucester City Council,23UE,Guildhall Bar And Caf�,LA210,Catering Provisions -Food,5110,FOOD,13/09/2013,370679,4.84,NET,Total Produce Gloucester,12645E
Gloucester City Council,23UE,Guildhall Bar And Caf�,LA210,Catering Provisions -Food,5110,FOOD,13/09/2013,370680,4.84,NET,Total Produce Gloucester,12645E
Gloucester City Council,23UE,Guildhall Bar And Caf�,LA210,Catering Provisions -Food,5110,FOOD,13/09/2013,370681,4.84,NET,Total Produce Gloucester,12645E
Gloucester City Council,23UE,Guildhall Bar And Caf�,LA210,Catering Provisions -Food,5110,FOOD,13/09/2013,370682,4.84,NET,Total Produce Gloucester,12645E
Gloucester City Council,23UE,Guildhall Bar And Caf�,LA210,Catering Provisions -Food,5110,FOOD,13/09/2013,370683,4.84,NET,Total Produce Gloucester,12645E
Gloucester City Council,23UE,Guildhall Bar And Caf�,LA210,Catering Provisions -Food,5110,FOOD,13/09/2013,370691,4.84,NET,Total Produce Gloucester,12645E
Gloucester City Council,23UE,Guildhall Bar And Caf�,LA210,Catering Provisions -Food,5110,FOOD,13/09/2013,370692,4.84,NET,Total Produce Gloucester,12645E
Gloucester City Council,23UE,Guildhall Bar And Caf�,LA210,Catering Provisions -Food,5110,FOOD,13/09/2013,370693,4.84,NET,Total Produce Gloucester,12645E
Gloucester City Council,23UE,Guildhall Bar And Caf�,LA210,Catering Provisions -Food,5110,FOOD,13/09/2013,370678,43.22,NET,Woodward Foodservice,10714F
Gloucester City Council,23UE,Guildhall Bar And Caf�,LA210,Catering Provisions -Food,5110,FOOD,13/09/2013,370698,70.86,NET,Woodward Foodservice,10714F
Gloucester City Council,23UE,Guildhall Bar And Caf�,LA210,Catering Provisions -Food,5110,FOOD,13/09/2013,370708,167.71,NET,Woodward Foodservice,10714F
Gloucester City Council,23UE,Guildhall Bar And Caf�,LA210,Catering Provisions -Food,5110,FOOD,13/09/2013,370690,182.49,NET,Woody's Fruit & Veg,11798L
Gloucester City Council,23UE,Legal Services,RS200,Basic Pay -Admin /Prof Staff,2601,REDACTED,13/09/2013,370696,1127.23,NET,Venn Group Ltd,04339P
Gloucester City Council,23UE,Mortgage Rescue,CH128,Fees For Services Received,5350,REDACTED,13/09/2013,370595,346.8,NET,One To One Recruitment,04752H
Gloucester City Council,23UE,Mortgage Rescue,CH128,Fees For Services Received,5350,REDACTED,13/09/2013,370596,469.2,NET,One To One Recruitment,04752H
Gloucester City Council,23UE,REDACTED,REDACTED,REDACTED,REDACTED,REDACTED,13/09/2013,REDACTED,75,NET,REDACTED,REDACTED
Gloucester City Council,23UE,Registration Of Electors,RS400,Fees For Services Received,5350,Polling booth storage August 2013,13/09/2013,370438,235,NET,Armstrong Removals,04632N
Gloucester City Council,23UE,Stationery Services,RS150,Stationery,5302,STATIONERY,13/09/2013,370702,153.77,NET,Lyreco Uk Ltd,11746G
Gloucester City Council,23UE,Stationery Services,RS150,Stationery,5302,STATIONERY,13/09/2013,370703,52.82,NET,Lyreco Uk Ltd,11746G
Gloucester City Council,23UE,Stationery Services,RS150,Stationery,5302,STATIONERY,13/09/2013,370704,189.67,NET,Lyreco Uk Ltd,11746G
Gloucester City Council,23UE,Tourism Marketing,LT100,Security Services Fees,5351,JUL13 CASH SERVICES,13/09/2013,365867,84.78,NET,G4s Cash Solutions (Uk) Ltd,04290V
Gloucester City Council,23UE,Tourism Marketing,LT100,Security Services Fees,5351,SEPT13 cash handling services,13/09/2013,369500,84.78,NET,G4s Cash Solutions (Uk) Ltd,04290V
Gloucester City Council,23UE,Youth Grant 2011/12,FP107,Funding Vol&Com Grps-Grants,7100C,Youth Grant 2013-14,13/09/2013,370276,1440,NET,Btcv T/A The Conservation Volunteers,55897V
Gloucester City Council,23UE,Aspire Admin Charges,LC105,Fees For Services Received,5350,AUG13 GL1 memberships,16/09/2013,370752,651,NET,Aspire Sports & Cultural Trust,08135V
Gloucester City Council,23UE,Blackfriars,LA609,Sale Of Goods And Services,9230,REFUND OF HIRE FEE,16/09/2013,370674,440,NET,REDACTED,REDACTED
Gloucester City Council,23UE,Business Transformation & Tech,RT700,Computer Software Maintenance,5427,Leisureflex support Oct13-Sept14,16/09/2013,370556,8259.35,NET,Clarity Retail Systems,10290R
Gloucester City Council,23UE,City Museum And Art Gallery,LM200,Publications For Sale,5064,City Museum shop stock,16/09/2013,369550,556.45,NET,Half Moon Bay Ltd,08240F
Gloucester City Council,23UE,Client Revs & Bens Contract,RT240,Fees For Services Received,5350,REDACTED,16/09/2013,370526,919.58,NET,Gleeds,50497R
Gloucester City Council,23UE,Contact Centre,RB300,Basic Pay -Admin /Prof Staff,2601,STAFF W/E 08/09/13,16/09/2013,370598,755.83,NET,One To One Recruitment,04752H
Gloucester City Council,23UE,Crematorium,HC200,Maint Of Grounds - General,3030,35 BARE ROOTED ROSES,16/09/2013,370761,875,NET,Genus Plant Sourcing,14143S
Gloucester City Council,23UE,Development Management,PT200,Application Fees,9312,PLANNING APP WITHDRAWN,16/09/2013,370715,385,NET,REDACTED,REDACTED
Gloucester City Council,23UE,Docks Complex - Catering Servs,RB110,Catering Provisions -Food,5110,docks food,16/09/2013,370787,22.46,NET,J & M Provisions Ltd,04292R
Gloucester City Council,23UE,Docks Complex - Catering Servs,RB110,Catering Provisions -Food,5110,docks food,16/09/2013,370792,8.46,NET,J & M Provisions Ltd,04292R
Gloucester City Council,23UE,Docks Complex - Catering Servs,RB110,Catering Provisions -Food,5110,docks food,16/09/2013,370793,14,NET,J & M Provisions Ltd,04292R
Gloucester City Council,23UE,Docks Complex - Catering Servs,RB110,Catering Provisions -Food,5110,docks food,16/09/2013,370794,18.96,NET,J & M Provisions Ltd,04292R
Gloucester City Council,23UE,Docks Complex - Catering Servs,RB110,Catering Provisions -Food,5110,docks food,16/09/2013,370795,21,NET,J & M Provisions Ltd,04292R
Gloucester City Council,23UE,Docks Complex - Catering Servs,RB110,Catering Provisions -Food,5110,docks food,16/09/2013,370796,10.5,NET,J & M Provisions Ltd,04292R
Gloucester City Council,23UE,Docks Complex - Services,RB100,Cleaning Materials,3600,cleaning materials,16/09/2013,370790,15.9,NET,Core Hygiene Ltd,03885P
Gloucester City Council,23UE,Docks Complex - Telephones,RB120,Telephones And Fax,5410,call charges Sept13,16/09/2013,370782,2360.2,NET,Gamma Business Communications,10260A
Gloucester City Council,23UE,Docks Complex - Telephones,RB120,Lease Lines,5411,leased lines Sept13,16/09/2013,370789,3948.11,NET,Gamma Business Communications,10260A
Gloucester City Council,23UE,Docks Complex - Telephones,RB120,Mobile Phones,5409,ACCT 683678256/00001,16/09/2013,370594,25.54,NET,Vodafone Ltd,53527D
Gloucester City Council,23UE,Drivers Budget,RL501,Fees For Services Received,5350,staff room furniture,16/09/2013,370668,666.67,NET,Ikea Business Accounts,10321F
Gloucester City Council,23UE,Events Bidding,LT405,Fees For Services Received,5350,EVENT GRANT,16/09/2013,370631,175,NET,Marketing Gloucester Ltd,08925E
Gloucester City Council,23UE,Folk Museum,LM210,Publications For Sale,5064,City Museum shop stock,16/09/2013,369550,561,NET,Half Moon Bay Ltd,08240F
Gloucester City Council,23UE,Folk Museum Catering,LM211,Catering Provisions -Food,5110,FOOD,16/09/2013,370771,79.34,NET,3663,55585U
Gloucester City Council,23UE,Folk Museum Catering,LM211,Catering Provisions -Food,5110,FOOD,16/09/2013,370777,54.58,NET,3663,55585U
Gloucester City Council,23UE,Folk Museum Catering,LM211,Catering Provisions -Food,5110,FOOD,16/09/2013,370762,19.19,NET,Total Produce Gloucester,12645E
Gloucester City Council,23UE,Folk Museum Catering,LM211,Catering Provisions -Food,5110,FOOD,16/09/2013,370763,3.8,NET,Total Produce Gloucester,12645E
Gloucester City Council,23UE,Folk Museum Catering,LM211,Catering Provisions -Food,5110,FOOD,16/09/2013,370764,4.84,NET,Total Produce Gloucester,12645E
Gloucester City Council,23UE,Folk Museum Catering,LM211,Catering Provisions -Food,5110,FOOD,16/09/2013,370765,3.63,NET,Total Produce Gloucester,12645E
Gloucester City Council,23UE,Folk Museum Catering,LM211,Catering Provisions -Food,5110,FOOD,16/09/2013,370772,6.05,NET,Total Produce Gloucester,12645E
Gloucester City Council,23UE,Folk Museum Catering,LM211,Catering Provisions -Food,5110,FOOD,16/09/2013,370773,3.8,NET,Total Produce Gloucester,12645E
Gloucester City Council,23UE,Folk Museum Catering,LM211,Catering Provisions -Food,5110,FOOD,16/09/2013,370774,4.84,NET,Total Produce Gloucester,12645E
Gloucester City Council,23UE,Folk Museum Catering,LM211,Catering Provisions -Food,5110,FOOD,16/09/2013,370775,4.84,NET,Total Produce Gloucester,12645E
Gloucester City Council,23UE,Group Mgr Planning & Economy,GR101,Vocational Training,2970,training course 20/09/13,16/09/2013,370749,38,NET,Ihbc (South West),14138J
Gloucester City Council,23UE,Hempsted Market/Car Boot,HM234,Security Services Fees,5351,SECURITY AUG 2013,16/09/2013,370776,1593.6,NET,Nsgl Ltd,12539E
Gloucester City Council,23UE,Homelessness,CH120,Rent In Advance,5516,REDACTED,16/09/2013,370759,500,NET,REDACTED,REDACTED
Gloucester City Council,23UE,Homelessness Prevention,CH122,Fees For Services Received,5350,REDACTED,16/09/2013,370760,500,NET,Cgt Lettings,05899H
Gloucester City Council,23UE,Homelessness Prevention,CH122,Fees For Services Received,5350,REDACTED,16/09/2013,370759,484.6,NET,REDACTED,REDACTED
Gloucester City Council,23UE,Homelessness Prevention,CH122,Basic Pay - Temporary Staff,2751,REDACTED,16/09/2013,370695,740,NET,Venn Group Ltd,04339P
Gloucester City Council,23UE,Legal Services,RS200,Vocational Training,2970,SW training day 18/6/13 S Issac,16/09/2013,370754,75,NET,The Institute Of Licensing Ltd,11205Z
Gloucester City Council,23UE,Non-Distributed Costs,RC150,Medical Expenses,2950,PAYE SETTLEMENT AGREEMENT 2012/13,16/09/2013,370781,539.97,NET,Hm Revenue & Customs,07644B
Gloucester City Council,23UE,Registration Of Electors,RS400,Fees For Services Received,5350,ROOM HIRE MAY 2013,16/09/2013,370155,120,NET,St Oswald'S PCC,10662X
Gloucester City Council,23UE,Retail Market - Landlord,HM300,Sewerage And Environ Charges,3402,MARKET,16/09/2013,370766,85,NET,Three Counties Drain Service,44033V
Gloucester City Council,23UE,Summer Festival,LT300,Hire Of Equipment,5020,"Gloucester Park dispays 1,3&4 AUG13",16/09/2013,370753,480,NET,Friendship Cafe,59375U
Gloucester City Council,23UE,Active Space At Abbeydale,LY149,Contract Payments,20,Active Spaces - Abbeydale Comm Ctr,17/09/2013,370872,1750,CAP,Astam G.B.C. Consultancy Ltd,55027L
Gloucester City Council,23UE,Aspire Admin Charges,LC105,Contracted Services,6970,September 2013 management fees,17/09/2013,370193,79792.5,NET,Aspire Sports & Cultural Trust,08135V
Gloucester City Council,23UE,Aspire Admin Charges,LC105,Security Services Fees,5351,Cash in transit services October 2013,17/09/2013,370834,254.34,NET,G4s Cash Solutions (Uk) Ltd,04290V
Gloucester City Council,23UE,Building Control,PT400,Basic Pay -Admin /Prof Staff,2601,ADVERTISING,17/09/2013,370623,600,NET,Syon Publishing Ltd,14167B
Gloucester City Council,23UE,Building Control,PT400,Basic Pay -Admin /Prof Staff,2601,ADVERTISING,17/09/2013,370630,600,NET,Syon Publishing Ltd,14167B
Gloucester City Council,23UE,Business Support,PT250,Fuel,4012,vehicle fuel,17/09/2013,370522,173.7,NET,Allstar Business Solutions Ltd (Arval),06594A
Gloucester City Council,23UE,Business Support,PT250,Basic Pay - Temporary Staff,2751,STAFF W/E 06/09/13,17/09/2013,370597,916.4,NET,One To One Recruitment,04752H
Gloucester City Council,23UE,Business Support,PT250,Basic Pay - Temporary Staff,2751,STAFF W/E 30/08/13,17/09/2013,370601,266.8,NET,One To One Recruitment,04752H
Gloucester City Council,23UE,Business Support,PT250,Fuel,4012,STAFF W/E 30/08/13,17/09/2013,370602,371.2,NET,One To One Recruitment,04752H
Gloucester City Council,23UE,Cedar Upgrade 2011/12,RY250,Contract Payments,20,expenses recharges,17/09/2013,370786,72.68,CAP,Advanced Business Solutions,06072N
Gloucester City Council,23UE,Cemeteries,HC300,Fuel,4012,Anti-wax,17/09/2013,370873,40,NET,Cpl Petroleum,55192U
Gloucester City Council,23UE,Cemeteries,HC300,Operational Materials,5070,John Deere Gator parts & labour,17/09/2013,370840,81.88,NET,Garden Machinery Gloucester,55641K
Gloucester City Council,23UE,Cems/Crems Admin,HC100,Security Services Fees,5351,Cash in transit services October 2013,17/09/2013,370834,84.78,NET,G4s Cash Solutions (Uk) Ltd,04290V
Gloucester City Council,23UE,City Museum And Art Gallery,LM200,Security Services Fees,5351,Cash in transit services October 2013,17/09/2013,370834,84.77,NET,G4s Cash Solutions (Uk) Ltd,04290V
Gloucester City Council,23UE,Client Revs & Bens Contract,RT240,Bailiffs Fees,5368,VAT only invoice - Business Rates,17/09/2013,370783,0,NET,Bristow & Sutor,05450M
Gloucester City Council,23UE,Client Revs & Bens Contract,RT240,Bailiffs Fees,5368,VAT & fees - council tax,17/09/2013,370784,24.5,NET,Bristow & Sutor,05450M
Gloucester City Council,23UE,Client Revs & Bens Contract,RT240,Court Fees,5358,REDACTED,17/09/2013,368184,210,NET,Cotswold District Council,49331J
Gloucester City Council,23UE,Client Revs & Bens Contract,RT240,Security Services Fees,5351,Cash in transit services October 2013,17/09/2013,370834,253.26,NET,G4s Cash Solutions (Uk) Ltd,04290V
Gloucester City Council,23UE,Council Streetcare Team,HI101,Advertising And Publicity,5702,ADVERT 05/09/13,17/09/2013,370455,255.64,NET,Local World Ltd,08556P
Gloucester City Council,23UE,Countryside Unit,LP201,Routine R And M - Vehicles,4011,deck belt,17/09/2013,370843,100.62,NET,Commercial Mower Supplies,06799D
Gloucester City Council,23UE,Countryside Unit,LP201,Routine R And M - Vehicles,4011,blade bolt,17/09/2013,370846,1.7,NET,Commercial Mower Supplies,06799D
Gloucester City Council,23UE,Countryside Unit,LP201,Maint Of Grounds - General,3030,DRILL,17/09/2013,370853,33.33,NET,Screwfix Direct*,54672H
Gloucester City Council,23UE,Countryside Unit,LP201,Vet Fees,5842,VISIT 22/08/13,17/09/2013,370861,48.42,NET,Wood Veterinary Group,48892V
Gloucester City Council,23UE,Crematorium,HC200,Equipment For Sale,5050,evenlode bench,17/09/2013,370841,547.01,NET,Gloster Furniture Limited,04932X
Gloucester City Council,23UE,Crematorium,HC200,Memorial Plaques,5053,REDACTED,17/09/2013,370852,148,NET,Steel & Stone (York),57204U
Gloucester City Council,23UE,Docks Complex - Catering Servs,RB110,Catering Provisions -Food,5110,FOOD,17/09/2013,370857,287.06,NET,3663,55585U
Gloucester City Council,23UE,Docks Complex - Catering Servs,RB110,Catering Provisions -Food,5110,FOOD,17/09/2013,370858,451.79,NET,3663,55585U
Gloucester City Council,23UE,Docks Complex - Catering Servs,RB110,Catering Provisions -Food,5110,FOOD,17/09/2013,370859,594.04,NET,3663,55585U
Gloucester City Council,23UE,Docks Complex - Catering Servs,RB110,Catering Provisions -Food,5110,Docks food,17/09/2013,370440,94.64,NET,Janes Pantry,24500W
Gloucester City Council,23UE,Docks Complex - Catering Servs,RB110,Catering Provisions -Food,5110,Docks food,17/09/2013,370849,97.6,NET,Janes Pantry,24500W
Gloucester City Council,23UE,Docks Complex - Catering Servs,RB110,Catering Provisions -Food,5110,FOOD,17/09/2013,370851,34.08,NET,Taynton Farm Foods,09653F
Gloucester City Council,23UE,Docks Complex - Services,RB100,Recycling,3631,RECYCLING AUG 2013,17/09/2013,370685,45.2,NET,Printwaste Recycling,57114W
Gloucester City Council,23UE,Docks Complex - Services,RB100,Recycling,3631,RECYCLING AUG 2013,17/09/2013,370697,272.5,NET,Printwaste Recycling,57114W
Gloucester City Council,23UE,Docks Office Works,RY165,Contract Payments,20,cardboard collection,17/09/2013,370837,180,CAP,Archer Recycling,11021G
Gloucester City Council,23UE,Docks Office Works,RY165,Contract Payments,20,skip hire,17/09/2013,370838,210,CAP,Archer Recycling,11021G
Gloucester City Council,23UE,Financial Services,RT200,Consultants Fees,5349,REDACTED,17/09/2013,369719,3180,NET,Robert Half Ltd,03959K
Gloucester City Council,23UE,Folk Museum,LM210,Security Services Fees,5351,Cash in transit services October 2013,17/09/2013,370834,84.77,NET,G4s Cash Solutions (Uk) Ltd,04290V
Gloucester City Council,23UE,Gloucester Guildhall,LA100,Security Services Fees,5351,Cash in transit services October 2013,17/09/2013,370834,84.78,NET,G4s Cash Solutions (Uk) Ltd,04290V
Gloucester City Council,23UE,Gloucester Partnership,FP106,Hospitality,5122,Oxstalls hire 27/6/13,17/09/2013,369141,52,NET,Aspire Sports & Cultural Trust,08135V
Gloucester City Council,23UE,Grant Aid,LP205,Purch Vehicles/M. Plant <£5000,4000,mower parts,17/09/2013,370836,5637,NET,Commercial Mower Supplies,06799D
Gloucester City Council,23UE,Homelessness,CH120,Removal And Storage Fees,5513,REDACTED,17/09/2013,370844,112.5,NET,Advanced Removals & Storage Ltd,57142R
Gloucester City Council,23UE,Homelessness,CH120,Removal And Storage Fees,5513,REDACTED,17/09/2013,370845,288,NET,Advanced Removals & Storage Ltd,57142R
Gloucester City Council,23UE,Homelessness,CH120,Board And Lodging,5515,AUG13 ACCOMMODATION,17/09/2013,370880,638.94,NET,Carbrey Housing Ltd,11098G
Gloucester City Council,23UE,Homelessness,CH120,Board And Lodging,5515,AUG13 ACCOMMODATION,17/09/2013,370881,158.53,NET,Carbrey Housing Ltd,11098G
Gloucester City Council,23UE,Homelessness,CH120,Board And Lodging,5515,AUG13 ACCOMMODATION,17/09/2013,370882,825.27,NET,Dorchester House Trust,12298D
Gloucester City Council,23UE,Homelessness,CH120,Board And Lodging,5515,VARIOUS TENANTS,17/09/2013,370876,1395.13,NET,James Legge Property (Ltd),07844R
Gloucester City Council,23UE,Homelessness,CH120,Board And Lodging,5515,VARIOUS TENANTS,17/09/2013,370877,454.8,NET,James Legge Property (Ltd),07844R
Gloucester City Council,23UE,Homelessness,CH120,Board And Lodging,5515,AUG13 ACCOMMODATION,17/09/2013,370886,1301.02,NET,Kalmwood Ltd,08568G
Gloucester City Council,23UE,Homelessness,CH120,Fees For Services Received,5350,MED REPORTS AUG 2013,17/09/2013,370856,105,NET,Now Medical,03468L
Gloucester City Council,23UE,Homelessness,CH120,Board And Lodging,5515,AUG13 ACCOMMODATION,17/09/2013,370883,473.38,NET,REDACTED,REDACTED
Gloucester City Council,23UE,Homelessness,CH120,Board And Lodging,5515,AUG13 ACCOMMODATION,17/09/2013,370885,946.4,NET,REDACTED,REDACTED
Gloucester City Council,23UE,Homelessness,CH120,Rent In Advance,5516,REDACTED,17/09/2013,370878,484.6,NET,Taylors Lettings,12574C
Gloucester City Council,23UE,Homelessness Prevention,CH122,Fees For Services Received,5350,REDACTED,17/09/2013,370884,600,NET,Naylor Powell,08867T
Gloucester City Council,23UE,Homelessness Prevention,CH122,Fees For Services Received,5350,REDACTED,17/09/2013,370878,500,NET,Taylors Lettings,12574C
Gloucester City Council,23UE,Museum Phase 2 Hlf,GY001,Contract Payments,20,REDACTED,17/09/2013,370614,28.5,CAP,Find The Engineer Recruitment Ltd*,12977Z
Gloucester City Council,23UE,Museum Phase 2 Hlf,GY001,Contract Payments,20,CITY MUSEUM,17/09/2013,370378,350,CAP,Rpa,01710Y
Gloucester City Council,23UE,Museum Phase 2 Hlf,GY001,Contract Payments,20,CITY MUSEUM,17/09/2013,370130,2700,CAP,Smith Consult Ltd,13842R
Gloucester City Council,23UE,REDACTED,REDACTED,REDACTED,REDACTED,REDACTED,17/09/2013,REDACTED,207,NET,REDACTED,REDACTED
Gloucester City Council,23UE,REDACTED,REDACTED,REDACTED,REDACTED,REDACTED,17/09/2013,REDACTED,154,NET,REDACTED,REDACTED
Gloucester City Council,23UE,REDACTED,REDACTED,REDACTED,REDACTED,REDACTED,17/09/2013,REDACTED,97,NET,REDACTED,REDACTED
Gloucester City Council,23UE,REDACTED,REDACTED,REDACTED,REDACTED,REDACTED,17/09/2013,REDACTED,110,NET,REDACTED,REDACTED
Gloucester City Council,23UE,REDACTED,REDACTED,REDACTED,REDACTED,REDACTED,17/09/2013,REDACTED,150,NET,REDACTED,REDACTED
Gloucester City Council,23UE,Rehousing,CH111,Fees For Services Received,5350,REDACTED,17/09/2013,370839,20.5,NET,Hadwen Medical Practice,59727U
Gloucester City Council,23UE,Rehousing,CH111,Fees For Services Received,5350,MED REPORTS AUG 2013,17/09/2013,370856,200,NET,Now Medical,03468L
Gloucester City Council,23UE,Safer Stronger Communities,FP841,Other Minor Supplies Services,5590,event toilets,17/09/2013,370791,170,NET,Abbey Loos Limited,10787B
Gloucester City Council,23UE,Tic Coach Tickets,LT105,Materials For Sale,5080,REDACTED,17/09/2013,370768,89,NET,Superbreak Mini Holidays,00712D
Gloucester City Council,23UE,Tic Coach Tickets,LT105,Sale Of Goods And Services,9230,REDACTED,17/09/2013,370768,-7.41,NET,Superbreak Mini Holidays,00712D
Gloucester City Council,23UE,Tourism Marketing,LT100,Security Services Fees,5351,Cash in transit services October 2013,17/09/2013,370834,84.77,NET,G4s Cash Solutions (Uk) Ltd,04290V
Gloucester City Council,23UE,Treasury Management,VR110,Brokerage Fees,5951,MARTIN BROKERS (UK) PLC,17/09/2013,370865,3776.72,NET,Martin Brokers (Uk) Plc,51416J
Gloucester City Council,23UE,Youth Grant 2011/12,FP107,Funding Vol&Com Grps-Grants,7100C,Youth Grant 2013/14,17/09/2013,370868,2500,NET,Furniture Recycling Project,51707U
Gloucester City Council,23UE,Youth Grant 2011/12,FP107,Funding Vol&Com Grps-Grants,7100C,Youth Grant 2013/14,17/09/2013,370869,2500,NET,Hempsted Youth Club,12000L
Gloucester City Council,23UE,Asset Management,RS300,Vocational Training,2970,REDACTED,18/09/2013,370373,228,NET,Professional Conferences,56296V
Gloucester City Council,23UE,Business Transformation & Tech,RT700,Basic Pay - Temporary Staff,2751,contractor services w/e 13/9/13,18/09/2013,370788,1125,NET,Ffox Software Ltd,10665T
Gloucester City Council,23UE,Business Transformation & Tech,RT700,Consultants Fees,5349,PROCUREMENT CONSULTING,18/09/2013,370229,3300,NET,Mnt Consulting,14211A
Gloucester City Council,23UE,Business Transformation & Tech,RT700,Computer Software Maintenance,5427,ASH NOV 2013 RENEWAL,18/09/2013,370701,750,NET,Ncc Services Ltd,03054V
Gloucester City Council,23UE,Business Transformation & Tech,RT700,Computer Hardware <£5000,5420,LIBRARY,18/09/2013,370767,5948,NET,Qual Technology,56512N
Gloucester City Council,23UE,City Museum And Art Gallery,LM200,Printing,5300,Gloucester Museums SEP-DEC13 brochures,18/09/2013,370958,1233.5,NET,Alpha Colour Printers Ltd,00945B
Gloucester City Council,23UE,City Museum And Art Gallery,LM200,Advertising And Publicity,5702,BUSINESS DIRECTORY LISTING,18/09/2013,370944,75,NET,Local World Ltd,08556P
Gloucester City Council,23UE,City Museum And Art Gallery,LM200,Advertising And Publicity,5702,ADVERT,18/09/2013,370942,100,NET,Three Choirs Festival Association Ltd,24249RV
Gloucester City Council,23UE,Contact Centre,RB300,Basic Pay -Admin /Prof Staff,2601,agency staff w/e 8/9/13,18/09/2013,370875,287.5,NET,Cps Anystaff Recruitment Ltd,13945D
Gloucester City Council,23UE,Docks Complex - Catering Servs,RB110,Catering Provisions -Food,5110,docks food,18/09/2013,370797,17.31,NET,J & M Provisions Ltd,04292R
Gloucester City Council,23UE,Folk Museum,LM210,Printing,5300,Gloucester Museums SEP-DEC13 brochures,18/09/2013,370958,1233.5,NET,Alpha Colour Printers Ltd,00945B
Gloucester City Council,23UE,Folk Museum,LM210,Advertising And Publicity,5702,BUSINESS DIRECTORY LISTING,18/09/2013,370944,75,NET,Local World Ltd,08556P
Gloucester City Council,23UE,Folk Museum,LM210,Advertising And Publicity,5702,ADVERT,18/09/2013,370941,100,NET,Three Choirs Festival Association Ltd,24249RV
Gloucester City Council,23UE,General Works Fund,RY203,Consultants Fees,30,REDACTED,18/09/2013,370613,703,CAP,Find The Engineer Recruitment Ltd*,12977Z
Gloucester City Council,23UE,Gis Development Work,RY555,Contract Payments,20,contractor services w/e 6/9/13,18/09/2013,370785,1250,CAP,Badenoch & Clark,01536P
Gloucester City Council,23UE,Health & Safety,EH110,Other Minor Supplies Services,5590,SHOES,18/09/2013,370854,61,NET,Safpro Industrial Supply Co,39190W
Gloucester City Council,23UE,Homelessness,CH120,Rent In Advance,5516,REDACTED,18/09/2013,370957,364.6,NET,Mark Holland Ltd,11464W
Gloucester City Council,23UE,Planning Policy,PT300,Basic Pay - Temporary Staff,2751,REDACTED,18/09/2013,370949,1547.02,NET,Randstad Cpe Ltd,13987L
Gloucester City Council,23UE,Planning Policy,PT300,Basic Pay - Temporary Staff,2751,REDACTED,18/09/2013,370950,2053.11,NET,Randstad Cpe Ltd,13987L
Gloucester City Council,23UE,Senior Management Restructurin,RO200,Fees For Services Received,5350,recruitment advertising,18/09/2013,370842,4215,NET,Alexander Beaver Associates,06515Z
Gloucester City Council,23UE,Youth Grant 2011/12,FP107,Funding Vol&Com Grps-Grants,7100C,YOUTH GRANT 2013-14,18/09/2013,370952,2500,NET,Quedgeley Community Trust,12364S
Gloucester City Council,23UE,Asbru - Other Funders,FP846,Other Minor Supplies Services,5590,REDACTED,19/09/2013,370951,534.65,NET,Travail Employment Ltd,49371W
Gloucester City Council,23UE,Blackfriars,LA609,Materials For Sale,5080,SALES SEPT 2013,19/09/2013,370990,20,NET,REDACTED,REDACTED
Gloucester City Council,23UE,Blackfriars,LA609,Sale Of Goods And Services,9230,SALES SEPT 2013,19/09/2013,370990,-2.5,NET,REDACTED,REDACTED
Gloucester City Council,23UE,Business Support,PT250,Fuel,4012,vehicle fuel,19/09/2013,370867,412.67,NET,Allstar Business Solutions Ltd (Arval),06594A
Gloucester City Council,23UE,Business Transformation & Tech,RT700,Computer Hardware <£5000,5420,civic chamber induction loops,19/09/2013,370087,2137,NET,Avon Armour Ltd,02283L
Gloucester City Council,23UE,City Museum And Art Gallery,LM200,Publications For Sale,5064,FOSSILS,19/09/2013,369449,361.06,NET,Moussa Direct Ltd,12527M
Gloucester City Council,23UE,Civil Parking Enforcement,PT741,On Street Parking Charges,6550,July 2013 bus lane enforcement,19/09/2013,370542,5769.82,NET,Gloucestershire County Council,18650D
Gloucester City Council,23UE,Civil Parking Enforcement,PT741,On Street Parking Charges,6550,July 2013 parking income,19/09/2013,370543,34731.23,NET,Gloucestershire County Council,18650D
Gloucester City Council,23UE,Contact Centre,RB300,Basic Pay -Admin /Prof Staff,2601,STAFF W/E 30/08/13,19/09/2013,370599,312,NET,One To One Recruitment,04752H
Gloucester City Council,23UE,Contact Centre,RB300,Basic Pay -Admin /Prof Staff,2601,STAFF W/E 30/08/13,19/09/2013,370600,740.4,NET,One To One Recruitment,04752H
Gloucester City Council,23UE,Corporate Expenses,RC110,Fees For Services Received,5350,AWAY DAY,19/09/2013,371018,579.75,NET,South West Councils,56523H
Gloucester City Council,23UE,Council Streetcare Team,HI101,General Repair/Maint Buildings,3000,Oriole Way works,19/09/2013,370939,580,NET,REDACTED,REDACTED
Gloucester City Council,23UE,Countryside Unit,LP201,Major R And M - Vehicles,4010,HOSES,19/09/2013,370769,57.78,NET,Pirtek,48699R
Gloucester City Council,23UE,Director Resources,MR102,Fees For Services Received,5350,REDACTED,19/09/2013,371021,1486,NET,Wragge & Co Llp,06590J
Gloucester City Council,23UE,Director Resources,MR102,Fees For Services Received,5350,EMPLOYMENT ADVICE,19/09/2013,371022,265.5,NET,Wragge & Co Llp,06590J
Gloucester City Council,23UE,Director Resources,MR102,Fees For Services Received,5350,REDACTED,19/09/2013,371023,9032.08,NET,Wragge & Co Llp,06590J
Gloucester City Council,23UE,Director Resources,MR102,Fees For Services Received,5350,REDACTED,19/09/2013,371024,1957,NET,Wragge & Co Llp,06590J
Gloucester City Council,23UE,Disabled Facilities Grants,CY013,Disabled Facility Grants,74,REDACTED,19/09/2013,371026,1408,CAP,Tpg Disableaids,51324R
Gloucester City Council,23UE,Employers Pension Contribs,ZR355,Pension Contribs Incl Backf,2901,Pensions invoice Aug/Sept13,19/09/2013,370866,25744.73,NET,Gloucestershire County Council,10614L
Gloucester City Council,23UE,Flooding And Drainage,HE306,Fees For Services Received,5350,Created by invoice listener,19/09/2013,370444,1200,NET,Js Builders & Landscaping Services,11078J
Gloucester City Council,23UE,Folk Museum,LM210,Publications For Sale,5064,FOSSILS,19/09/2013,369449,251.4,NET,Moussa Direct Ltd,12527M
Gloucester City Council,23UE,Folk Museum,LM210,Publications For Sale,5064,GOODS FOR RESALE,19/09/2013,370988,252.95,NET,Westair Reproductions Ltd,47000G
Gloucester City Council,23UE,Green Transport Policy,PJ130,Management Fees,6001,August13 driving charges,19/09/2013,370935,464.53,NET,Co-Wheels Cic,11534A
Gloucester City Council,23UE,Homelessness,CH120,Removal And Storage Fees,5513,REDACTED,19/09/2013,370997,39.11,NET,Advanced Removals & Storage Ltd,57142R
Gloucester City Council,23UE,Homelessness,CH120,Removal And Storage Fees,5513,REDACTED,19/09/2013,370998,84.86,NET,Advanced Removals & Storage Ltd,57142R
Gloucester City Council,23UE,Homelessness Prevention,CH122,Basic Pay - Temporary Staff,2751,agency staff w/e 15/9/13,19/09/2013,371033,737.41,NET,James Andrews Recruitment Solutions,13636W
Gloucester City Council,23UE,Improvement Grants,CI110,Other Minor Supplies Services,5590,software support Oct13-Oct14,19/09/2013,370435,190,NET,Ferret Information Systems Ltd,15035L
Gloucester City Council,23UE,Improvement Grants,CI110,Other Minor Supplies Services,5590,Oct13-14 Ferret DFG Forms suite support,19/09/2013,370528,99,NET,Ferret Information Systems Ltd,15035L
Gloucester City Council,23UE,Inhouse Training,EH200,Fees For Services Received,5350,TRAINING,19/09/2013,370996,466.69,NET,Cuff Security Services Ltd,12073G
Gloucester City Council,23UE,Investment Property,RB500,Rents,3200,Kings Walk car park rent Sep-Dec13,19/09/2013,370334,46250,NET,Dtz,08367V
Gloucester City Council,23UE,Investment Property,RB500,General Repair/Maint Buildings,3000,test portable AHU,19/09/2013,370798,180,NET,Hewer Facilities Mgt Ltd,05232A
Gloucester City Council,23UE,Investment Property,RB500,Water Supply,3400,ACCT 6660036940 WINDFALL WAY,19/09/2013,367954,62.54,NET,Severn Trent Water,01823H
Gloucester City Council,23UE,Land Searches,RO300,Fees For Services Received,5350,PROPERTY SEARCHES,19/09/2013,370862,1007.28,NET,Local Government Association,11683F
Gloucester City Council,23UE,Legal Services,RS200,Basic Pay - Temporary Staff,2751,REDACTED,19/09/2013,371017,601.2,NET,Sellick Partnership Group Ltd,11057C
Gloucester City Council,23UE,Off Street Car Parks,PP110,Rents,3200,Boots Eastgate car park rent SEP-DEC13,19/09/2013,370329,600,NET,Boots The Chemist,04540V
Gloucester City Council,23UE,Off Street Car Parks,PP110,General Repair/Maint Buildings,3000,GREAT WESTERN RD CAR PARK,19/09/2013,370945,120,NET,Mpl Wrought Iron Llp,03907P
Gloucester City Council,23UE,REDACTED,REDACTED,REDACTED,REDACTED,REDACTED,19/09/2013,REDACTED,150,NET,REDACTED,REDACTED
Gloucester City Council,23UE,REDACTED,REDACTED,REDACTED,REDACTED,REDACTED,19/09/2013,REDACTED,50,NET,REDACTED,REDACTED
Gloucester City Council,23UE,Robinswoodhill Trading Account,LP203,Event Costs,5009,ARCHERY 30/06/13,19/09/2013,371036,240,NET,Xperience Archery,12971M
Gloucester City Council,23UE,Rugby World Cup,LT450,Events,5952,Gloucester Park rugby posts installation,19/09/2013,370999,1048,NET,Anderson Civil Engineering Uk Ltd,09083D
Gloucester City Council,23UE,Tic Coach Tickets,LT105,Materials For Sale,5080,SALES JULY 2013,19/09/2013,371028,5009,NET,Marchants Coaches Ltd,48151Y
Gloucester City Council,23UE,Tic Trading,LT110,Materials For Sale,5080,TIC BOOKS 10 & 14 AUGUST 2013,19/09/2013,370992,228.25,NET,REDACTED,REDACTED
Gloucester City Council,23UE,Tourism Marketing,LT100,Window Cleaning,3610,TIC WINDOW CLEANING 29/7 & 5/8/13,19/09/2013,370993,12,NET,Initial Facilities Window Cleaning,00442K
Gloucester City Council,23UE,Tourism Marketing,LT100,Window Cleaning,3610,TIC QUARTERLY WINDOW CLEAN 28/7,19/09/2013,370994,42.93,NET,Initial Facilities Window Cleaning,00442K
Gloucester City Council,23UE,Tourism Marketing,LT100,Publications For Sale,5064,RADAR KEY,19/09/2013,371020,315,NET,N & C Building Products Ltd,02054E
Gloucester City Council,23UE,Utilities,PT502,Gas Supply,3100,Depot gas Jul13 (credited),19/09/2013,369376,323.38,NET,Corona Energy,09034T
Gloucester City Council,23UE,Utilities,PT502,Gas Supply,3100,Depot gas August 2013,19/09/2013,370955,62,NET,Corona Energy,09034T
Gloucester City Council,23UE,Utilities,PT502,Gas Supply,3100,Depot gas July 2013,19/09/2013,370956,62,NET,Corona Energy,09034T
Gloucester City Council,23UE,Wake Room,HC501,Operational Equipment <£5000,5012,SANITARY UNITS,19/09/2013,370588,33.56,NET,Minster Cleaning Services,02158R
Gloucester City Council,23UE,Aspire Admin Charges,LC105,Other Minor Income,9900,BAILIFF PAYMENTS 17/09/13,20/09/2013,371090,650.44,NET,Aspire Sports & Cultural Trust,08135V
Gloucester City Council,23UE,Business Support,PT250,Basic Pay - Temporary Staff,2751,STAFF W/E 13/09/13,20/09/2013,371029,916.4,NET,One To One Recruitment,04752H
Gloucester City Council,23UE,City Museum And Art Gallery,LM200,Events,5952,COSTUME HIRE,20/09/2013,371114,200,NET,Cotswold Costumes,10211P
Gloucester City Council,23UE,City Museum And Art Gallery,LM200,Events,5952,STORYTELLING 31/08/13,20/09/2013,371110,130,NET,REDACTED,REDACTED
Gloucester City Council,23UE,City Museum And Art Gallery,LM200,Events,5952,MAGIC SHOW,20/09/2013,371113,250,NET,REDACTED,REDACTED
Gloucester City Council,23UE,Civil Parking Enforcement,PT741,Contracted Services,6970,AUGUST13 - CREDITED - WRONG AMOUNT,20/09/2013,370430,48007.66,NET,Apcoa Parking (Uk) Ltd,09954M
Gloucester City Council,23UE,Civil Parking Enforcement,PT741,Contracted Services,6970,AUGUST 2013 VARIABLE SERVICES,20/09/2013,371099,19874.13,NET,Apcoa Parking (Uk) Ltd,09954M
Gloucester City Council,23UE,Civil Parking Enforcement,PT741,Computer Software Maintenance,5427,DVLA enquiries August 2013,20/09/2013,370328,45.9,NET,Chipside Ltd,06535T
Gloucester City Council,23UE,Docks Complex - Castlemeads Cp,RB210,Contracted Services,6970,AUGUST 2013 VARIABLE SERVICES,20/09/2013,371099,3474.84,NET,Apcoa Parking (Uk) Ltd,09954M
Gloucester City Council,23UE,Docks Complex - Catering Servs,RB110,Operational Equipment <£5000,5012,machine warranty,20/09/2013,370936,61.58,NET,Caffeica Ltd,11923J
Gloucester City Council,23UE,Docks Complex - Services,RB100,Service Charges,3020,SANIPODS HERBERT WAREHOUSE,20/09/2013,370947,48.75,NET,Wessex Products (Leasing) Ltd,03684C
Gloucester City Council,23UE,Docks Complex - Telephones,RB120,Telephones And Fax,5410,ACCT 505653401 FOLK MUSEUM,20/09/2013,371045,80,NET,Virgin Media Payments Ltd,09376J
Gloucester City Council,23UE,Electrical Investigatory Works,RY142,Capital Fire Risk Assessments,17,fire risk assessment Kings Walk car park,20/09/2013,370134,495,CAP,A & E Fire Equipment Limited,54289L
Gloucester City Council,23UE,Events,LT410,Events,5952,ADVERT 14/09/13,20/09/2013,370948,5000,NET,Local World Ltd,08556P
Gloucester City Council,23UE,Financial Services,RT200,Basic Pay -Admin /Prof Staff,2601,REDACTED,20/09/2013,370450,543.06,NET,Robert Half Ltd,03959K
Gloucester City Council,23UE,Folk Museum,LM210,Events,5952,COSTUME HIRE,20/09/2013,371115,197,NET,Cotswold Costumes,10211P
Gloucester City Council,23UE,Folk Museum,LM210,Events,5952,TUDORFEST 17/08/13,20/09/2013,371111,250,NET,REDACTED,REDACTED
Gloucester City Council,23UE,Folk Museum,LM210,Events,5952,REENACTMENT,20/09/2013,371112,60,NET,REDACTED,REDACTED
Gloucester City Council,23UE,Forest Of Dean Cpe,PT744,Contracted Services,6970,AUGUST 2013 VARIABLE SERVICES,20/09/2013,371099,2254.76,NET,Apcoa Parking (Uk) Ltd,09954M
Gloucester City Council,23UE,Forest Of Dean Off Street,PT742,Contracted Services,6970,AUGUST 2013 VARIABLE SERVICES,20/09/2013,371099,168.84,NET,Apcoa Parking (Uk) Ltd,09954M
Gloucester City Council,23UE,Homelessness Prevention,CH122,Fees For Services Received,5350,REDACTED,20/09/2013,371097,301.75,NET,REDACTED,REDACTED
Gloucester City Council,23UE,Investment Property,RB500,General Repair/Maint Buildings,3000,Folk Museum boiler service AUG13,20/09/2013,370755,320,NET,Hewer Facilities Mgt Ltd,05232A
Gloucester City Council,23UE,Investment Property,RB500,Repair/Maint Of Fixed Plant,3006,North w/h heating fault repair,20/09/2013,370961,100,NET,Hewer Facilities Mgt Ltd,05232A
Gloucester City Council,23UE,Investment Property,RB500,General Repair/Maint Buildings,3000,BLACKFRIARS,20/09/2013,369369,140.78,NET,Pickerings Europe Ltd*,58816U
Gloucester City Council,23UE,Investment Property,RB500,General Repair/Maint Buildings,3000,GUILDHALL,20/09/2013,370127,75.08,NET,Pickerings Europe Ltd*,58816U
Gloucester City Council,23UE,Investment Property,RB500,Lift Maintenance,3051,PHILPOTTS WAREHOUSE,20/09/2013,371108,93.85,NET,Pickerings Europe Ltd*,58816U
Gloucester City Council,23UE,Investment Property,RB500,Repair/Maint Of Fixed Plant,3006,GUILDHALL,20/09/2013,370946,182.76,NET,Stannah Lift Services Ltd,41700C
Gloucester City Council,23UE,Nms Contract,HI102,General Repair/Maint Buildings,3000,REFUSE SACKS,20/09/2013,371103,953,NET,Polystar Plastics Ltd,01120C
Gloucester City Council,23UE,Northwarehouse,RB150,Fire Alarm Maintenance,3053,North Warehouse call out 15/8/13,20/09/2013,370938,206,NET,Adt Fire & Security Plc,54086D
Gloucester City Council,23UE,Off Street Car Parks,PP110,Contracted Services,6970,AUGUST 2013 VARIABLE SERVICES,20/09/2013,371099,10365.94,NET,Apcoa Parking (Uk) Ltd,09954M
Gloucester City Council,23UE,Off Street Car Parks,PP110,Contracted Services,6970,TRADE WASTE OCT-DEC 2013,20/09/2013,370131,284.7,NET,Enterprise (Aol) Ltd,06695G
Gloucester City Council,23UE,Off Street Car Parks,PP110,Service Charges,3020,SEPT-DEC 2013,20/09/2013,370625,1007.5,NET,Workman Llp,11021M
Gloucester City Council,23UE,Off Street Car Parks,PP110,Rents,3200,APR 2012-MAR 2013,20/09/2013,370626,15.23,NET,Workman Llp,11021M
Gloucester City Council,23UE,Off Street Car Parks,PP110,Service Charges,3020,CAR PARK OFFICE,20/09/2013,370705,274.5,NET,Workman Llp,11021M
Gloucester City Council,23UE,Off Street Car Parks,PP110,Rents,3200,CAR PARK OFFICE,20/09/2013,370705,125,NET,Workman Llp,11021M
Gloucester City Council,23UE,Off Street Car Parks,PP110,Service Charges,3020,SEPT-DEC 2013,20/09/2013,370706,2138,NET,Workman Llp,11021M
Gloucester City Council,23UE,Off Street Car Parks,PP110,Rents,3200,SEPT-DEC 2013,20/09/2013,370706,63528.19,NET,Workman Llp,11021M
Gloucester City Council,23UE,Organisational Health,RC160,Fees For Services Received,5350,Aug13 Occupational Health services,20/09/2013,371091,274.16,NET,Industrial Medical & Safety Services Ltd,10668L
Gloucester City Council,23UE,Organisational Health,RC160,Fees For Services Received,5350,Jul13 Occupational Health Services,20/09/2013,371092,476.5,NET,Industrial Medical & Safety Services Ltd,10668L
Gloucester City Council,23UE,Parking Cctv,PT745,Contracted Services,6970,AUGUST 2013 VARIABLE SERVICES,20/09/2013,371099,647.22,NET,Apcoa Parking (Uk) Ltd,09954M
Gloucester City Council,23UE,Postal Services,RS120,Postages,5400,ACCT 0074842000 W/E 31/08/13,20/09/2013,370953,52.36,NET,Royal Mail S.Wales & South West,35830S
Gloucester City Council,23UE,Postal Services,RS120,Postages,5400,ACCT 0252446000 W/E 12/09/13,20/09/2013,371046,1673.89,NET,Royal Mail S.Wales & South West,35830S
Gloucester City Council,23UE,Postal Services,RS120,Postages,5400,ENVELOPES,20/09/2013,370230,493.39,NET,Tompla Uk Ltd,13782H
Gloucester City Council,23UE,Ranger Centre/Netheridge Wks,RY167,Contract Payments,20,Ranger Centre,20/09/2013,369440,35,CAP,Adt Fire & Security Plc,54086D
Gloucester City Council,23UE,REDACTED,REDACTED,REDACTED,REDACTED,REDACTED,20/09/2013,REDACTED,700,NET,REDACTED,REDACTED
Gloucester City Council,23UE,Tic Rovercard Sales,LT101,Materials For Sale,5080,PERIOD 4 SALES,20/09/2013,371105,5046.5,NET,Stagecoach Services Ltd*,56554W
Gloucester City Council,23UE,Tic Rovercard Sales,LT101,Sale Of Goods And Services,9230,PERIOD 4 SALES,20/09/2013,371105,-420.54,NET,Stagecoach Services Ltd*,56554W
Gloucester City Council,23UE,Wake Room,HC501,Catering Provisions -Food,5110,ARBOR COFFEE,20/09/2013,370666,104.13,NET,Caffeica Ltd,11923J
Gloucester City Council,23UE,Waterwells Park And Ride,PJ120,Contracted Services,6970,AUGUST 2013 VARIABLE SERVICES,20/09/2013,371099,434.56,NET,Apcoa Parking (Uk) Ltd,09954M
Gloucester City Council,23UE,2 Albion Cottages,RB546,Electricity Supply,3110,Albion Cottages electricity a/c A4192678,23/09/2013,371134,33.74,NET,British Gas,59061X
Gloucester City Council,23UE,Business Transformation & Tech,RT700,Computer Hardware Maintenance,5426,PLOTTER OCT-DEC 2013,23/09/2013,371106,168.78,NET,Stanford Marsh Ltd*,51139M
Gloucester City Council,23UE,Cemeteries,HC300,Operational Materials,5070,REFUSE SACKS,23/09/2013,370943,62.7,NET,Safpro Industrial Supply Co,39190W
Gloucester City Council,23UE,Civil Parking Enforcement,PT741,Computer Software Maintenance,5427,AUG13 electronic season tickets,23/09/2013,371140,829.73,NET,Chipside Ltd,06535T
Gloucester City Council,23UE,Civil Parking Enforcement,PT741,Computer Software Maintenance,5427,AUG13 notice processing services,23/09/2013,371141,994.62,NET,Chipside Ltd,06535T
Gloucester City Council,23UE,Crematorium,HC200,Repair/Maint Of Fixed Plant,3006,poly crem bags,23/09/2013,371034,78.5,NET,Fibrous Ltd,15230L
Gloucester City Council,23UE,Docks Complex - Catering Servs,RB110,Catering Provisions -Food,5110,FOOD,23/09/2013,371186,404.47,NET,3663,55585U
Gloucester City Council,23UE,Dwelling Improvements,BY008,Contract Payments,20,AUGUST 2013 CAPITAL FEES,23/09/2013,371095,111698.29,CAP,Gloucester City Homes,05244T
Gloucester City Council,23UE,Dwelling Improvements,BY008,Contract Payments,20,JULY 2013 CAPITAL FEES,23/09/2013,371096,130185.78,CAP,Gloucester City Homes,05244T
Gloucester City Council,23UE,Folk Museum Catering,LM211,Catering Provisions -Liquor,5111,city museum drinks,23/09/2013,370549,43.96,NET,Cellar Supplies Cheltenham Ltd,01563L
Gloucester City Council,23UE,Folk Museum Catering,LM211,Catering Provisions -Food,5110,Folk Museum food,23/09/2013,370848,4.92,NET,Janes Pantry,24500W
Gloucester City Council,23UE,Guildhall Bar And Caf�,LA210,Catering Provisions -Food,5110,Guildhall food,23/09/2013,370850,40.42,NET,Janes Pantry,24500W
Gloucester City Council,23UE,Homelessness,CH120,Rent In Advance,5516,REDACTED,23/09/2013,371193,364.6,NET,Bhp Properties,13948X
Gloucester City Council,23UE,Homelessness,CH120,Rent In Advance,5516,REDACTED,23/09/2013,371196,249.23,NET,REDACTED,REDACTED
Gloucester City Council,23UE,Homelessness Prevention,CH122,Fees For Services Received,5350,REDACTED,23/09/2013,371193,425,NET,Bhp Properties,13948X
Gloucester City Council,23UE,Homelessness Prevention,CH122,Basic Pay - Temporary Staff,2751,REDACTED,23/09/2013,371183,620,NET,Venn Group Ltd,04339P
Gloucester City Council,23UE,Investment Property,RB500,General Repair/Maint Buildings,3000,Guildhall boiler service AUG13,23/09/2013,370756,530,NET,Hewer Facilities Mgt Ltd,05232A
Gloucester City Council,23UE,Investment Property,RB500,General Repair/Maint Buildings,3000,GL1,23/09/2013,371104,159.58,NET,Pickerings Europe Ltd*,58816U
Gloucester City Council,23UE,Legal Services,RS200,Basic Pay -Admin /Prof Staff,2601,REDACTED,23/09/2013,371184,719.91,NET,Venn Group Ltd,04339P
Gloucester City Council,23UE,Museum Phase 2 Hlf,GY001,Contract Payments,20,REDACTED,23/09/2013,369773,304,CAP,Find The Engineer Recruitment Ltd*,12977Z
Gloucester City Council,23UE,REDACTED,REDACTED,REDACTED,REDACTED,REDACTED,23/09/2013,REDACTED,110,NET,REDACTED,REDACTED
Gloucester City Council,23UE,Swrda Asset Transfer,RY184,Contract Payments,20,31 Barbican Way report,23/09/2013,371138,1000,CAP,Alder King*,02367D
Gloucester City Council,23UE,Tic Trading,LT110,Materials For Sale,5080,TIC SHOP STOCK,23/09/2013,371135,100,NET,Inish Publications,10233D
Gloucester City Council,23UE,Training Schemes,ET100,Other Minor Supplies Services,5590,stand at 5/3/13 Glos SkillsFest,23/09/2013,371197,136,NET,Gloucestershire Skillsfest,12672B
Gloucester City Council,23UE,Training Schemes,ET100,Vocational Training,2970,NVQ assessments Sept13,23/09/2013,371198,800,NET,The Gold Standard,56141C
Gloucester City Council,23UE,Wake Room,HC501,Catering Provisions -Food,5110,FOOD,23/09/2013,371176,33.32,NET,3663,55585U
Gloucester City Council,23UE,Wake Room,HC501,Catering Provisions -Food,5110,FOOD,23/09/2013,371177,375.72,NET,3663,55585U
Gloucester City Council,23UE,Wake Room,HC501,Catering Provisions -Food,5110,FOOD,23/09/2013,371178,229.02,NET,3663,55585U
Gloucester City Council,23UE,Wake Room,HC501,Catering Provisions -Food,5110,FOOD,23/09/2013,371185,430.57,NET,3663,55585U
Gloucester City Council,23UE,Wake Room,HC501,Catering Provisions -Food,5110,ARBOR DRINKS,23/09/2013,371143,124.95,NET,Cellar Supplies Cheltenham Ltd,01563L
Gloucester City Council,23UE,Wake Room,HC501,Catering Provisions -Food,5110,ARBOR DRINKS,23/09/2013,371144,94.97,NET,Cellar Supplies Cheltenham Ltd,01563L
Gloucester City Council,23UE,Wake Room,HC501,Catering Provisions -Food,5110,ARBOR DRINKS,23/09/2013,371145,127.96,NET,Cellar Supplies Cheltenham Ltd,01563L
Gloucester City Council,23UE,Wake Room,HC501,Catering Provisions -Food,5110,ARBOR DRINKS,23/09/2013,371146,51.96,NET,Cellar Supplies Cheltenham Ltd,01563L
Gloucester City Council,23UE,Wake Room,HC501,Catering Provisions -Food,5110,Arbor food,23/09/2013,369433,64.26,NET,Janes Pantry,24500W
Gloucester City Council,23UE,Wake Room,HC501,Catering Provisions -Liquor,5111,Arbor food,23/09/2013,369433,18.57,NET,Janes Pantry,24500W
Gloucester City Council,23UE,Wake Room,HC501,Catering Provisions -Food,5110,Arbor food,23/09/2013,370442,109.6,NET,Janes Pantry,24500W
Gloucester City Council,23UE,Wake Room,HC501,Catering Provisions -Food,5110,Arbor food,23/09/2013,370847,97.51,NET,Janes Pantry,24500W
Gloucester City Council,23UE,Allotment Software Colony,RY578,It Software,57,COLONY ALLOTMENT SYSTEM,24/09/2013,371187,3549,CAP,Mcpc Systems (Uk) Ltd,14043X
Gloucester City Council,23UE,Blackfriars,LA609,Electricity Supply,3110,Blackfriars electric a/c A4071662,24/09/2013,371223,27.88,NET,British Gas,59061X
Gloucester City Council,23UE,Business Transformation & Tech,RT700,Basic Pay - Temporary Staff,2751,contractor services w/e 20/9/13,24/09/2013,371224,1125,NET,Ffox Software Ltd,10665T
Gloucester City Council,23UE,Business Transformation & Tech,RT700,Other Minor Supplies Services,5590,LAPTOP CASE,24/09/2013,371188,47,NET,Qual Technology,56512N
Gloucester City Council,23UE,Cemeteries,HC300,Operational Materials,5070,DIGGER,24/09/2013,371235,123.47,NET,Spaldings,48759Y
Gloucester City Council,23UE,Cems/Crems Admin,HC100,Office Equipment <£5000,5010,DIARY,24/09/2013,371257,9.87,NET,Office Star Group Ltd,55874H
Gloucester City Council,23UE,City Museum And Art Gallery,LM200,Care Of Collections,5039,STATIONERY,24/09/2013,371236,48.98,NET,Viking Direct Ltd,45400E
Gloucester City Council,23UE,City Museum Catering,LM202,Catering Provisions -Food,5110,city museum food,24/09/2013,368084,116.12,NET,Woodward Foodservice,10714F
Gloucester City Council,23UE,Client Revs & Bens Contract,RT240,Bailiffs Fees,5368,VAT only invoice Council Tax,24/09/2013,371221,0,NET,Bristow & Sutor,05450M
Gloucester City Council,23UE,Client Revs & Bens Contract,RT240,Bailiffs Fees,5368,VAT only invoice - Business Rates,24/09/2013,371222,0,NET,Bristow & Sutor,05450M
Gloucester City Council,23UE,Contact Centre,RB300,Basic Pay -Admin /Prof Staff,2601,agency staff w/e 15/9/13,24/09/2013,371137,776.25,NET,Cps Anystaff Recruitment Ltd,13945D
Gloucester City Council,23UE,Contact Centre,RB300,Basic Pay -Admin /Prof Staff,2601,STAFF W/E 15/09/13,24/09/2013,371030,1110.6,NET,One To One Recruitment,04752H
Gloucester City Council,23UE,Disabled Facilities Grants,CY013,Disabled Facility Grants,74,REDACTED,24/09/2013,371230,923.89,CAP,Davey's Building Maintenance,57010K
Gloucester City Council,23UE,Docks Complex - Telephones,RB120,Telephones And Fax,5410,ACCT 814639 REVENUES,24/09/2013,371248,192.42,NET,Virgin Media Business,01869B
Gloucester City Council,23UE,Folk Museum Catering,LM211,Catering Provisions -Food,5110,COFFEE MACHINE RENTAL,24/09/2013,371242,135,NET,La Spaziale Uk Ltd,11823P
Gloucester City Council,23UE,Gis Development Work,RY555,Contract Payments,20,contractor services w/e 13/09/13,24/09/2013,371220,1250,CAP,Badenoch & Clark,01536P
Gloucester City Council,23UE,Gloucester Guildhall,LA100,Service Charges,3020,Guildhall wifi Broadband Sept13,24/09/2013,370748,29.99,NET,Connexus Networks Ltd,07090B
Gloucester City Council,23UE,Gloucester Guildhall,LA100,Vocational Training,2970,REDACTED,24/09/2013,371234,405,NET,Local Authority Event Organisers Group,13496M
Gloucester City Council,23UE,Gloucester Guildhall,LA100,Licences,5703,LICENCE,24/09/2013,371237,600,NET,Ofcom,02769C
Gloucester City Council,23UE,Gloucester Guildhall,LA100,Advertising And Publicity,5702,FRESHERS FAYRE,24/09/2013,371038,550,NET,Youth Communication Ltd,14252K
Gloucester City Council,23UE,Guildhall Bar And Caf�,LA210,Catering Provisions -Liquor,5111,Guildhall drinks,24/09/2013,371228,448.4,NET,Cellar Supplies Cheltenham Ltd,01563L
Gloucester City Council,23UE,Guildhall Bar And Caf�,LA210,Catering Provisions -Food,5110,Guildhall coffee,24/09/2013,371227,141.6,NET,Ethical Addictions Ltd,11654N
Gloucester City Council,23UE,Guildhall Bar And Caf�,LA210,Hire Of Equipment,5020,plastic glasses,24/09/2013,371229,343.5,NET,Gerry Dance Disposables Ltd,54579Y
Gloucester City Council,23UE,Guildhall Bar And Caf�,LA210,Catering Provisions -Food,5110,FOOD,24/09/2013,371247,64.11,NET,Woodward Foodservice,10714F
Gloucester City Council,23UE,Guildhall Bar And Caf�,LA210,Catering Provisions -Food,5110,FOOD,24/09/2013,371249,169.83,NET,Woodward Foodservice,10714F
Gloucester City Council,23UE,Guildhall Bar And Caf�,LA210,Catering Provisions -Food,5110,FOOD,24/09/2013,371238,4.84,NET,Total Produce Gloucester,12645E
Gloucester City Council,23UE,Guildhall Bar And Caf�,LA210,Catering Provisions -Food,5110,FOOD,24/09/2013,371239,4.84,NET,Total Produce Gloucester,12645E
Gloucester City Council,23UE,Guildhall Bar And Caf�,LA210,Catering Provisions -Food,5110,FOOD,24/09/2013,371240,4.84,NET,Total Produce Gloucester,12645E
Gloucester City Council,23UE,Guildhall Bar And Caf�,LA210,Catering Provisions -Food,5110,FOOD,24/09/2013,371241,4.84,NET,Total Produce Gloucester,12645E
Gloucester City Council,23UE,Hackney Carriages,HL100,Fees For Services Received,5350,CRBS JULY 2013,24/09/2013,368443,836,NET,Disclosure And Barring Service,00119W
Gloucester City Council,23UE,Hackney Carriages,HL100,Fees For Services Received,5350,AUG13 CRB CHECKS,24/09/2013,370135,660,NET,Disclosure And Barring Service,00119W
Gloucester City Council,23UE,Investment Property,RB500,General Repair/Maint Buildings,3000,Crem boiler service JUN13,24/09/2013,370757,348,NET,Hewer Facilities Mgt Ltd,05232A
Gloucester City Council,23UE,Licences,HE510,Licences,9301,PERMIT APPLICATION,24/09/2013,371254,50,NET,REDACTED,REDACTED
Gloucester City Council,23UE,Nms Contract,HI102,Routine R And M - Vehicles,4011,AQUAZURA,24/09/2013,370297,118.58,NET,Enterprise (Aol) Ltd,06695G
Gloucester City Council,23UE,REDACTED,REDACTED,REDACTED,REDACTED,REDACTED,24/09/2013,REDACTED,421.17,NET,REDACTED,REDACTED
Gloucester City Council,23UE,Solace Project,FP843,Other Minor Supplies Services,5590,ASB salary September 2013,24/09/2013,371232,3250,NET,Gloucester City Homes,05244T
Gloucester City Council,23UE,Tourism Marketing,LT100,Rents,3200,RENT OCT-DEC 2013,24/09/2013,370165,5725,NET,P W Fido & Associates,01210A
Gloucester City Council,23UE,Youth Grant 2011/12,FP107,Funding Vol&Com Grps-Grants,7100C,YOUTH GRANT 2013-14,24/09/2013,371244,1020,NET,Quedgeley Parish Council,48506G
Gloucester City Council,23UE,75/81 Eastgate Street,RB501,Repair/Maint Of Fixed Plant,3006,boiler service 75-81 Eastgate St JUN13,25/09/2013,370758,878,NET,Hewer Facilities Mgt Ltd,05232A
Gloucester City Council,23UE,Allotment Software Colony,RY578,It Software,57,EXPENSES 17/09/13,25/09/2013,371190,214.61,CAP,Mcpc Systems (Uk) Ltd,14043X
Gloucester City Council,23UE,Blackfriars,LA609,Catering Provisions -Food,5110,Food for Sat 31/8/13,25/09/2013,371313,1322.35,NET,The Apple Tree Inn,01015RV
Gloucester City Council,23UE,Building Control,PT400,Application Fees,9312,PLANNING APPLICATION,25/09/2013,371263,67.5,NET,REDACTED,REDACTED
Gloucester City Council,23UE,Cemeteries,HC300,Routine R And M - Vehicles,4011,Gator 1485 tyre service,25/09/2013,371316,56,NET,A T S Euromaster Ltd,01860B
Gloucester City Council,23UE,City Centre Manager,PT310,Events,5952,SOUND 21/07/13,25/09/2013,371328,70,NET,REDACTED,REDACTED
Gloucester City Council,23UE,Civic Admin And Hospitality,RC210,Hospitality,5122,Grant for Jet Age Museum,25/09/2013,371312,5000,NET,Gloucestershire Aviation Collection,06725K
Gloucester City Council,23UE,Contact Centre,RB300,Basic Pay -Admin /Prof Staff,2601,STAFF W/E 22/09/13,25/09/2013,371321,1783.13,NET,One To One Recruitment,04752H
Gloucester City Council,23UE,Council Streetcare Team,HI101,Maint Of Grounds - General,3030,Cathedral Way lighting repairs,25/09/2013,370963,63.76,NET,Rf Gardiner Limited,12299B
Gloucester City Council,23UE,Council Streetcare Team,HI101,Maint Of Grounds - General,3030,fill in holes 8 Seventh Ave,25/09/2013,370986,60.46,NET,Rf Gardiner Limited,12299B
Gloucester City Council,23UE,Crematorium,HC200,Cleaning Materials,3600,Crem towel service Oct13,25/09/2013,371314,107.2,NET,Initial Washroom Solutions,24219P
Gloucester City Council,23UE,Docks Complex - Telephones,RB120,Telephones And Fax,5410,TELEPHONES,25/09/2013,371319,208,NET,Media & Communications Ltd,14049J
Gloucester City Council,23UE,Eastgate Rooftop Emerg Works,RY159,Contract Payments,20,Eastgate shopping ctr plumbing repairs,25/09/2013,370979,510.45,CAP,Rf Gardiner Limited,12299B
Gloucester City Council,23UE,General Works Fund,RY203,Capital General Repairs & Main,13,Guildhall remedial works,25/09/2013,370960,540,CAP,Hewer Facilities Mgt Ltd,05232A
Gloucester City Council,23UE,General Works Fund,RY203,Cap Repair/Maint Fixed Plant,14,Guildhall remedial works,25/09/2013,370960,1064,CAP,Hewer Facilities Mgt Ltd,05232A
Gloucester City Council,23UE,Glos Airport - Asset Review,RY215,Consultants Fees,30,,25/09/2013,371368,12594,CAP,York Aviation Llp,14035W
Gloucester City Council,23UE,Hempsted Market/Car Boot,HM234,Sewerage And Environ Charges,3402,Markets toilets Aug13,25/09/2013,371306,496.2,NET,Abbey Loos Limited,10787B
Gloucester City Council,23UE,Housing Works In Default,HD500,Clearance And Cleansing Fees,5384,allocation fee Mercer Developments,25/09/2013,371325,40,NET,Hmcts,03444B
Gloucester City Council,23UE,Investment Property,RB500,General Repair/Maint Buildings,3000,City museum boiler service 18/6/13,25/09/2013,370002,935,NET,Hewer Facilities Mgt Ltd,05232A
Gloucester City Council,23UE,Investment Property,RB500,General Repair/Maint Buildings,3000,Herbert warehouse lighting repairs,25/09/2013,370962,63.76,NET,Rf Gardiner Limited,12299B
Gloucester City Council,23UE,Investment Property,RB500,General Repair/Maint Buildings,3000,Guildhall light fitting relacement,25/09/2013,370964,205.72,NET,Rf Gardiner Limited,12299B
Gloucester City Council,23UE,Investment Property,RB500,General Repair/Maint Buildings,3000,Herbert w/h socket repairs,25/09/2013,370965,87.84,NET,Rf Gardiner Limited,12299B
Gloucester City Council,23UE,Investment Property,RB500,General Repair/Maint Buildings,3000,Crem toilet repairs,25/09/2013,370966,27.82,NET,Rf Gardiner Limited,12299B
Gloucester City Council,23UE,Investment Property,RB500,General Repair/Maint Buildings,3000,City Museum tap repairs,25/09/2013,370967,8.3,NET,Rf Gardiner Limited,12299B
Gloucester City Council,23UE,Investment Property,RB500,General Repair/Maint Buildings,3000,Phillpotts w/h lighting repair works,25/09/2013,370968,68.93,NET,Rf Gardiner Limited,12299B
Gloucester City Council,23UE,Investment Property,RB500,General Repair/Maint Buildings,3000,City Museum leaking toilet repair,25/09/2013,370977,21.57,NET,Rf Gardiner Limited,12299B
Gloucester City Council,23UE,Investment Property,RB500,General Repair/Maint Buildings,3000,Shopmobility toilet repairs,25/09/2013,370978,20.13,NET,Rf Gardiner Limited,12299B
Gloucester City Council,23UE,Investment Property,RB500,General Repair/Maint Buildings,3000,City Museum toilet repair,25/09/2013,370980,148.44,NET,Rf Gardiner Limited,12299B
Gloucester City Council,23UE,Investment Property,RB500,General Repair/Maint Buildings,3000,Kimberley w/h urinal unblocking,25/09/2013,370982,103.06,NET,Rf Gardiner Limited,12299B
Gloucester City Council,23UE,Investment Property,RB500,General Repair/Maint Buildings,3000,Folk Museum manhole lid replacement,25/09/2013,370983,16.32,NET,Rf Gardiner Limited,12299B
Gloucester City Council,23UE,Investment Property,RB500,General Repair/Maint Buildings,3000,City Museum repair outside lighting,25/09/2013,370985,142.86,NET,Rf Gardiner Limited,12299B
Gloucester City Council,23UE,Investment Property,RB500,General Repair/Maint Buildings,3000,city museum refix flooring,25/09/2013,370987,56.26,NET,Rf Gardiner Limited,12299B
Gloucester City Council,23UE,Kings Sq Paving Emerg Works,RY161,Contract Payments,20,Kings Square slab & paving works,25/09/2013,370970,548.44,CAP,Rf Gardiner Limited,12299B
Gloucester City Council,23UE,Legal Services,RS200,Basic Pay - Temporary Staff,2751,REDACTED,25/09/2013,371025,401.1,NET,Premiere Employment Ltd,55468Z
Gloucester City Council,23UE,Legal Services,RS200,Basic Pay - Temporary Staff,2751,REDACTED,25/09/2013,371245,494.69,NET,Premiere Employment Ltd,55468Z
Gloucester City Council,23UE,Nms Contract,HI102,General Repair/Maint Buildings,3000,JUN13 electrical items collection,25/09/2013,371133,550,NET,Furniture Recycling Project,51707U
Gloucester City Council,23UE,Off Street Car Parks,PP110,General Repair/Maint Buildings,3000,weedkilling Ladgbellegate St car park,25/09/2013,370972,122.04,NET,Rf Gardiner Limited,12299B
Gloucester City Council,23UE,Off Street Car Parks,PP110,General Repair/Maint Buildings,3000,weed killing Hampden Way car park,25/09/2013,370973,96.25,NET,Rf Gardiner Limited,12299B
Gloucester City Council,23UE,Off Street Car Parks,PP110,General Repair/Maint Buildings,3000,weed killing Hare Ln N car park,25/09/2013,370974,109.4,NET,Rf Gardiner Limited,12299B
Gloucester City Council,23UE,Off Street Car Parks,PP110,General Repair/Maint Buildings,3000,weedkilling St Michael's Sq car park,25/09/2013,370975,230.35,NET,Rf Gardiner Limited,12299B
Gloucester City Council,23UE,Off Street Car Parks,PP110,General Repair/Maint Buildings,3000,weed killing Gt Western Rd,25/09/2013,370976,363.03,NET,Rf Gardiner Limited,12299B
Gloucester City Council,23UE,Off Street Car Parks,PP110,General Repair/Maint Buildings,3000,pipework repairs Kingswalk car park,25/09/2013,370981,81.62,NET,Rf Gardiner Limited,12299B
Gloucester City Council,23UE,Off Street Car Parks,PP110,General Repair/Maint Buildings,3000,weed killing Station Rd/Nettleton Rd,25/09/2013,370984,103.06,NET,Rf Gardiner Limited,12299B
Gloucester City Council,23UE,Off Street Car Parks,PP110,General Repair/Maint Buildings,3000,Hare Lane South car park weedkilling,25/09/2013,371326,109.4,NET,Rf Gardiner Limited,12299B
Gloucester City Council,23UE,Off Street Car Parks,PP110,General Repair/Maint Buildings,3000,Westgate St car park weedkilling,25/09/2013,371327,511.39,NET,Rf Gardiner Limited,12299B
Gloucester City Council,23UE,Pest Control,HD400,Fees For Services Received,5350,stickers & correx board stickers,25/09/2013,369747,326.5,NET,Estate Signs & Print,13634A
Gloucester City Council,23UE,Planning Policy,PT300,Basic Pay - Temporary Staff,2751,REDACTED,25/09/2013,371324,1612.78,NET,Randstad Cpe Ltd,13987L
Gloucester City Council,23UE,Procurement Management,RP100,Vocational Training,2970,COURSE CANCELLATION FEE,25/09/2013,370991,50,NET,Government Procurement Service,14153N
Gloucester City Council,23UE,Ranger Centre/Netheridge Wks,RY167,Contract Payments,20,Ranger Centre security door works,25/09/2013,370969,122.91,CAP,Rf Gardiner Limited,12299B
Gloucester City Council,23UE,Registration Of Electors,RS400,Computer Hardware <£5000,5420,Dell Optiplex 9020,25/09/2013,371302,963.46,NET,Dell Computers Corporation Ltd,55920C
Gloucester City Council,23UE,Robinswoodhill Trading Account,LP203,Purch Vehicles/M. Plant <£5000,4000,Stihl Pole Saw & Super Harness,25/09/2013,371315,580.16,NET,Commercial Mower Supplies,06799D
Gloucester City Council,23UE,The Fleece,RB530,General Repair/Maint Buildings,3000,replace door at The Fleece,25/09/2013,370971,259.06,NET,Rf Gardiner Limited,12299B
Gloucester City Council,23UE,Tourism Marketing,LT100,Trade Refuse Sacks,5040,TRADE WASTE,25/09/2013,371322,151.13,NET,Enterprise (Aol) Ltd,06695G
Gloucester City Council,23UE,Website Rebuild,RY573,Consultants Fees,30,REDACTED,25/09/2013,371320,2250,CAP,Patzone It Solutions Ltd,13059R
Gloucester City Council,23UE,Avenger Task Force,FP842,Other Minor Supplies Services,5590,REDACTED,26/09/2013,371375,140,NET,Through The Gateway,14036U
Gloucester City Council,23UE,Blackfriars,LA609,Hire Of Equipment,5020,Aug13 chair cover hire,26/09/2013,371334,504,NET,Cotswold Chair Covers,13553B
Gloucester City Council,23UE,Blackfriars,LA609,Hire Of Equipment,5020,History festival lighting hire,26/09/2013,371330,150,NET,REDACTED,REDACTED
Gloucester City Council,23UE,Blackfriars Catering,LA220,Catering Provisions -Liquor,5111,Blackfriars drinks,26/09/2013,370959,142,NET,Gloucester Brewery,13373F
Gloucester City Council,23UE,Cemeteries,HC300,Maint Of Grounds - General,3030,FENCING,26/09/2013,371189,343.88,NET,Meika Ltd T/A Primrose,14241R
Gloucester City Council,23UE,Cemeteries,HC300,General Repair/Maint Buildings,3000,CALL OUT,26/09/2013,371255,291.67,NET,Revolution Multimedia,07880L
Gloucester City Council,23UE,Cemeteries,HC300,Operational Materials,5070,REGISTER,26/09/2013,371256,542.81,NET,Shaw & Sons Ltd,40310F
Gloucester City Council,23UE,City Centre Manager,PT310,Events,5952,Food Festival Kimbrose Triangle sound,26/09/2013,371333,60,NET,REDACTED,REDACTED
Gloucester City Council,23UE,Civic Admin And Hospitality,RC210,Other Minor Supplies Services,5590,Calligraphy for civic photographs,26/09/2013,371331,21,NET,REDACTED,REDACTED
Gloucester City Council,23UE,Civil Parking Enforcement,PT741,Pcn Charges,9450,PARKING FG1024832A,26/09/2013,371370,35,NET,REDACTED,REDACTED
Gloucester City Council,23UE,Client Revs & Bens Contract,RT240,Fees For Services Received,5350,REDACTED,26/09/2013,371367,148.5,NET,Assevarate Ltd,11749A
Gloucester City Council,23UE,Food Safety,HE100,Charges For Services,9300,ThermaData logger repair,26/09/2013,370336,32,NET,Electronic Temperature Instruments Ltd,04785K
Gloucester City Council,23UE,Gloucester Guildhall,LA100,Advertising And Publicity,5702,Guildhall Sept13 brochure distribution,26/09/2013,369610,296,NET,Glide Media,58829J
Gloucester City Council,23UE,Gloucester Guildhall,LA100,Vocational Training,2970,Programming Cultural Film 26/9/13,26/09/2013,371304,100,NET,Independent Cinema Office,03614A
Gloucester City Council,23UE,Gloucester Guildhall,LA100,Publications,5060,ADVERTS AUG 2013,26/09/2013,370502,550,NET,Local World Ltd,08556P
Gloucester City Council,23UE,Gloucester Guildhall,LA100,Publications,5060,JULY PAPERS,26/09/2013,368833,24.85,NET,W H Smith Ltd,40860M
Gloucester City Council,23UE,Gloucester Guildhall,LA100,Publications,5060,NEWSPAPERS,26/09/2013,370233,25.3,NET,W H Smith Ltd,40860M
Gloucester City Council,23UE,Hempsted Market/Car Boot,HM234,Maint Of Grounds - General,3030,Streetmaster Ltd edition,26/09/2013,368018,77,NET,The Helping Hand Company,08066N
Gloucester City Council,23UE,Hmo Licences,HE520,Operational Equipment <£5000,5012,Contego service & parts,26/09/2013,371377,70,NET,Gordon Morris Ltd,59508Z
Gloucester City Council,23UE,Homelessness,CH120,Removal And Storage Fees,5513,REDACTED,26/09/2013,371338,163.71,NET,Advanced Removals & Storage Ltd,57142R
Gloucester City Council,23UE,Homelessness,CH120,Removal And Storage Fees,5513,REDACTED,26/09/2013,371339,240,NET,Advanced Removals & Storage Ltd,57142R
Gloucester City Council,23UE,Homelessness Prevention,CH122,Fees For Services Received,5350,REDACTED,26/09/2013,371374,484.6,NET,REDACTED,REDACTED
Gloucester City Council,23UE,Homelessness Prevention,CH122,Fees For Services Received,5350,REDACTED,26/09/2013,371376,800,NET,Rent It,08245L
Gloucester City Council,23UE,Investment Property,RB500,General Repair/Maint Buildings,3000,North Warehouse boiler service 26/6/13,26/09/2013,370004,480,NET,Hewer Facilities Mgt Ltd,05232A
Gloucester City Council,23UE,Mandatory Rent Allowances,DD100,Rent Allowances - Normal Payts,7200,REDACTED,26/09/2013,371374,500,NET,REDACTED,REDACTED
Gloucester City Council,23UE,Parking Cctv,PT745,Pcn Charges,9450,PARKING GO9061261A,26/09/2013,371373,30,NET,REDACTED,REDACTED
Gloucester City Council,23UE,Procurement Management,RP100,Vocational Training,2970,Supply Chain Mgmt NVQ,26/09/2013,371335,500,NET,Commercial Skills,11922L
Gloucester City Council,23UE,REDACTED,REDACTED,REDACTED,REDACTED,REDACTED,26/09/2013,REDACTED,90,NET,REDACTED,REDACTED
Gloucester City Council,23UE,REDACTED,REDACTED,REDACTED,REDACTED,REDACTED,26/09/2013,REDACTED,90,NET,REDACTED,REDACTED
Gloucester City Council,23UE,REDACTED,REDACTED,REDACTED,REDACTED,REDACTED,26/09/2013,REDACTED,90,NET,REDACTED,REDACTED
Gloucester City Council,23UE,REDACTED,REDACTED,REDACTED,REDACTED,REDACTED,26/09/2013,REDACTED,120,NET,REDACTED,REDACTED
Gloucester City Council,23UE,REDACTED,REDACTED,REDACTED,REDACTED,REDACTED,26/09/2013,REDACTED,140,NET,REDACTED,REDACTED
Gloucester City Council,23UE,REDACTED,REDACTED,REDACTED,REDACTED,REDACTED,26/09/2013,REDACTED,1000,NET,REDACTED,REDACTED
Gloucester City Council,23UE,Rehousing,CH111,Fees For Services Received,5350,REDACTED,26/09/2013,371336,20.5,NET,Hadwen Medical Practice,59727U
Gloucester City Council,23UE,Rehousing,CH111,Fees For Services Received,5350,REDACTED,26/09/2013,371337,20.5,NET,REDACTED,REDACTED
Gloucester City Council,23UE,Retail Market - Landlord,HM300,Cleaning / Domestic Equipment,5011,v sweeper,26/09/2013,369237,54.99,NET,Core Hygiene Ltd,03885P
Gloucester City Council,23UE,Retail Market - Landlord,HM300,Cleaning / Domestic Equipment,5011,Markets towel service Oct13,26/09/2013,371303,17.21,NET,Initial Washroom Solutions,06143R
Gloucester City Council,23UE,Retail Market - Landlord,HM300,Service Charges,3020,SEPT-DEC 2013,26/09/2013,370700,12225.75,NET,Workman Llp,11021M
Gloucester City Council,23UE,Safer Stronger Communities,FP841,Other Minor Supplies Services,5590,hire of roundabout ride for 28/8/13,26/09/2013,371381,200,NET,All The Fun Of The Fete,14276V
Gloucester City Council,23UE,Summer Festival,LT300,Hire Of Equipment,5020,Circus Whiz workshops 1/8/13,26/09/2013,371380,1050,NET,John Jeremy Creative Entertainment,01005D
Gloucester City Council,23UE,Summer Festival,LT300,Fees For Services Received,5350,FIRST AID 26/07/13,26/09/2013,369299,60,NET,St John Ambulance*,03597Y
Gloucester City Council,23UE,Summer Festival,LT300,Fees For Services Received,5350,FIRST AID 03/08/13,26/09/2013,369690,330,NET,St John Ambulance*,03597Y
Gloucester City Council,23UE,Youth Grant 2011/12,FP107,Funding Vol&Com Grps-Grants,7100C,Youth Grant 2013/14,26/09/2013,371305,2417,NET,Active Connections,65827RV
Gloucester City Council,23UE,Youth Grant 2011/12,FP107,Funding Vol&Com Grps-Grants,7100C,Youth Grant 2013-14,26/09/2013,371366,2500,NET,Gloucestershire Young Carers,11062B
Gloucester City Council,23UE,75/81 Eastgate Street,RB501,Window Cleaning,3610,75-81 Eastgate st Quarterly window clean,27/09/2013,371130,65,NET,REDACTED,REDACTED
Gloucester City Council,23UE,Aspire Admin Charges,LC105,Other Minor Income,9900,bailiff payments 24/09/13,27/09/2013,371379,98,NET,Aspire Sports & Cultural Trust,08135V
Gloucester City Council,23UE,Asset Management,RS300,Basic Pay - Temporary Staff,2751,contractor service w/e 23/08/13,27/09/2013,371382,1258.13,NET,Hays Specialist Recruitment Ltd,55516P
Gloucester City Council,23UE,Asset Management,RS300,Basic Pay - Temporary Staff,2751,Contractor services w/e 16/8/13,27/09/2013,371383,457.51,NET,Hays Specialist Recruitment Ltd,55516P
Gloucester City Council,23UE,Asset Management,RS300,Basic Pay - Temporary Staff,2751,Contractor services w/e 6/9/13,27/09/2013,371384,1250.5,NET,Hays Specialist Recruitment Ltd,55516P
Gloucester City Council,23UE,Asset Management,RS300,Basic Pay - Temporary Staff,2751,Contractor services w/e 13/09/13,27/09/2013,371385,1174.25,NET,Hays Specialist Recruitment Ltd,55516P
Gloucester City Council,23UE,Asset Management,RS300,Basic Pay - Temporary Staff,2751,contractor services w/e 30/8/13,27/09/2013,371386,1021.75,NET,Hays Specialist Recruitment Ltd,55516P
Gloucester City Council,23UE,Asset Management,RS300,Fees For Services Received,5350,PUBLICATION,27/09/2013,371429,330.75,NET,Riba Enterprises,26860R
Gloucester City Council,23UE,Building Control,PT400,Application Fees,9312,building control fee overpayment refund,27/09/2013,371378,15,NET,REDACTED,REDACTED
Gloucester City Council,23UE,Business Support,PT250,Fuel,4012,vehicle fuel,27/09/2013,371298,163.18,NET,Allstar Business Solutions Ltd (Arval),06594A
Gloucester City Council,23UE,Business Transformation & Tech,RT700,Computer Hardware <£5000,5420,CONFERENCING PHONE,27/09/2013,371521,329.15,NET,Pmc Electrics Ltd,03094G
Gloucester City Council,23UE,Cemeteries,HC300,Fuel,4012,Class A2 gasoil,27/09/2013,371225,1481.13,NET,Cpl Petroleum,55192U
Gloucester City Council,23UE,Civica Admin Charges,RT105,Fees For Services Received,5350,CHD subscription advance,27/09/2013,366772,4,NET,Companies House,58954E
Gloucester City Council,23UE,Civica Admin Charges,RT105,Fees For Services Received,5350,CHD subscription advance,27/09/2013,368802,4,NET,Companies House,58954E
Gloucester City Council,23UE,Civica Admin Charges,RT105,Fees For Services Received,5350,CHD subscription advance,27/09/2013,370197,4,NET,Companies House,58954E
Gloucester City Council,23UE,Civica Admin Charges,RT105,Fees For Services Received,5350,ind directors rpt x 2,27/09/2013,370198,13.5,NET,Experian Ltd,57191B
Gloucester City Council,23UE,Disabled Facilities Grants,CY013,Disabled Facility Grants,74,GRANT REF MDF4986,27/09/2013,371444,6159.62,CAP,Mears Home Improvement Ltd,00096G
Gloucester City Council,23UE,Disabled Facilities Grants,CY013,Disabled Facility Grants,74,REDACTED,27/09/2013,371179,4155,CAP,Nks Contracts (Central) Ltd,56355E
Gloucester City Council,23UE,Docks Complex - Services,RB100,Cleaning Materials,3600,toilet rolls & paper hand towels,27/09/2013,371231,104.66,NET,Core Hygiene Ltd,03885P
Gloucester City Council,23UE,Electrical Investigatory Works,RY142,Capital Fire Equipment,16,SPRINKLER INSPECTION,27/09/2013,368501,180,CAP,A & E Fire Equipment Limited,54289L
Gloucester City Council,23UE,Electrical Investigatory Works,RY142,Capital Fire Equipment,16,extinguisher service Robinswood farmhse,27/09/2013,370200,134,CAP,A & E Fire Equipment Limited,54289L
Gloucester City Council,23UE,Electrical Investigatory Works,RY142,Capital Fire Equipment,16,Eastgate Market extinguishers,27/09/2013,370937,110,CAP,A & E Fire Equipment Limited,54289L
Gloucester City Council,23UE,Electrical Investigatory Works,RY142,Capital General Repairs & Main,13,stainless steel sign,27/09/2013,370211,260,CAP,Betasigns Ltd,13875Z
Gloucester City Council,23UE,Environmental Planning,LM340,Repair/Maint Of Monuments,3004,PLAQUE,27/09/2013,371432,649.45,NET,Leander Architectural,02831Z
Gloucester City Council,23UE,Hkp Accomodation Review,RY163,Contract Payments,20,REDACTED,27/09/2013,370615,247,CAP,Find The Engineer Recruitment Ltd*,12977Z
Gloucester City Council,23UE,Investment Property,RB500,General Repair/Maint Buildings,3000,air cond service call out 19/8/13,27/09/2013,371139,187,NET,Gea Denco Ltd,57271C
Gloucester City Council,23UE,Legal Services,RS200,Basic Pay - Temporary Staff,2751,REDACTED,27/09/2013,371433,645.84,NET,Sellick Partnership Group Ltd,11057C
Gloucester City Council,23UE,Organisational Health,RC160,Fees For Services Received,5350,City Museum water cooler Sept13-14,27/09/2013,371093,144,NET,Greenworks Solutions Ltd,05909G
Gloucester City Council,23UE,REDACTED,REDACTED,REDACTED,REDACTED,REDACTED,27/09/2013,REDACTED,50,NET,REDACTED,REDACTED
Gloucester City Council,23UE,Stationery Services,RS150,Stationery,5302,STATIONERY,27/09/2013,371434,96.46,NET,Lyreco Uk Ltd,11746G
Gloucester City Council,23UE,Stationery Services,RS150,Stationery,5302,STATIONERY,27/09/2013,371441,129.93,NET,Lyreco Uk Ltd,11746G
Gloucester City Council,23UE,Stationery Services,RS150,Stationery,5302,PAPER,27/09/2013,371439,451,NET,Premier Paper Group Ltd,09166Y
Gloucester City Council,23UE,Summer Festival,LT300,Fees For Services Received,5350,STAFF MEALS,27/09/2013,371443,209.25,NET,REDACTED,REDACTED
Gloucester City Council,23UE,Swrda Asset Transfer,RY184,Capital General Repairs & Main,13,Gloucester Docks paver repairs,27/09/2013,371310,315,CAP,Drainaway Environmental Services Limited,12923Z
Gloucester City Council,23UE,The Fleece,RB530,General Repair/Maint Buildings,3000,FLEECE HOTEL,27/09/2013,371445,200,NET,Gloucester Asbestos Ltd,00496K
Gloucester City Council,23UE,Asset Management,RS300,Advertising And Publicity,5702,advert in site recorder,30/09/2013,371466,345,NET,Institute Of Clerks Of Works Of Gb Inc,59358U
Gloucester City Council,23UE,Business Transformation & Tech,RT700,Computer Hardware <£5000,5420,320GB HARD DRIVE,30/09/2013,371387,37.58,NET,Dell Computers Corporation Ltd,55920C
Gloucester City Council,23UE,Business Transformation & Tech,RT700,Computer Hardware <£5000,5420,4GB MEMORY MODULES,30/09/2013,371389,57.6,NET,Dell Computers Corporation Ltd,55920C
Gloucester City Council,23UE,Business Transformation & Tech,RT700,Computer Hardware <£5000,5420,KEYBOARDS & MICE,30/09/2013,371390,143.7,NET,Dell Computers Corporation Ltd,55920C
Gloucester City Council,23UE,Civic Admin And Hospitality,RC210,Other Minor Supplies Services,5590,framing for civic photos,30/09/2013,371457,110,NET,Geoff C Cook Picture Framing,58727U
Gloucester City Council,23UE,Civic Admin And Hospitality,RC210,Other Minor Supplies Services,5590,map framing,30/09/2013,371458,120,NET,Geoff C Cook Picture Framing,58727U
Gloucester City Council,23UE,Civica Contract Revs & Bens,RT250,Contracted Services,6970,NOV13 core Revs & Bens service,30/09/2013,370529,136180.09,NET,Civica Uk Ltd,10841X
Gloucester City Council,23UE,Civica Contract Revs & Bens,RT250,Contracted Services,6970,DEC13 core Revs & Bens service,30/09/2013,370530,136180.09,NET,Civica Uk Ltd,10841X
Gloucester City Council,23UE,Client Revs & Bens Contract,RT240,Court Fees,5358,REDACTED,30/09/2013,370133,500,NET,Cotswold District Council,49331J
Gloucester City Council,23UE,Client Revs & Bens Contract,RT240,Court Fees,5358,REDACTED,30/09/2013,370770,1000,NET,REDACTED,REDACTED
Gloucester City Council,23UE,Countryside Unit,LP201,Routine R And M - Vehicles,4011,Stihl brake band,30/09/2013,371512,8.04,NET,Commercial Mower Supplies,06799D
Gloucester City Council,23UE,Countryside Unit,LP201,Routine R And M - Vehicles,4011,shut off valve,30/09/2013,371464,45.4,NET,Id Spares & Services,12784N
Gloucester City Council,23UE,Crematorium,HC200,Maint Of Grounds - General,3030,Roses for Crematorium,30/09/2013,371508,525,NET,Genus Plant Sourcing,14143S
Gloucester City Council,23UE,Disabled Facilities Grants,CY013,Disabled Facility Grants,74,REDACTED,30/09/2013,371471,12962.75,CAP,Beard & Tandy,03160V
Gloucester City Council,23UE,Disabled Facilities Grants,CY013,Disabled Facility Grants,74,REDACTED,30/09/2013,371502,619,CAP,L Coward & Son Ltd,47989M
Gloucester City Council,23UE,Docks Complex - Services,RB100,Operational Equipment <£5000,5012,boxes of plastic cups,30/09/2013,371132,180,NET,Greenworks Solutions Ltd,05909G
Gloucester City Council,23UE,Electrical Investigatory Works,RY142,Capital Fire Equipment,16,Crem fire extinguishers,30/09/2013,371461,194,CAP,A & E Fire Equipment Limited,54289L
Gloucester City Council,23UE,Flood Defence Grants To Househ,CY011,Other Capital Grants,89,Safe at home Q1 JUN-AUG13,30/09/2013,371456,4934,CAP,Gloucestershire County Council,18650D
Gloucester City Council,23UE,Folk Museum,LM210,Advertising And Publicity,5702,tea room banners,30/09/2013,371454,150,NET,Alpha Colour Printers Ltd,00945B
Gloucester City Council,23UE,General Works Fund,RY203,Capital General Repairs & Main,13,Eastgate Market works,30/09/2013,371136,248.9,CAP,Davey's Building Maintenance,57010K
Gloucester City Council,23UE,Gis Development Work,RY555,Contract Payments,20,Contractor services w/e 20/9/13,30/09/2013,371453,1250,CAP,Badenoch & Clark,01536P
Gloucester City Council,23UE,Gloucester Guildhall,LA100,Fees For Services Received,5350,Backline hire - Underground Festival,30/09/2013,371460,379,NET,Big Fish Rentals Ltd,14281C
Gloucester City Council,23UE,Homelessness,CH120,General Repair/Maint Buildings,3000,chair,30/09/2013,371463,235,NET,Cotswold Business Supplies,10835S
Gloucester City Council,23UE,Investment Property,RB500,General Repair/Maint Buildings,3000,HERBERT WAREHOUSE,30/09/2013,359322,650,NET,Rf Gardiner Limited,12299B
Gloucester City Council,23UE,Legal Services,RS200,Basic Pay - Temporary Staff,2751,REDACTED,30/09/2013,371499,494.69,NET,Premiere Employment Ltd,55468Z
Gloucester City Council,23UE,Legal Services,RS200,Basic Pay -Admin /Prof Staff,2601,REDACTED,30/09/2013,371500,1127.61,NET,Venn Group Ltd,04339P
Gloucester City Council,23UE,Off Street Car Parks,PP110,Pcn Charges,9450,PARKING FE00005994,30/09/2013,371371,25,NET,REDACTED,REDACTED
Gloucester City Council,23UE,Organisational Health,RC160,Fees For Services Received,5350,Folk Museum watercooler Sep13-14,30/09/2013,371452,144,NET,Greenworks Solutions Ltd,05909G
Gloucester City Council,23UE,REDACTED,REDACTED,REDACTED,REDACTED,REDACTED,30/09/2013,REDACTED,150,NET,REDACTED,REDACTED
Gloucester City Council,23UE,REDACTED,REDACTED,REDACTED,REDACTED,REDACTED,30/09/2013,REDACTED,100,NET,REDACTED,REDACTED
Gloucester City Council,23UE,Robinswoodhill Trading Account,LP203,Training Course Fees,5367,Fungi Id training day,30/09/2013,371465,40,NET,Countryside Management Association,56073U
Gloucester City Council,23UE,St Michaels Tower,GY016,Contract Payments,20,HERBERT WAREHOUSE,30/09/2013,359322,109.69,CAP,Rf Gardiner Limited,12299B
Gloucester City Council,23UE,Tic Coach Tickets,LT105,Materials For Sale,5080,SALES AUG 2013,30/09/2013,371504,4808.5,NET,Marchants Coaches Ltd,48151Y
Gloucester City Council,23UE,Tic Rovercard Sales,LT101,Materials For Sale,5080,SALES PERIOD 5,30/09/2013,371505,9310.5,NET,Stagecoach Services Ltd*,56554W
Gloucester City Council,23UE,Tic Rovercard Sales,LT101,Sale Of Goods And Services,9230,SALES PERIOD 5,30/09/2013,371505,-775.88,NET,Stagecoach Services Ltd*,56554W
Gloucester City Council,23UE,Blackfriars Priory,RY207,Contract Payments,20,CONSERVATION,01/10/2013,371259,243,CAP,Sally Strachey Historic Conservation Ltd,14202B
Gloucester City Council,23UE,Contact Centre,RB300,Basic Pay -Admin /Prof Staff,2601,agency staff w/e 22/9/13,01/10/2013,371470,805,NET,Cps Anystaff Recruitment Ltd,13945D
Gloucester City Council,23UE,Disabled Facilities Grants,CY013,Disabled Facility Grants,74,REDACTED,01/10/2013,371592,169.5,CAP,Severn Trent Water Ltd,04182Z
Gloucester City Council,23UE,Eastgate Rooftop Emerg Works,RY159,Contract Payments,20,EASTGATE CAR PARK,01/10/2013,371588,16724.28,CAP,Rsw Roofing Ltd,11063G
Gloucester City Council,23UE,Environmental Planning,LM340,Operational Materials,5070,Robinswood Hill tree works,01/10/2013,371520,1200,NET,Greenfields Garden Services Ltd,48130G
Gloucester City Council,23UE,General Drainage Works,PY241,Contract Payments,20,YARROW CLOSE,01/10/2013,371560,3425,CAP,Rj Contracting (Environmental) Ltd,07429H
Gloucester City Council,23UE,Gloucester Guildhall,LA100,Hire Of Equipment,5020,UNDERGROUND FEST,01/10/2013,371566,170,NET,R U Electrical Services,10409S
Gloucester City Council,23UE,Homelessness Prevention,CH122,Basic Pay - Temporary Staff,2751,AGENCY STAFF W/E 22/9/13,01/10/2013,371577,737.41,NET,James Andrews Recruitment Solutions,13636W
Gloucester City Council,23UE,Homelessness Prevention,CH122,Basic Pay - Temporary Staff,2751,REDACTED,01/10/2013,371501,740,NET,Venn Group Ltd,04339P
Gloucester City Council,23UE,Human Resources,EH100,Vocational Training,2970,Employment Law update training,01/10/2013,371459,60,NET,Cipd Gloucestershire Branch,01881T
Gloucester City Council,23UE,Investment Property,RB500,Lift Maintenance,3051,BLACKFRIARS,01/10/2013,371246,122,NET,Pickerings Europe Ltd*,58816U
Gloucester City Council,23UE,Investment Property,RB500,Lift Maintenance,3051,BLACKFRAIRS,01/10/2013,371258,136.02,NET,Stannah Lift Services Ltd,41700C
Gloucester City Council,23UE,Legal Services,RS200,Basic Pay - Temporary Staff,2751,REDACTED,01/10/2013,371559,674.64,NET,Sellick Partnership Group Ltd,11057C
Gloucester City Council,23UE,Museum Phase 2 Hlf,GY001,Contract Payments,20,CITY MUSEUM,01/10/2013,370590,475,CAP,Peter Goodhind Associates Ltd,18890E
Gloucester City Council,23UE,Nms Contract,HI102,General Repair/Maint Buildings,3000,AUG13 electrical items collection,01/10/2013,371127,550,NET,Furniture Recycling Project,51707U
Gloucester City Council,23UE,Nms Contract,HI102,General Repair/Maint Buildings,3000,JULY13 electrical items collection,01/10/2013,371128,550,NET,Furniture Recycling Project,51707U
Gloucester City Council,23UE,Nms Contract,HI102,General Repair/Maint Buildings,3000,Bulky items collection MAY-AUG13,01/10/2013,371129,2754,NET,Furniture Recycling Project,51707U
Gloucester City Council,23UE,Nms Contract,HI102,General Repair/Maint Buildings,3000,CONTAINERS,01/10/2013,371440,4940,NET,Uk Container Maintenance Ltd,11122E
Gloucester City Council,23UE,Off Street Car Parks,PP110,Fees For Services Received,5350,AIRTIME OCT 2013,01/10/2013,371262,515.04,NET,Parkeon Ltd,03238G
Gloucester City Council,23UE,Off Street Car Parks,PP110,General Repair/Maint Buildings,3000,KINGS WALK CAR PARK,01/10/2013,371561,380,NET,Rj Contracting (Environmental) Ltd,07429H
Gloucester City Council,23UE,REDACTED,REDACTED,REDACTED,REDACTED,REDACTED,01/10/2013,REDACTED,150,NET,REDACTED,REDACTED
Gloucester City Council,23UE,REDACTED,REDACTED,REDACTED,REDACTED,REDACTED,01/10/2013,REDACTED,500,NET,REDACTED,REDACTED
Gloucester City Council,23UE,REDACTED,REDACTED,REDACTED,REDACTED,REDACTED,01/10/2013,REDACTED,150,NET,REDACTED,REDACTED
Gloucester City Council,23UE,REDACTED,REDACTED,REDACTED,REDACTED,REDACTED,01/10/2013,REDACTED,150,NET,REDACTED,REDACTED
Gloucester City Council,23UE,REDACTED,REDACTED,REDACTED,REDACTED,REDACTED,01/10/2013,REDACTED,625,NET,REDACTED,REDACTED
Gloucester City Council,23UE,REDACTED,REDACTED,REDACTED,REDACTED,REDACTED,01/10/2013,REDACTED,150,NET,REDACTED,REDACTED
Gloucester City Council,23UE,REDACTED,REDACTED,REDACTED,REDACTED,REDACTED,01/10/2013,REDACTED,75,NET,REDACTED,REDACTED
Gloucester City Council,23UE,REDACTED,REDACTED,REDACTED,REDACTED,REDACTED,01/10/2013,REDACTED,75,NET,REDACTED,REDACTED
Gloucester City Council,23UE,REDACTED,REDACTED,REDACTED,REDACTED,REDACTED,01/10/2013,REDACTED,75,NET,REDACTED,REDACTED
Gloucester City Council,23UE,REDACTED,REDACTED,REDACTED,REDACTED,REDACTED,01/10/2013,REDACTED,75,NET,REDACTED,REDACTED
Gloucester City Council,23UE,REDACTED,REDACTED,REDACTED,REDACTED,REDACTED,01/10/2013,REDACTED,50,NET,REDACTED,REDACTED
Gloucester City Council,23UE,REDACTED,REDACTED,REDACTED,REDACTED,REDACTED,01/10/2013,REDACTED,150,NET,REDACTED,REDACTED
Gloucester City Council,23UE,REDACTED,REDACTED,REDACTED,REDACTED,REDACTED,01/10/2013,REDACTED,75,NET,REDACTED,REDACTED
Gloucester City Council,23UE,REDACTED,REDACTED,REDACTED,REDACTED,REDACTED,01/10/2013,REDACTED,150,NET,REDACTED,REDACTED
Gloucester City Council,23UE,REDACTED,REDACTED,REDACTED,REDACTED,REDACTED,01/10/2013,REDACTED,100,NET,REDACTED,REDACTED
Gloucester City Council,23UE,REDACTED,REDACTED,REDACTED,REDACTED,REDACTED,01/10/2013,REDACTED,150,NET,REDACTED,REDACTED
Gloucester City Council,23UE,REDACTED,REDACTED,REDACTED,REDACTED,REDACTED,01/10/2013,REDACTED,100,NET,REDACTED,REDACTED
Gloucester City Council,23UE,Rehousing,CH111,Fees For Services Received,5350,REDACTED,01/10/2013,371580,20.5,NET,Gloucester City Health Centre,02093U
Gloucester City Council,23UE,Asbru - Other Funders,FP846,Other Minor Supplies Services,5590,REDACTED,02/10/2013,371503,632.19,NET,Travail Employment Ltd,49371W
Gloucester City Council,23UE,Avenger Task Force,FP842,Other Minor Supplies Services,5590,REDACTED,02/10/2013,371654,140,NET,Through The Gateway,14036U
Gloucester City Council,23UE,Cemeteries,HC300,Other Minor Supplies Services,5590,PLANTS,02/10/2013,371628,126.6,NET,Nature First Ltd,48626V
Gloucester City Council,23UE,Cemeteries,HC300,Operational Materials,5070,SIGNS,02/10/2013,371629,295.16,NET,Spaldings,48759Y
Gloucester City Council,23UE,Cemeteries,HC300,Operational Materials,5070,MOP HEAD,02/10/2013,371630,29.22,NET,Spaldings,48759Y
Gloucester City Council,23UE,City Centre Manager,PT310,Events,5952,PERF 21/07/13,02/10/2013,371655,50,NET,REDACTED,REDACTED
Gloucester City Council,23UE,Civic Admin And Hospitality,RC210,Hospitality,5122,ADVERT 26/09/13,02/10/2013,371644,185.92,NET,Local World Ltd,08556P
Gloucester City Council,23UE,Civica Admin Charges,RT105,Postages,5400,ACCT 0870585007 REVENUES,02/10/2013,371107,1456.21,NET,Royal Mail S.Wales & South West,35830S
Gloucester City Council,23UE,Client Revs & Bens Contract,RT240,Bailiffs Fees,5368,VAT & fees - Council Tax,02/10/2013,371506,42.5,NET,Bristow & Sutor,05450M
Gloucester City Council,23UE,Client Revs & Bens Contract,RT240,Bailiffs Fees,5368,VAT only invoice - Business Rates,02/10/2013,371507,0,NET,Bristow & Sutor,05450M
Gloucester City Council,23UE,Development Management,PT200,Advertising And Publicity,5702,ADVERT 19/09/13,02/10/2013,371674,92.96,NET,Local World Ltd,08556P
Gloucester City Council,23UE,Disabled Facilities Grants,CY013,Disabled Facility Grants,74,REDACTED,02/10/2013,371633,9598,CAP,Terry Group Ltd,13844L
Gloucester City Council,23UE,Disaster Recovery,RY532,Contract Payments,20,NORTH WAREHOUSE,02/10/2013,371428,4944,CAP,Mitchells (Gloucester) Ltd,30160U
Gloucester City Council,23UE,Docks Complex - Catering Servs,RB110,Catering Provisions -Food,5110,Docks food,02/10/2013,371307,67.48,NET,Janes Pantry,24500W
Gloucester City Council,23UE,Employers Pension Contribs,ZR355,Pension Contribs Incl Backf,2901,PENSIONS MAR 2013,02/10/2013,362847,10076.59,NET,Enterprise (Aol) Ltd,06695G
Gloucester City Council,23UE,Employers Pension Contribs,ZR355,Pension Contribs Incl Backf,2901,PENSION APRIL13,02/10/2013,365352,9694.35,NET,Enterprise (Aol) Ltd,06695G
Gloucester City Council,23UE,Employers Pension Contribs,ZR355,Pension Contribs Incl Backf,2901,PENSIONS MAY 2013,02/10/2013,366031,9568.41,NET,Enterprise (Aol) Ltd,06695G
Gloucester City Council,23UE,Employers Pension Contribs,ZR355,Pension Contribs Incl Backf,2901,June13 Pensions,02/10/2013,368036,9442.51,NET,Enterprise (Aol) Ltd,06695G
Gloucester City Council,23UE,Employers Pension Contribs,ZR355,Pension Contribs Incl Backf,2901,PENSIONS JULY 2013,02/10/2013,369688,9370.76,NET,Enterprise (Aol) Ltd,06695G
Gloucester City Council,23UE,Financial Services,RT200,Fees For Services Received,5350,VAT ONLY INVOICE,02/10/2013,371437,0,NET,Phoenix Commercial Collections Ltd,13435J
Gloucester City Council,23UE,Gl1 Pool Air Handling System,LY152,Contract Payments,20,ADVERT 12/09/13,02/10/2013,371679,46.48,CAP,Local World Ltd,08556P
Gloucester City Council,23UE,Gloucester Partnership,FP106,Fees For Services Received,5350,Podsmead Big Local project,02/10/2013,370196,7000,NET,Gl Communities,09535X
Gloucester City Council,23UE,Herbert Reception Upgrade,RY201,Contract Payments,20,ADVERT 30/09/13,02/10/2013,371675,46.48,CAP,Local World Ltd,08556P
Gloucester City Council,23UE,Homelessness,CH120,Rent In Advance,5516,REDACTED,02/10/2013,371682,541.08,NET,REDACTED,REDACTED
Gloucester City Council,23UE,Homelessness,CH120,Rent In Advance,5516,REDACTED,02/10/2013,371683,484.6,NET,REDACTED,REDACTED
Gloucester City Council,23UE,Homelessness Prevention,CH122,Grants To Voluntary Orgs-Rents,7100,FUNDING APR-SEPT 2013,02/10/2013,371634,6250,NET,Gear Projects,36218RV
Gloucester City Council,23UE,Homelessness Prevention,CH122,Grants To Voluntary Orgs-Rents,7100,CREDITED ON 371639,02/10/2013,371653,250,NET,Gear Projects,36218RV
Gloucester City Council,23UE,Investment Property,RB500,General Repair/Maint Buildings,3000,FOLK MUSEUM,02/10/2013,371625,53.99,NET,Pickerings Europe Ltd*,58816U
Gloucester City Council,23UE,Mandatory Rent Allowances,DD100,Rent Allowances - Normal Payts,7200,REDACTED,02/10/2013,371682,600,NET,REDACTED,REDACTED
Gloucester City Council,23UE,Mandatory Rent Allowances,DD100,Rent Allowances - Normal Payts,7200,REDACTED,02/10/2013,371683,500,NET,REDACTED,REDACTED
Gloucester City Council,23UE,Ranger Centre/Netheridge Wks,RY167,Contract Payments,20,RANGER CENTRE,02/10/2013,370374,390,CAP,Rpa,01710Y
Gloucester City Council,23UE,REDACTED,REDACTED,REDACTED,REDACTED,REDACTED,02/10/2013,REDACTED,150,NET,REDACTED,REDACTED
Gloucester City Council,23UE,REDACTED,REDACTED,REDACTED,REDACTED,REDACTED,02/10/2013,REDACTED,255,NET,REDACTED,REDACTED
Gloucester City Council,23UE,REDACTED,REDACTED,REDACTED,REDACTED,REDACTED,02/10/2013,REDACTED,140,NET,REDACTED,REDACTED
Gloucester City Council,23UE,REDACTED,REDACTED,REDACTED,REDACTED,REDACTED,02/10/2013,REDACTED,50,NET,REDACTED,REDACTED
Gloucester City Council,23UE,REDACTED,REDACTED,REDACTED,REDACTED,REDACTED,02/10/2013,REDACTED,100,NET,REDACTED,REDACTED
Gloucester City Council,23UE,REDACTED,REDACTED,REDACTED,REDACTED,REDACTED,02/10/2013,REDACTED,100,NET,REDACTED,REDACTED
Gloucester City Council,23UE,REDACTED,REDACTED,REDACTED,REDACTED,REDACTED,02/10/2013,REDACTED,150,NET,REDACTED,REDACTED
Gloucester City Council,23UE,REDACTED,REDACTED,REDACTED,REDACTED,REDACTED,02/10/2013,REDACTED,50,NET,REDACTED,REDACTED
Gloucester City Council,23UE,Safer Stronger Communities,FP841,Other Minor Supplies Services,5590,MAGIC,02/10/2013,371624,75,NET,Alfredo The Magical Clown,59911P
Gloucester City Council,23UE,Safer Stronger Communities,FP841,Other Minor Supplies Services,5590,CLOCKTOWER PARK,02/10/2013,371631,250,NET,Rinky Dink Bicycle Power,08677A
Gloucester City Council,23UE,Business Transformation & Tech,RT700,Computer Hardware <£5000,5420,Lattitude E6230,03/10/2013,371516,792.6,NET,Dell Computers Corporation Ltd,55920C
Gloucester City Council,23UE,Business Transformation & Tech,RT700,Basic Pay - Temporary Staff,2751,contractor services w/e 27/09/13,03/10/2013,371518,1125,NET,Ffox Software Ltd,10665T
Gloucester City Council,23UE,Client Revs & Bens Contract,RT240,Computer Hardware <£5000,5420,PLX ENCOREPRO,03/10/2013,371640,304.07,NET,Rocom,56066R
Gloucester City Council,23UE,Homelessness,CH120,Rent In Advance,5516,RIA + DEPOSIT,03/10/2013,371715,484.6,NET,Ashgrove Property Services,10041R
Gloucester City Council,23UE,Homelessness Prevention,CH122,Fees For Services Received,5350,RIA + DEPOSIT,03/10/2013,371715,500,NET,Ashgrove Property Services,10041R
Gloucester City Council,23UE,Investment Property,RB500,General Repair/Maint Buildings,3000,Blackfriars Priory drain clearance,03/10/2013,371469,200,NET,Drain Doctor Plumbing (Glos) Ltd,11450H
Gloucester City Council,23UE,Aspire Admin Charges,LC105,Other Minor Income,9900,bailiff payments 2nd October 2013,04/10/2013,371759,110.4,NET,Aspire Sports & Cultural Trust,08135V
Gloucester City Council,23UE,Asset Management,RS300,Basic Pay - Temporary Staff,2751,SEPT13 professional services,04/10/2013,371735,6684,NET,Ardley Associates,09369F
Gloucester City Council,23UE,Blackfriars,LA609,Charges For Services,9300,sale of Artwork at Guildhall exhibition,04/10/2013,371727,20,NET,REDACTED,REDACTED
Gloucester City Council,23UE,City Museum And Art Gallery,LM200,Vocational Training,2970,ANNUAL SYMPOSIUM 2013,04/10/2013,371751,15,NET,Bristol & Glos Archaeological Society,51165L
Gloucester City Council,23UE,Client Revs & Bens Contract,RT240,Fees For Services Received,5350,REDACTED,04/10/2013,371752,198,NET,Assevarate Ltd,11749A
Gloucester City Council,23UE,Contact Centre,RB300,Basic Pay -Admin /Prof Staff,2601,STAFF W/E 29/09/13,04/10/2013,371665,2372.29,NET,One To One Recruitment,04752H
Gloucester City Council,23UE,Crematorium,HC200,Memorial Plaques,5053,bronze plaque,04/10/2013,371740,85,NET,Arkell & Hurcombe,59812T
Gloucester City Council,23UE,Crematorium,HC200,Memorial Plaques,5053,bronze plaques,04/10/2013,371741,348,NET,Arkell & Hurcombe,59812T
Gloucester City Council,23UE,Crematorium,HC200,Memorial Plaques,5053,bronze plaque,04/10/2013,371743,48,NET,Arkell & Hurcombe,59812T
Gloucester City Council,23UE,Crematorium,HC200,Memorial Plaques,5053,bronze plaques,04/10/2013,371744,312,NET,Arkell & Hurcombe,59812T
Gloucester City Council,23UE,Disabled Facilities Grants,CY013,Disabled Facility Grants,74,REDACTED,04/10/2013,371762,75,CAP,Tate Solutions Ltd,13830Y
Gloucester City Council,23UE,Electrical Investigatory Works,RY142,Contract Payments,20,ASBESTOS SURVEYS,04/10/2013,371757,20000,CAP,Enquin Environmental,00748F
Gloucester City Council,23UE,Financial Services,RT200,Vocational Training,2970,CIMA TEXT BOOKS,04/10/2013,371756,1755.02,NET,Bpp Professional Education,13889M
Gloucester City Council,23UE,General Drainage Works,PY241,Contract Payments,20,MILTON AVE TRASH GATE,04/10/2013,371734,800,CAP,Mr M G Horton T/A H&T Property Maintenance,09210X
Gloucester City Council,23UE,General Works Fund,RY203,Cap Repair/Maint Fixed Plant,14,Ballofix valve replacements,04/10/2013,371513,1796,CAP,Hewer Facilities Mgt Ltd,05232A
Gloucester City Council,23UE,Homelessness,CH120,Rent In Advance,5516,REDACTED,04/10/2013,371716,364.6,NET,REDACTED,REDACTED
Gloucester City Council,23UE,Homelessness,CH120,Rent In Advance,5516,REDACTED,04/10/2013,371766,484.6,NET,REDACTED,REDACTED
Gloucester City Council,23UE,Homelessness Prevention,CH122,Grants To Voluntary Orgs-Rents,7100,Homelessness support OCT13-MAR14,04/10/2013,371739,14500,NET,Gloucester City Homes,05244T
Gloucester City Council,23UE,Homelessness Prevention,CH122,Basic Pay - Temporary Staff,2751,AGENCY STAFF W/E 29/9/13,04/10/2013,371754,737.41,NET,James Andrews Recruitment Solutions,13636W
Gloucester City Council,23UE,Homelessness Prevention,CH122,Fees For Services Received,5350,REDACTED,04/10/2013,371766,550,NET,REDACTED,REDACTED
Gloucester City Council,23UE,Investment Property,RB500,Fire Fighting Equipment,3008,Eastgate Chember fire extinguishers,04/10/2013,371509,87.17,NET,A & E Fire Equipment Limited,54289L
Gloucester City Council,23UE,Investment Property,RB500,General Repair/Maint Buildings,3000,repairs to FCU 5th flr Philpotts w/h,04/10/2013,371318,135,NET,Hewer Facilities Mgt Ltd,05232A
Gloucester City Council,23UE,Investment Property,RB500,General Repair/Maint Buildings,3000,leak repairs to Council Chamber FCU's,04/10/2013,371514,100,NET,Hewer Facilities Mgt Ltd,05232A
Gloucester City Council,23UE,Investment Property,RB500,Repair/Maint Of Fixed Plant,3006,Philpotts AHU repairs,04/10/2013,371517,190,NET,Hewer Facilities Mgt Ltd,05232A
Gloucester City Council,23UE,Printing,RP103,Fees For Services Received,5350,Sept13 print room sales,04/10/2013,371737,1124.46,NET,Alpha Colour Printers Ltd,00945B
Gloucester City Council,23UE,REDACTED,REDACTED,REDACTED,REDACTED,REDACTED,04/10/2013,REDACTED,164.86,NET,REDACTED,REDACTED
Gloucester City Council,23UE,REDACTED,REDACTED,REDACTED,REDACTED,REDACTED,04/10/2013,REDACTED,135.75,NET,REDACTED,REDACTED
Gloucester City Council,23UE,REDACTED,REDACTED,REDACTED,REDACTED,REDACTED,04/10/2013,REDACTED,100,NET,REDACTED,REDACTED
Gloucester City Council,23UE,REDACTED,REDACTED,REDACTED,REDACTED,REDACTED,04/10/2013,REDACTED,750,NET,REDACTED,REDACTED
Gloucester City Council,23UE,Retail Market - Landlord,HM300,General Repair/Maint Buildings,3000,EASTGATE MARKET ELECTRICAL WORKS,04/10/2013,371753,215,NET,James Steele Electrical Services Ltd,11116Z
Gloucester City Council,23UE,Stationery Services,RS150,Stationery,5302,chair,04/10/2013,371745,97,NET,Furniture@Work Ltd,01124U
Gloucester City Council,23UE,Vending Machine,RB111,Hire Of Equipment,5020,rental Nov13-Feb14,04/10/2013,371575,136.5,NET,Complete Vending Services Ltd,10624H
Gloucester City Council,23UE,2 Albion Cottages,RB546,Gas Supply,3100,Albion Cottages gas a/c 600510700,07/10/2013,371819,26.63,NET,British Gas,59061X
Gloucester City Council,23UE,Business Transformation & Tech,RT700,Computer Software Maintenance,5427,SUPPORT 10/13-10/14,07/10/2013,371438,1317.97,NET,Northgate Information Solutions Uk Ltd,08982S
Gloucester City Council,23UE,Business Transformation & Tech,RT700,Computer Software Maintenance,5427,ACCT 291749,07/10/2013,370459,150,NET,Virgin Media Business,01869B
Gloucester City Council,23UE,City Museum And Art Gallery,LM200,Exhibits And Collections,5038,Created by invoice listener,07/10/2013,371840,350,NET,Bonhams,14094D
Gloucester City Council,23UE,City Museum And Art Gallery,LM200,Publications For Sale,5064,city museum shop stock,07/10/2013,371226,729,NET,Elgate,11620G
Gloucester City Council,23UE,City Museum And Art Gallery,LM200,Sewerage And Environ Charges,3402,Created by invoice listener,07/10/2013,371842,41.22,NET,Ocs Group Uk Limited T/A Cannon,06506A
Gloucester City Council,23UE,City Museum And Art Gallery,LM200,Maint Agreements - Fixed Plant,3011,City Museum door service,07/10/2013,371742,290,NET,Pro Door Ltd,04760C
Gloucester City Council,23UE,City Museum Catering,LM202,Catering Provisions -Food,5110,milk,07/10/2013,371831,4.84,NET,Total Produce Gloucester,12645E
Gloucester City Council,23UE,City Museum Catering,LM202,Catering Provisions -Food,5110,milk,07/10/2013,371832,6.05,NET,Total Produce Gloucester,12645E
Gloucester City Council,23UE,City Museum Catering,LM202,Catering Provisions -Food,5110,milk,07/10/2013,371833,4.84,NET,Total Produce Gloucester,12645E
Gloucester City Council,23UE,City Museum Catering,LM202,Catering Provisions -Food,5110,milk,07/10/2013,371834,7.26,NET,Total Produce Gloucester,12645E
Gloucester City Council,23UE,City Museum Catering,LM202,Catering Provisions -Food,5110,milk,07/10/2013,371849,4.84,NET,Total Produce Gloucester,12645E
Gloucester City Council,23UE,City Museum Catering,LM202,Catering Provisions -Food,5110,milk,07/10/2013,371850,6.05,NET,Total Produce Gloucester,12645E
Gloucester City Council,23UE,City Museum Catering,LM202,Catering Provisions -Food,5110,prep potato,07/10/2013,371851,9,NET,Total Produce Gloucester,12645E
Gloucester City Council,23UE,City Museum Catering,LM202,Catering Provisions -Food,5110,Created by invoice listener,07/10/2013,371852,7.26,NET,Total Produce Gloucester,12645E
Gloucester City Council,23UE,City Museum Catering,LM202,Catering Provisions -Food,5110,Created by invoice listener,07/10/2013,371839,72.22,NET,Woody'S Fruit & Veg,11798L
Gloucester City Council,23UE,Civil Parking Enforcement,PT741,Pcn Charges,9450,refund re PCN,07/10/2013,371802,35,NET,REDACTED,REDACTED
Gloucester City Council,23UE,Docks Complex - Catering Servs,RB110,Catering Provisions -Food,5110,FOOD,07/10/2013,371853,13.55,NET,3663,55585U
Gloucester City Council,23UE,Docks Complex - Catering Servs,RB110,Catering Provisions -Food,5110,FOOD,07/10/2013,371865,339.51,NET,3663,55585U
Gloucester City Council,23UE,Docks Complex - Catering Servs,RB110,Catering Provisions -Food,5110,Created by invoice listener,07/10/2013,371854,70.8,NET,Ethical Addictions Ltd,11654N
Gloucester City Council,23UE,Financial Services,RT200,Consultants Fees,5349,REDACTED,07/10/2013,370779,4770,NET,Robert Half Ltd,03959K
Gloucester City Council,23UE,Folk Museum,LM210,Misc Fixtures And Fittings,3500,DISPLAY RACKS,07/10/2013,371498,276.78,NET,3d Displays Ltd,57544P
Gloucester City Council,23UE,Folk Museum,LM210,Publications For Sale,5064,city museum shop stock,07/10/2013,371226,569.4,NET,Elgate,11620G
Gloucester City Council,23UE,Folk Museum,LM210,Sewerage And Environ Charges,3402,Created by invoice listener,07/10/2013,371843,17.16,NET,Ocs Group Uk Limited T/A Cannon,06506A
Gloucester City Council,23UE,Green Transport Policy,PJ130,Electric Car Charge,4030,Created by invoice listener,07/10/2013,371835,287.35,NET,Daimler Fleet Management,07828N
Gloucester City Council,23UE,Homelessness,CH120,Rent In Advance,5516,REDACTED,07/10/2013,371874,253.85,NET,2 Let Glos Ltd,74622M
Gloucester City Council,23UE,Homelessness,CH120,Rent In Advance,5516,REDACTED,07/10/2013,371875,253.85,NET,2 Let Glos Ltd,74622M
Gloucester City Council,23UE,Homelessness,CH120,Rent In Advance,5516,REDACTED,07/10/2013,371876,484.6,NET,Chosen Properties Ltd,13398N
Gloucester City Council,23UE,Homelessness,CH120,Rent In Advance,5516,REDACTED,07/10/2013,371873,346.15,NET,Donaldson & Newman Ltd,66678G
Gloucester City Council,23UE,Homelessness,CH120,Rent In Advance,5516,REDACTED,07/10/2013,371871,360,NET,REDACTED,REDACTED
Gloucester City Council,23UE,Homelessness Prevention,CH122,Fees For Services Received,5350,REDACTED,07/10/2013,371874,275,NET,2 Let Glos Ltd,74622M
Gloucester City Council,23UE,Homelessness Prevention,CH122,Fees For Services Received,5350,REDACTED,07/10/2013,371875,275,NET,2 Let Glos Ltd,74622M
Gloucester City Council,23UE,Homelessness Prevention,CH122,Fees For Services Received,5350,REDACTED,07/10/2013,371876,500,NET,Chosen Properties Ltd,13398N
Gloucester City Council,23UE,Investment Property,RB500,General Repair/Maint Buildings,3000,Created by invoice listener,07/10/2013,371823,425,NET,Abcas (Uk) Ltd,11650X
Gloucester City Council,23UE,Legal Services,RS200,Basic Pay -Admin /Prof Staff,2601,Created by invoice listener,07/10/2013,371859,1114.34,NET,Venn Group Ltd,04339P
Gloucester City Council,23UE,Nms Contract,HI102,General Repair/Maint Buildings,3000,service,07/10/2013,371829,336.42,NET,Sweeping Solutions Ltd,12872R
Gloucester City Council,23UE,REDACTED,REDACTED,REDACTED,REDACTED,REDACTED,07/10/2013,REDACTED,0,NET,REDACTED,REDACTED
Gloucester City Council,23UE,Senior Management Restructurin,RO200,Fees For Services Received,5350,Consultancy Services September 2013,07/10/2013,371579,5407.2,NET,Alexander Beaver Associates,06515Z
Gloucester City Council,23UE,Shopmobility,PE200,Maintenance Of Equipment,5030,various repairs,07/10/2013,371845,625,NET,Disabled Care & Mobility,12675V
Gloucester City Council,23UE,Shopmobility,PE200,Cleaning Materials,3600,shopmobility sanitary waste,07/10/2013,371841,6.67,NET,Ocs Group Uk Limited T/A Cannon,06506A
Gloucester City Council,23UE,Stationery Services,RS150,Stationery,5302,Created by invoice listener,07/10/2013,371814,40.06,NET,Lyreco Uk Ltd,11746G
Gloucester City Council,23UE,Summer Festival,LT300,Hire Of Equipment,5020,balloon gas,07/10/2013,371725,43.95,NET,Boc Ltd,59172L
Gloucester City Council,23UE,Website Rebuild,RY573,Consultants Fees,30,Created by invoice listener,07/10/2013,371846,1350,CAP,Patzone It Solutions Ltd,13059R
Gloucester City Council,23UE,75/81 Eastgate Street,RB501,Consultants Fees,5349,S18 valuation report Beatricce Webb Hse,08/10/2013,371589,2200,NET,Bruton Knowles,57534T
Gloucester City Council,23UE,75/81 Eastgate Street,RB501,Security Services Fees,5351,ACCESS 02/08/13,08/10/2013,371442,520,NET,Severnside Security,40140G
Gloucester City Council,23UE,Avenger Task Force,FP842,Other Minor Supplies Services,5590,REDACTED,08/10/2013,371948,140,NET,Through The Gateway,14036U
Gloucester City Council,23UE,Blackfriars,LA609,Office Equipment <£5000,5010,TABLE,08/10/2013,368455,89,NET,Furniture@Work Ltd,01124U
Gloucester City Council,23UE,Business Support,PT250,Routine R And M - Vehicles,4011,MOT test,08/10/2013,371806,259.63,NET,123 Car & Commercial,07651E
Gloucester City Council,23UE,Business Support,PT250,Basic Pay - Temporary Staff,2751,STAFF W/E 27/09/13,08/10/2013,371664,901.9,NET,One To One Recruitment,04752H
Gloucester City Council,23UE,Business Transformation & Tech,RT700,Computer Software <£5000,5425,symc drive encryption,08/10/2013,371826,51.8,NET,Arrow Enterprise Computing Solutions Ltd,11068W
Gloucester City Council,23UE,City Museum Catering,LM202,Catering Provisions -Food,5110,City Museum coffee,08/10/2013,371726,162.25,NET,James Gourmet Coffee Co.,55049A
Gloucester City Council,23UE,Countryside Unit,LP201,Vet Fees,5842,CATTLE REGISTRATION,08/10/2013,371938,75,NET,Gloucester Cattle Society,56263L
Gloucester City Council,23UE,Countryside Unit,LP201,Vet Fees,5842,PURCHASER TRANSFERS,08/10/2013,371939,20,NET,Gloucester Cattle Society,56263L
Gloucester City Council,23UE,Countryside Unit,LP201,Maint Of Grounds - General,3030,Topping at Hempsted pond site,08/10/2013,371924,263,NET,REDACTED,REDACTED
Gloucester City Council,23UE,Crematorium,HC200,Equipment For Sale,5050,evenlode bench,08/10/2013,371928,512.24,NET,Gloster Furniture Limited,04932X
Gloucester City Council,23UE,Disabled Facilities Grants,CY013,Disabled Facility Grants,74,GRANT REF MDF5014,08/10/2013,371945,2900,CAP,Tpg Disableaids,51324R
Gloucester City Council,23UE,Disaster Recovery,RY532,Contract Payments,20,N Warehouse pipe hole works,08/10/2013,371857,690,CAP,L Coward & Son Ltd,47989M
Gloucester City Council,23UE,Docks Complex - Services,RB100,Operational Equipment <£5000,5012,KEYS,08/10/2013,371435,150,NET,Severnside Security,40140G
Gloucester City Council,23UE,Dwelling Acquisitions,BY006,Purchase Cost -Buildings,10,REDACTED,08/10/2013,370545,6250,CAP,Tayntons Llp,52854U
Gloucester City Council,23UE,Financial Services,RT200,Consultants Fees,5349,REDACTED,08/10/2013,371645,3975,NET,Robert Half Ltd,03959K
Gloucester City Council,23UE,Financial Services,RT200,Consultants Fees,5349,REDACTED,08/10/2013,371650,1740,NET,Robert Half Ltd,03959K
Gloucester City Council,23UE,Gf Amra/ Interest Payable,VR100,Int On Other Temp. Borrowing,7811,1/2 YR INTEREST 2013-14,08/10/2013,371914,166.39,NET,John Ward Trust,49282W
Gloucester City Council,23UE,Gloucester Guildhall,LA100,Vocational Training,2970,CAR PARKING,08/10/2013,371243,25,NET,Local Authority Event Organisers Group,13496M
Gloucester City Council,23UE,Gloucester Guildhall,LA100,Cleaning Materials,3600,Guildhall sanitary waste,08/10/2013,371838,126.14,NET,Ocs Group Uk Limited T/A Cannon,06506A
Gloucester City Council,23UE,Hempsted Market/Car Boot,HM234,Hire Of Equipment,5020,hire of portable office,08/10/2013,371749,254.19,NET,Portable Offices (Hire ) Ltd*,06286R
Gloucester City Council,23UE,Hempsted Market/Car Boot,HM234,Maint Of Grounds - General,3030,Sep-13,08/10/2013,371943,400,NET,REDACTED,REDACTED
Gloucester City Council,23UE,Homelessness Prevention,CH122,Basic Pay - Temporary Staff,2751,agency staff w/e 29/9/13,08/10/2013,371860,740,NET,Venn Group Ltd,04339P
Gloucester City Council,23UE,Investment Property,RB500,General Repair/Maint Buildings,3000,MAINT SEP-NOV 2013,08/10/2013,371660,498.97,NET,Pickerings Europe Ltd*,58816U
Gloucester City Council,23UE,Photocopying,RS130,Photocopying,5320,RENTAL OCT 12-JAN 13,08/10/2013,371431,300.82,NET,Siemens Financial Services Ltd,08349H
Gloucester City Council,23UE,Postal Services,RS120,Postages,5400,ACCT 0074842000 W/E 14/09/13,08/10/2013,371652,62.84,NET,Royal Mail S.Wales & South West,35830S
Gloucester City Council,23UE,Printing,RP103,Fees For Services Received,5350,printing,08/10/2013,371738,1604,NET,Alpha Colour Printers Ltd,00945B
Gloucester City Council,23UE,REDACTED,REDACTED,REDACTED,REDACTED,REDACTED,08/10/2013,REDACTED,800,NET,REDACTED,REDACTED
Gloucester City Council,23UE,REDACTED,REDACTED,REDACTED,REDACTED,REDACTED,08/10/2013,REDACTED,465,NET,REDACTED,REDACTED
Gloucester City Council,23UE,REDACTED,REDACTED,REDACTED,REDACTED,REDACTED,08/10/2013,REDACTED,-69.75,NET,REDACTED,REDACTED
Gloucester City Council,23UE,REDACTED,REDACTED,REDACTED,REDACTED,REDACTED,08/10/2013,REDACTED,315,NET,REDACTED,REDACTED
Gloucester City Council,23UE,REDACTED,REDACTED,REDACTED,REDACTED,REDACTED,08/10/2013,REDACTED,-259.33,NET,REDACTED,REDACTED
Gloucester City Council,23UE,Retail Market - Landlord,HM300,Trade Refuse Collection,3630,Sept13 food waste collections,08/10/2013,371807,120,NET,B & S Pointon Ltd,06253G
Gloucester City Council,23UE,Retail Market - Landlord,HM300,Sewerage And Environ Charges,3402,Eastgate market works 2/9/13,08/10/2013,371929,185,NET,Eezeeflow Drain Services,11587C
Gloucester City Council,23UE,Retail Market - Landlord,HM300,Window Cleaning,3610,Sept13 Eastgate Market window cleaning,08/10/2013,371923,140,NET,REDACTED,REDACTED
Gloucester City Council,23UE,Tic Coach Tickets,LT105,Materials For Sale,5080,AUG & SEPT13,08/10/2013,371821,12925.1,NET,National Express Ltd,31455K
Gloucester City Council,23UE,Tic Coach Tickets,LT105,Sale Of Goods And Services,9230,AUG & SEPT13,08/10/2013,371821,-1239.52,NET,National Express Ltd,31455K
Gloucester City Council,23UE,Tourism Marketing,LT100,Operational Equipment <£5000,5012,TIC sanitary waste,08/10/2013,371830,5.73,NET,Ocs Group Uk Limited T/A Cannon,06506A
Gloucester City Council,23UE,Utilities,PT502,Gas Supply,3100,UTILITIES TO AUG 2013,08/10/2013,371192,17755.81,NET,West Mercia Energy,11669Z
Gloucester City Council,23UE,Utilities,PT502,Electricity Supply,3110,UTILITIES TO AUG 2013,08/10/2013,371192,33379.92,NET,West Mercia Energy,11669Z
Gloucester City Council,23UE,Youth Grant 2011/12,FP107,Funding Vol&Com Grps-Grants,7100C,youth grant 2013-14,08/10/2013,371731,2340,NET,Churches For Change,14084G
Gloucester City Council,23UE,Youth Grant 2011/12,FP107,Funding Vol&Com Grps-Grants,7100C,Youth Grant 2013-14,08/10/2013,371801,1000,NET,Podsmead Community Association,03240W
Gloucester City Council,23UE,Avenger Task Force,FP842,Other Minor Supplies Services,5590,REDACTED,09/10/2013,371947,140,NET,Through The Gateway,14036U
Gloucester City Council,23UE,Blackfriars,LA609,Fees For Services Received,5350,MUSIC PROD,09/10/2013,371951,320,NET,REDACTED,REDACTED
Gloucester City Council,23UE,Business Support,PT250,Fuel,4012,vehicle fuel,09/10/2013,371723,225.23,NET,Allstar Business Solutions Ltd (Arval),06594A
Gloucester City Council,23UE,Business Support,PT250,Publications,5060,Sept13 newspapers,09/10/2013,371729,134.4,NET,Keelings Newsagents,55281U
Gloucester City Council,23UE,Business Support,PT250,Basic Pay - Temporary Staff,2751,STAFF W/E 20/09/13,09/10/2013,371323,913.5,NET,One To One Recruitment,04752H
Gloucester City Council,23UE,Business Transformation & Tech,RT700,Consultants Fees,5349,EVALUATIONS,09/10/2013,371967,2681.25,NET,Mnt Consulting,14211A
Gloucester City Council,23UE,Business Transformation & Tech,RT700,Basic Pay - Temporary Staff,2751,REDACTED,09/10/2013,371969,5624,NET,Vector Resourcing Ltd,11664K
Gloucester City Council,23UE,Client Revs & Bens Contract,RT240,Bailiffs Fees,5368,VAT INVOICE BUSINESS RATES,09/10/2013,371916,0,NET,Bristow & Sutor,05450M
Gloucester City Council,23UE,Client Revs & Bens Contract,RT240,Bailiffs Fees,5368,COUNCIL TAX FEES PAID DIRECT & VAT,09/10/2013,371920,72.4,NET,Bristow & Sutor,05450M
Gloucester City Council,23UE,Countryside Unit,LP201,Maint Of Grounds - General,3030,goods,09/10/2013,371730,57.91,NET,Countrywide Farmers*,55687J
Gloucester City Council,23UE,Countryside Unit,LP201,Clothing,5200,goods,09/10/2013,371730,20.81,NET,Countrywide Farmers*,55687J
Gloucester City Council,23UE,Docks Complex - Catering Servs,RB110,Catering Provisions -Food,5110,FOOD,09/10/2013,371972,496.08,NET,3663,55585U
Gloucester City Council,23UE,Docks Complex - Telephones,RB120,Mobile Phones,5409,CALLS SEPT 2013,09/10/2013,371965,1893.88,NET,Everything Everywhere Ltd (T-Mobile),57543S
Gloucester City Council,23UE,Eastgate Rooftop Emerg Works,RY159,Contract Payments,20,EASTGATE CAR PARK ASBESTOS SAMPLES,09/10/2013,371746,200,CAP,Gloucester Asbestos Ltd,00496K
Gloucester City Council,23UE,Economic Development,FP300,Business Grant,7116,REDACTED,09/10/2013,371937,1662.16,NET,Footsteps Counselling & Care Ltd,13905S
Gloucester City Council,23UE,Flooding And Drainage,HE306,Maint Of Grounds - General,3030,HOLMLEIGH RD,09/10/2013,371950,552.5,NET,Three Counties Drain Service,44033V
Gloucester City Council,23UE,Flooding And Drainage,HE306,Maint Of Grounds - General,3030,BRISTOL RD,09/10/2013,371952,854.98,NET,Three Counties Drain Service,44033V
Gloucester City Council,23UE,Homelessness Prevention,CH122,Fees For Services Received,5350,REDACTED,09/10/2013,372025,400,NET,REDACTED,REDACTED
Gloucester City Council,23UE,Investment Property,RB500,General Repair/Maint Buildings,3000,MAINT SEP-NOV 2013,09/10/2013,371659,413.57,NET,Pickerings Europe Ltd*,58816U
Gloucester City Council,23UE,Legal Services,RS200,Basic Pay - Temporary Staff,2751,REDACTED,09/10/2013,371973,494.69,NET,Premiere Employment Ltd,55468Z
Gloucester City Council,23UE,Postal Services,RS120,Postages,5400,a/c 0252446000,09/10/2013,371818,1229.13,NET,Royal Mail S.Wales & South West,35830S
Gloucester City Council,23UE,REDACTED,REDACTED,REDACTED,REDACTED,REDACTED,09/10/2013,REDACTED,150,NET,REDACTED,REDACTED
Gloucester City Council,23UE,Retail Market - Landlord,HM300,Clothing,5200,TROUSERS,09/10/2013,369295,21.5,NET,Safpro Industrial Supply Co,39190W
Gloucester City Council,23UE,Retail Market - Landlord,HM300,Operational Equipment <£5000,5012,compactor rental,09/10/2013,371804,280.56,NET,System Rental Uk Ltd,03239E
Gloucester City Council,23UE,Retail Market - Landlord,HM300,Cleaning / Domestic Equipment,5011,CALL OUT,09/10/2013,371968,300,NET,Titan Industrial Equipment Supplies Ltd,04428P
Gloucester City Council,23UE,Tic Coach Tickets,LT105,Materials For Sale,5080,SALES SEPT 2013,09/10/2013,371978,145,NET,Wetm Ltd,05656Z
Gloucester City Council,23UE,Tic Coach Tickets,LT105,Sale Of Goods And Services,9230,SALES SEPT 2013,09/10/2013,371978,-7.25,NET,Wetm Ltd,05656Z
Gloucester City Council,23UE,Tic Trading,LT110,Materials For Sale,5080,POSTCARDS,09/10/2013,371984,74.25,NET,REDACTED,REDACTED
Gloucester City Council,23UE,Aspire Admin Charges,LC105,Fees For Services Received,5350,September payroll deductions,10/10/2013,372056,769,NET,Aspire Sports & Cultural Trust,08135V
Gloucester City Council,23UE,Aspire Admin Charges,LC105,Other Minor Income,9900,bailiff payments 8/10/13,10/10/2013,372143,229.8,NET,Aspire Sports & Cultural Trust,08135V
Gloucester City Council,23UE,Business Support,PT250,Fuel,4012,vehicle fuel,10/10/2013,372068,300.7,NET,Allstar Business Solutions Ltd (Arval),06594A
Gloucester City Council,23UE,Business Support,PT250,Microfilming / Cd-Rom Storage,5330,ARCHIVE SEPT 2013,10/10/2013,371974,87.64,NET,Transmedia Technology Ltd,08635T
Gloucester City Council,23UE,Business Transformation & Tech,RT700,Basic Pay - Temporary Staff,2751,contractor services w/e 4/10/13,10/10/2013,371932,1125,NET,Ffox Software Ltd,10665T
Gloucester City Council,23UE,Business Transformation & Tech,RT700,Computer Software Maintenance,5427,Information@Work licence charge,10/10/2013,371810,1900,NET,Northgate Information Solutions Uk Ltd,08982S
Gloucester City Council,23UE,Business Transformation & Tech,RT700,Other Minor Supplies Services,5590,LAPTOP CASE,10/10/2013,371954,47,NET,Qual Technology,56512N
Gloucester City Council,23UE,Business Transformation & Tech,RT700,Computer Consumables,5422,CABLE,10/10/2013,371955,93,NET,Qual Technology,56512N
Gloucester City Council,23UE,Business Transformation & Tech,RT700,Computer Hardware Maintenance,5426,LEASE OCT-DEC 2013,10/10/2013,371635,275,NET,Stanford Marsh Ltd*,51139M
Gloucester City Council,23UE,Cemeteries,HC300,Maint Of Grounds - General,3030,treatment of Wasp nest,10/10/2013,372042,50,NET,Abcomplete Ltd,14171C
Gloucester City Council,23UE,Cemeteries,HC300,Trade Refuse Tipping Fees,6297,golden nugget,10/10/2013,372031,305,NET,Allstone Sand & Gravel Aggregates Ltd,00940M
Gloucester City Council,23UE,Cemeteries,HC300,Trade Refuse Tipping Fees,6297,mixed waste,10/10/2013,372032,370,NET,Allstone Sand & Gravel Aggregates Ltd,00940M
Gloucester City Council,23UE,Cemeteries,HC300,Trade Refuse Tipping Fees,6297,mixed waste skip charge,10/10/2013,372034,145,NET,Allstone Sand & Gravel Aggregates Ltd,00940M
Gloucester City Council,23UE,Cemeteries,HC300,Trade Refuse Tipping Fees,6297,inert waste rolonof exchange,10/10/2013,372035,360,NET,Allstone Sand & Gravel Aggregates Ltd,00940M
Gloucester City Council,23UE,Cemeteries,HC300,Trade Refuse Tipping Fees,6297,Green waste skip exchange,10/10/2013,372036,400,NET,Allstone Sand & Gravel Aggregates Ltd,00940M
Gloucester City Council,23UE,Cemeteries,HC300,Trade Refuse Tipping Fees,6297,dumper hire,10/10/2013,372067,380,NET,Allstone Sand & Gravel Aggregates Ltd,00940M
Gloucester City Council,23UE,Cemeteries,HC300,Maint Of Grounds - General,3030,MECHANICAL SWEEP,10/10/2013,371959,64,NET,Enterprise (Aol) Ltd,06695G
Gloucester City Council,23UE,Cemeteries,HC300,Major R And M - Vehicles,4010,tanaka long reach hedge cutter,10/10/2013,372041,524.17,NET,Garden Machinery Gloucester,55641K
Gloucester City Council,23UE,Cemeteries,HC300,Major R And M - Vehicles,4010,blade for Ferris & repairs,10/10/2013,372116,253.81,NET,Garden Machinery Gloucester,55641K
Gloucester City Council,23UE,Cemeteries,HC300,Operational Materials,5070,LADDER,10/10/2013,372028,98.4,NET,Spaldings,48759Y
Gloucester City Council,23UE,City Museum And Art Gallery,LM200,Publications For Sale,5064,books for Museum shop,10/10/2013,372122,39.75,NET,Colour Heroes Ltd,04283S
Gloucester City Council,23UE,Client Revs & Bens Contract,RT240,Court Fees,5358,REDACTED,10/10/2013,372198,80,NET,Hmcts,03445Z
Gloucester City Council,23UE,Council Streetcare Team,HI101,Operational Equipment <£5000,5012,poop scoop bags,10/10/2013,371930,206.99,NET,Harrisons Packaging Ltd,10448D
Gloucester City Council,23UE,Council Streetcare Team,HI101,Water Supply,3400,ACCT 7030207751,10/10/2013,370860,447.18,NET,Severn Trent Water,01823H
Gloucester City Council,23UE,Disabled Facilities Grants,CY013,Disabled Facility Grants,74,REDACTED,10/10/2013,371632,645,CAP,Rowntree Partnership,49474J
Gloucester City Council,23UE,Docks Complex - Catering Servs,RB110,Catering Provisions -Food,5110,docks food,10/10/2013,372125,28.14,NET,J & M Provisions Ltd,04292R
Gloucester City Council,23UE,Docks Complex - Catering Servs,RB110,Catering Provisions -Food,5110,docks food,10/10/2013,372126,16.71,NET,J & M Provisions Ltd,04292R
Gloucester City Council,23UE,Docks Complex - Catering Servs,RB110,Catering Provisions -Food,5110,docks food,10/10/2013,372127,14.84,NET,J & M Provisions Ltd,04292R
Gloucester City Council,23UE,Docks Complex - Catering Servs,RB110,Catering Provisions -Food,5110,docks food,10/10/2013,372128,29.46,NET,J & M Provisions Ltd,04292R
Gloucester City Council,23UE,Docks Complex - Catering Servs,RB110,Catering Provisions -Food,5110,docks food,10/10/2013,372129,8.46,NET,J & M Provisions Ltd,04292R
Gloucester City Council,23UE,Docks Complex - Catering Servs,RB110,Catering Provisions -Food,5110,docks food,10/10/2013,372130,28,NET,J & M Provisions Ltd,04292R
Gloucester City Council,23UE,Docks Complex - Catering Servs,RB110,Catering Provisions -Food,5110,docks food,10/10/2013,372131,21,NET,J & M Provisions Ltd,04292R
Gloucester City Council,23UE,Docks Complex - Services,RB100,Cleaning Materials,3600,toilet rolls & soap,10/10/2013,371732,19.55,NET,Core Hygiene Ltd,03885P
Gloucester City Council,23UE,Docks Complex - Services,RB100,Recycling,3631,Guildhall recycling,10/10/2013,371798,41.6,NET,Printwaste Recycling,57114W
Gloucester City Council,23UE,Docks Complex - Services,RB100,Recycling,3631,recycling collections,10/10/2013,371858,122.7,NET,Printwaste Recycling,57114W
Gloucester City Council,23UE,Docks Complex - Telephones,RB120,Telephones And Fax,5410,REDACTED,10/10/2013,372109,30,NET,Virgin Media Payments Ltd,09376J
Gloucester City Council,23UE,Financial Services,RT200,Fees For Services Received,5350,VAT ONLY INVOICE,10/10/2013,372097,0,NET,Phoenix Commercial Collections Ltd,13435J
Gloucester City Council,23UE,Flooding And Drainage,HE306,Maint Of Grounds - General,3030,clearance work x 3 days,10/10/2013,372046,506.25,NET,Btcv T/A The Conservation Volunteers,55897V
Gloucester City Council,23UE,Folk Museum,LM210,Publications For Sale,5064,books for Museum shop,10/10/2013,372122,119.25,NET,Colour Heroes Ltd,04283S
Gloucester City Council,23UE,General Drainage Works,PY241,Contract Payments,20,Holmleigh Road trash gate,10/10/2013,372123,1014.4,CAP,Mr M G Horton T/A H&T Property Maintenance,09210X
Gloucester City Council,23UE,General Works Fund,RY203,Capital Fire Alarms,25,City Museum fire alarm repairs,10/10/2013,372139,70.5,CAP,Adt Fire & Security Plc,54086D
Gloucester City Council,23UE,General Works Fund,RY203,Capital Intruder & Cctv,19,N Warehouse new batteries,10/10/2013,372140,34,CAP,Adt Fire & Security Plc,54086D
Gloucester City Council,23UE,General Works Fund,RY203,Capital Fire Alarms,25,North Warehouse emerg lx works,10/10/2013,372141,65.84,CAP,Adt Fire & Security Plc,54086D
Gloucester City Council,23UE,General Works Fund,RY203,Capital Fire Alarms,25,Herbert Warehouse fire alarm works,10/10/2013,372142,442.63,CAP,Adt Fire & Security Plc,54086D
Gloucester City Council,23UE,General Works Fund,RY203,Capital Smoke Vents,29,Eastgate Market contract remedials,10/10/2013,371828,482,CAP,Airvent Systems Limited,51073T
Gloucester City Council,23UE,General Works Fund,RY203,Cap Repair/Maint Fixed Plant,14,HKP AHU filter replacement,10/10/2013,371515,355,CAP,Hewer Facilities Mgt Ltd,05232A
Gloucester City Council,23UE,Gis Development Work,RY555,Contract Payments,20,CONTRACTOR SERVICES W/E 27/9/13,10/10/2013,371918,1250,CAP,Badenoch & Clark,01536P
Gloucester City Council,23UE,Guildhall Events,LA200,Advertising And Publicity,5702,Oct13 guildhall guide,10/10/2013,371800,1381,NET,Color Co,57707K
Gloucester City Council,23UE,Hackney Carriages,HL100,Fees For Services Received,5350,Sept13 CRB checks,10/10/2013,371728,748,NET,Disclosure And Barring Service,00119W
Gloucester City Council,23UE,Health & Safety,EH110,Other Minor Supplies Services,5590,EYEWASH,10/10/2013,371641,37.15,NET,Selles Medical Ltd,50592W
Gloucester City Council,23UE,Homelessness,CH120,Rent In Advance,5516,REDACTED,10/10/2013,372132,364.6,NET,Donaldson & Newman Ltd,66678G
Gloucester City Council,23UE,Homelessness,CH120,Rent In Advance,5516,REDACTED,10/10/2013,371233,364.6,NET,Surelet,06858N
Gloucester City Council,23UE,Homelessness Prevention,CH122,Basic Pay - Temporary Staff,2751,agency staff w/e 6/10/13,10/10/2013,372119,727.45,NET,James Andrews Recruitment Solutions,13636W
Gloucester City Council,23UE,Homelessness Prevention,CH122,Basic Pay - Temporary Staff,2751,Agency staff,10/10/2013,372144,4838.05,NET,James Andrews Recruitment Solutions,13636W
Gloucester City Council,23UE,Housing Strategy & Enabling,CH110,Advertising And Publicity,5702,ADVERT 27/09/13,10/10/2013,371678,395.08,NET,Local World Ltd,08556P
Gloucester City Council,23UE,Investment Property,RB500,General Repair/Maint Buildings,3000,ST OSWALDS,10/10/2013,371961,65,NET,Enterprise (Aol) Ltd,06695G
Gloucester City Council,23UE,Investment Property,RB500,General Repair/Maint Buildings,3000,MAINT SEPT- NOV 2013,10/10/2013,371657,275.72,NET,Pickerings Europe Ltd*,58816U
Gloucester City Council,23UE,Investment Property,RB500,Lift Maintenance,3051,N Warehouse lift service Nov13-Feb14,10/10/2013,371869,638.88,NET,Schindler Ltd,06826C
Gloucester City Council,23UE,Legal Services,RS200,Basic Pay - Temporary Staff,2751,REDACTED,10/10/2013,372101,666.72,NET,Sellick Partnership Group Ltd,11057C
Gloucester City Council,23UE,Members Ict Provision,RY577,It Hardware,42,IPAD CASE,10/10/2013,371953,936,CAP,Qual Technology,56512N
Gloucester City Council,23UE,Parks Contract Management,LP100,Maint Of Grounds - General,3030,VARIOUS JOBS,10/10/2013,371957,1264.64,NET,Enterprise (Aol) Ltd,06695G
Gloucester City Council,23UE,Parks Contract Management,LP100,Maint Of Grounds - General,3030,VARIOUS JOBS,10/10/2013,371958,6815.04,NET,Enterprise (Aol) Ltd,06695G
Gloucester City Council,23UE,Programme Of Works Cem&Crem,HY045,Contract Payments,20,Cremator 2 relining,10/10/2013,372040,33028,CAP,Facultatieve Technologies Ltd,51210H
Gloucester City Council,23UE,REDACTED,REDACTED,REDACTED,REDACTED,REDACTED,10/10/2013,REDACTED,78,NET,REDACTED,REDACTED
Gloucester City Council,23UE,REDACTED,REDACTED,REDACTED,REDACTED,REDACTED,10/10/2013,REDACTED,160,NET,REDACTED,REDACTED
Gloucester City Council,23UE,REDACTED,REDACTED,REDACTED,REDACTED,REDACTED,10/10/2013,REDACTED,-4.88,NET,REDACTED,REDACTED
Gloucester City Council,23UE,REDACTED,REDACTED,REDACTED,REDACTED,REDACTED,10/10/2013,REDACTED,-6.67,NET,REDACTED,REDACTED
Gloucester City Council,23UE,REDACTED,REDACTED,REDACTED,REDACTED,REDACTED,10/10/2013,REDACTED,207,NET,REDACTED,REDACTED
Gloucester City Council,23UE,REDACTED,REDACTED,REDACTED,REDACTED,REDACTED,10/10/2013,REDACTED,550,NET,REDACTED,REDACTED
Gloucester City Council,23UE,Retail Market - Landlord,HM300,Operational Equipment <£5000,5012,lamps,10/10/2013,372055,112.49,NET,City Electrical Factors*,09325C
Gloucester City Council,23UE,Summer Festival,LT300,Advertising And Publicity,5702,balloon gas,10/10/2013,372044,43.95,NET,Boc Ltd,59172L
Gloucester City Council,23UE,The Fleece,RB530,General Repair/Maint Buildings,3000,"FLOODLIGHT, TRANSFORMER & LEAD",10/10/2013,371934,53.76,NET,Ermin Plant Hire & Services Ltd,14150V
Gloucester City Council,23UE,Tic Trading,LT110,Materials For Sale,5080,Cathedral Guide Books x 25 for TIC,10/10/2013,372135,58.75,NET,Gloucester Cathedral Enterprises Ltd,50228X
Gloucester City Council,23UE,Tic Trading,LT110,Materials For Sale,5080,2014 Gloucester calendars,10/10/2013,372045,100,NET,Gloucester Civic Trust,08084L
Gloucester City Council,23UE,Tourism Marketing,LT100,Window Cleaning,3610,August 2013 TIC window cleaning,10/10/2013,372060,24,NET,Initial Facilities Window Cleaning,00442K
Gloucester City Council,23UE,Wake Room,HC501,Catering Provisions -Food,5110,Arbor Food,10/10/2013,371571,75.96,NET,Janes Pantry,24500W
Gloucester City Council,23UE,Asbru - Other Funders,FP846,Other Minor Supplies Services,5590,agency staff w/e 18/9/13,11/10/2013,371827,429.89,NET,Travail Employment Ltd,49371W
Gloucester City Council,23UE,Business Transformation & Tech,RT700,Computer Software Maintenance,5427,Information@Work software support,11/10/2013,371815,2628.89,NET,Northgate Information Solutions Uk Ltd,08982S
Gloucester City Council,23UE,Business Transformation & Tech,RT700,Internet Service Provider Fees,5429,QTRLY CHARGES,11/10/2013,372251,2462.74,NET,Vodafone Ltd,11843H
Gloucester City Council,23UE,Cemeteries,HC300,Maint Of Grounds - General,3030,STAKES,11/10/2013,372255,60.8,NET,Millington & Ramstedt Ltd,29815S
Gloucester City Council,23UE,Civil Parking Enforcement,PT741,Computer Software Maintenance,5427,AUG13 cashless parking fees,11/10/2013,371142,632.08,NET,Chipside Ltd,06535T
Gloucester City Council,23UE,Contact Centre,RB300,Basic Pay -Admin /Prof Staff,2601,agency staff w/e 29/9/13,11/10/2013,371855,621,NET,Cps Anystaff Recruitment Ltd,13945D
Gloucester City Council,23UE,Development Management,PT200,Advertising And Publicity,5702,ADVERT 12/09/13,11/10/2013,371681,116.2,NET,Local World Ltd,08556P
Gloucester City Council,23UE,Docks Complex - Catering Servs,RB110,Catering Provisions -Food,5110,FOOD,11/10/2013,372254,613.93,NET,3663,55585U
Gloucester City Council,23UE,Docks Complex - Catering Servs,RB110,Catering Provisions -Food,5110,FOOD,11/10/2013,372206,9.91,NET,Total Produce Gloucester,12645E
Gloucester City Council,23UE,Docks Complex - Catering Servs,RB110,Catering Provisions -Food,5110,FOOD,11/10/2013,372207,25.95,NET,Total Produce Gloucester,12645E
Gloucester City Council,23UE,Docks Complex - Catering Servs,RB110,Catering Provisions -Food,5110,FOOD,11/10/2013,372208,8.38,NET,Total Produce Gloucester,12645E
Gloucester City Council,23UE,Docks Complex - Catering Servs,RB110,Catering Provisions -Food,5110,FOOD,11/10/2013,372209,4.08,NET,Total Produce Gloucester,12645E
Gloucester City Council,23UE,Docks Complex - Catering Servs,RB110,Catering Provisions -Food,5110,FOOD,11/10/2013,372210,4.76,NET,Total Produce Gloucester,12645E
Gloucester City Council,23UE,Docks Complex - Catering Servs,RB110,Catering Provisions -Food,5110,FOOD,11/10/2013,372211,35.08,NET,Total Produce Gloucester,12645E
Gloucester City Council,23UE,Docks Complex - Catering Servs,RB110,Catering Provisions -Food,5110,FOOD,11/10/2013,372212,16.95,NET,Total Produce Gloucester,12645E
Gloucester City Council,23UE,Docks Complex - Catering Servs,RB110,Catering Provisions -Food,5110,FOOD,11/10/2013,372213,28.44,NET,Total Produce Gloucester,12645E
Gloucester City Council,23UE,Docks Complex - Catering Servs,RB110,Catering Provisions -Food,5110,FOOD,11/10/2013,372214,8.67,NET,Total Produce Gloucester,12645E
Gloucester City Council,23UE,Docks Complex - Catering Servs,RB110,Catering Provisions -Food,5110,FOOD,11/10/2013,372215,25.95,NET,Total Produce Gloucester,12645E
Gloucester City Council,23UE,Docks Complex - Catering Servs,RB110,Catering Provisions -Food,5110,FOOD,11/10/2013,372216,6.99,NET,Total Produce Gloucester,12645E
Gloucester City Council,23UE,Docks Complex - Catering Servs,RB110,Catering Provisions -Food,5110,FOOD,11/10/2013,372217,10.2,NET,Total Produce Gloucester,12645E
Gloucester City Council,23UE,Docks Complex - Catering Servs,RB110,Catering Provisions -Food,5110,FOOD,11/10/2013,372218,10.28,NET,Total Produce Gloucester,12645E
Gloucester City Council,23UE,Docks Complex - Catering Servs,RB110,Catering Provisions -Food,5110,FOOD,11/10/2013,372219,12.19,NET,Total Produce Gloucester,12645E
Gloucester City Council,23UE,Docks Complex - Catering Servs,RB110,Catering Provisions -Food,5110,FOOD,11/10/2013,372220,47.2,NET,Total Produce Gloucester,12645E
Gloucester City Council,23UE,Docks Complex - Catering Servs,RB110,Catering Provisions -Food,5110,FOOD,11/10/2013,372221,14.26,NET,Total Produce Gloucester,12645E
Gloucester City Council,23UE,Docks Complex - Catering Servs,RB110,Catering Provisions -Food,5110,FOOD,11/10/2013,372222,25.95,NET,Total Produce Gloucester,12645E
Gloucester City Council,23UE,Docks Complex - Catering Servs,RB110,Catering Provisions -Food,5110,FOOD,11/10/2013,372223,10.2,NET,Total Produce Gloucester,12645E
Gloucester City Council,23UE,Docks Complex - Catering Servs,RB110,Catering Provisions -Food,5110,FOOD,11/10/2013,372224,4.8,NET,Total Produce Gloucester,12645E
Gloucester City Council,23UE,Docks Complex - Catering Servs,RB110,Catering Provisions -Food,5110,FOOD,11/10/2013,372225,15.48,NET,Total Produce Gloucester,12645E
Gloucester City Council,23UE,Docks Complex - Catering Servs,RB110,Catering Provisions -Food,5110,FOOD,11/10/2013,372226,6.36,NET,Total Produce Gloucester,12645E
Gloucester City Council,23UE,Docks Complex - Catering Servs,RB110,Catering Provisions -Food,5110,FOOD,11/10/2013,372227,14.23,NET,Total Produce Gloucester,12645E
Gloucester City Council,23UE,Docks Complex - Catering Servs,RB110,Catering Provisions -Food,5110,FOOD,11/10/2013,372228,31.48,NET,Total Produce Gloucester,12645E
Gloucester City Council,23UE,Docks Complex - Catering Servs,RB110,Catering Provisions -Food,5110,FOOD,11/10/2013,372229,33.07,NET,Total Produce Gloucester,12645E
Gloucester City Council,23UE,Docks Complex - Catering Servs,RB110,Catering Provisions -Food,5110,FOOD,11/10/2013,372230,25.95,NET,Total Produce Gloucester,12645E
Gloucester City Council,23UE,Docks Complex - Catering Servs,RB110,Catering Provisions -Food,5110,FOOD,11/10/2013,372231,5.39,NET,Total Produce Gloucester,12645E
Gloucester City Council,23UE,Docks Complex - Catering Servs,RB110,Catering Provisions -Food,5110,FOOD,11/10/2013,372232,10.2,NET,Total Produce Gloucester,12645E
Gloucester City Council,23UE,Docks Complex - Catering Servs,RB110,Catering Provisions -Food,5110,FOOD,11/10/2013,372233,7.3,NET,Total Produce Gloucester,12645E
Gloucester City Council,23UE,Docks Complex - Catering Servs,RB110,Catering Provisions -Food,5110,FOOD,11/10/2013,372234,10.15,NET,Total Produce Gloucester,12645E
Gloucester City Council,23UE,Docks Complex - Catering Servs,RB110,Catering Provisions -Food,5110,FOOD,11/10/2013,372235,26.29,NET,Total Produce Gloucester,12645E
Gloucester City Council,23UE,Docks Complex - Catering Servs,RB110,Catering Provisions -Food,5110,FOOD,11/10/2013,372236,18.57,NET,Total Produce Gloucester,12645E
Gloucester City Council,23UE,Docks Complex - Catering Servs,RB110,Catering Provisions -Food,5110,FOOD,11/10/2013,372237,25.95,NET,Total Produce Gloucester,12645E
Gloucester City Council,23UE,Docks Complex - Catering Servs,RB110,Catering Provisions -Food,5110,FOOD,11/10/2013,372238,4.76,NET,Total Produce Gloucester,12645E
Gloucester City Council,23UE,Docks Complex - Catering Servs,RB110,Catering Provisions -Food,5110,FOOD,11/10/2013,372239,12.19,NET,Total Produce Gloucester,12645E
Gloucester City Council,23UE,Docks Complex - Catering Servs,RB110,Catering Provisions -Food,5110,FOOD,11/10/2013,372240,25.95,NET,Total Produce Gloucester,12645E
Gloucester City Council,23UE,Docks Complex - Catering Servs,RB110,Catering Provisions -Food,5110,FOOD,11/10/2013,372241,53.08,NET,Total Produce Gloucester,12645E
Gloucester City Council,23UE,Docks Complex - Catering Servs,RB110,Catering Provisions -Food,5110,FOOD,11/10/2013,372242,4.76,NET,Total Produce Gloucester,12645E
Gloucester City Council,23UE,Docks Complex - Catering Servs,RB110,Catering Provisions -Food,5110,FOOD,11/10/2013,372243,10.92,NET,Total Produce Gloucester,12645E
Gloucester City Council,23UE,Docks Complex - Catering Servs,RB110,Catering Provisions -Food,5110,FOOD,11/10/2013,372244,24.05,NET,Total Produce Gloucester,12645E
Gloucester City Council,23UE,Docks Complex - Catering Servs,RB110,Catering Provisions -Food,5110,FOOD,11/10/2013,372245,17,NET,Total Produce Gloucester,12645E
Gloucester City Council,23UE,Docks Complex - Catering Servs,RB110,Catering Provisions -Food,5110,FOOD,11/10/2013,372246,2.78,NET,Total Produce Gloucester,12645E
Gloucester City Council,23UE,Docks Complex - Catering Servs,RB110,Catering Provisions -Food,5110,FOOD,11/10/2013,372247,25.95,NET,Total Produce Gloucester,12645E
Gloucester City Council,23UE,Docks Complex - Catering Servs,RB110,Catering Provisions -Food,5110,FOOD,11/10/2013,372248,9.6,NET,Total Produce Gloucester,12645E
Gloucester City Council,23UE,Docks Complex - Catering Servs,RB110,Catering Provisions -Food,5110,FOOD,11/10/2013,372249,7.2,NET,Total Produce Gloucester,12645E
Gloucester City Council,23UE,Docks Complex - Catering Servs,RB110,Catering Provisions -Food,5110,FOOD,11/10/2013,372250,10.2,NET,Total Produce Gloucester,12645E
Gloucester City Council,23UE,Docks Complex - Services,RB100,General Repair/Maint Buildings,3000,North Quay white edging,11/10/2013,371856,150,NET,Roadmark Ltd,37743T
Gloucester City Council,23UE,Environmental Planning,LM340,Operational Materials,5070,narcissi plants,11/10/2013,371927,424.25,NET,Kingsdown Nurseries,01272B
Gloucester City Council,23UE,Flooding And Drainage,HE306,Maint Of Grounds - General,3030,works to quay wall 17/10/12-1/10/13,11/10/2013,372043,750,NET,REDACTED,REDACTED
Gloucester City Council,23UE,Guildhall Events,LA200,Advertising And Publicity,5702,ADVERTS SEPT 2013,11/10/2013,372059,440,NET,Local World Ltd,08556P
Gloucester City Council,23UE,Homelessness,CH120,Rent In Advance,5516,REDACTED,11/10/2013,372200,484.6,NET,Barton & Tredworth Developments Ltd,53990RV
Gloucester City Council,23UE,Homelessness Prevention,CH122,Fees For Services Received,5350,REDACTED,11/10/2013,372200,530,NET,Barton & Tredworth Developments Ltd,53990RV
Gloucester City Council,23UE,Investment Property,RB500,General Repair/Maint Buildings,3000,MAINT SEP-NOV 2013,11/10/2013,371658,278.7,NET,Pickerings Europe Ltd*,58816U
Gloucester City Council,23UE,Members Support,RC300,Fees For Services Received,5350,,11/10/2013,372339,1000,NET,Softdata Internet Limited,63522RV
Gloucester City Council,23UE,Nms Contract,HI102,General Repair/Maint Buildings,3000,SuDS Pond adoption,11/10/2013,372049,465,NET,Bwb Consulting Ltd,06959F
Gloucester City Council,23UE,Off Street Car Parks,PP110,Water Supply,3400,ACCT 1350118294 GT WESTERN RD,11/10/2013,371977,259.77,NET,Severn Trent Water,01823H
Gloucester City Council,23UE,Photocopying,RS130,Photocopying,5320,copy costs September 2013,11/10/2013,372030,76.95,NET,Abbey Business Equipment Ltd,55610X
Gloucester City Council,23UE,REDACTED,REDACTED,REDACTED,REDACTED,REDACTED,11/10/2013,REDACTED,480,NET,REDACTED,REDACTED
Gloucester City Council,23UE,REDACTED,REDACTED,REDACTED,REDACTED,REDACTED,11/10/2013,REDACTED,100,NET,REDACTED,REDACTED
